Council Name,Date,TransNo,Amount � (Excl VAT),Supplier name,Supplier Category,Expense Area,Expense Type,Expense Code,Unclaimed VAT
London Borough of Sutton,31/01/2024,20068360,"8,755.00",31ten Consulting Ltd,FINANCIAL / INSURANCE INSTNS,Resources,Professional Fees,A44066,0
London Borough of Sutton,06/02/2024,50456980,500.00,REDACTED - PERSONAL DATA,GRANTS & EX GRATIA PAYMENTS,Environment Housing and Neighbourhoods,"Grants, Contributions & Donations",A47005,0
London Borough of Sutton,30/01/2024,50462063,598.14,A R G Europe Limited,CONSTRUCTION INDUSTRY,HRA,Payments to Contractors,C14000,0
London Borough of Sutton,30/01/2024,50462074,"1,242.50",A R G Europe Limited,CONSTRUCTION INDUSTRY,HRA,Payments to Contractors,C14000,0
London Borough of Sutton,30/01/2024,50462075,"1,734.66",A R G Europe Limited,CONSTRUCTION INDUSTRY,HRA,Payments to Contractors,C14000,0
London Borough of Sutton,30/01/2024,50462076,"1,188.12",A R G Europe Limited,CONSTRUCTION INDUSTRY,HRA,Payments to Contractors,C14000,0
London Borough of Sutton,02/01/2024,50458978,"30,070.00",A Wilderness Way Ltd,CHILDREN'S SERVICES - FOSTERING & ADOPTION SERVICES,People's Services,Residential Care-Children,A56115,0
London Borough of Sutton,16/02/2024,50461467,"4,560.00",Abbey Care Centre,SOCIAL SERVICES RESIDENTIAL,People's Services,Nursing Care Short Term,A56026,0
London Borough of Sutton,16/02/2024,50461467,-878.84,Abbey Care Centre,SOCIAL SERVICES RESIDENTIAL,People's Services,Nursing Care - 3rd party top up payment,A56023,0
London Borough of Sutton,16/02/2024,50461501,"4,678.84",Abbey Care Centre,SOCIAL SERVICES RESIDENTIAL,People's Services,Nursing Care - Ext Provider,A56025,0
London Borough of Sutton,16/02/2024,50461501,-878.84,Abbey Care Centre,SOCIAL SERVICES RESIDENTIAL,People's Services,Nursing Care - 3rd party top up payment,A56023,0
London Borough of Sutton,16/02/2024,50461520,"4,096.12",Abbey Care Centre,SOCIAL SERVICES RESIDENTIAL,People's Services,Nursing Care - Ext Provider,A56025,0
London Borough of Sutton,16/02/2024,50461520,-878.84,Abbey Care Centre,SOCIAL SERVICES RESIDENTIAL,People's Services,Nursing Care - 3rd party top up payment,A56023,0
London Borough of Sutton,16/02/2024,50461760,"-1,492.80",Abbey Care Centre,SOCIAL SERVICES RESIDENTIAL,People's Services,Nursing Care - 3rd party top up payment,A56023,0
London Borough of Sutton,16/02/2024,50461760,-750.40,Abbey Care Centre,SOCIAL SERVICES RESIDENTIAL,People's Services,Nursing Care - 3rd party top up payment,A56023,0
London Borough of Sutton,16/02/2024,50461760,"3,848.24",Abbey Care Centre,SOCIAL SERVICES RESIDENTIAL,People's Services,Nursing Care - Ext Provider,A56025,0
London Borough of Sutton,06/02/2024,50456734,736.56,ABC Pre-School Beddington LLP,ACADEMIC INSTNS - OTHER,People's Services,Payment - Nursery Funding,A51056,0
London Borough of Sutton,06/02/2024,50456793,"4,775.76",ABC Pre-School Beddington LLP,ACADEMIC INSTNS - OTHER,People's Services,Payment - Nursery Funding,A51056,0
London Borough of Sutton,06/02/2024,50456913,"1,606.18",ABC Pre-School Beddington LLP,ACADEMIC INSTNS - OTHER,People's Services,Payment - Nursery Funding,A51056,0
London Borough of Sutton,01/02/2024,20069379,"58,195.00",Abel Living,ACCOMMODATION BED & BREAKFAST,Environment Housing and Neighbourhoods,Bed & Breakfast,A56000,0
London Borough of Sutton,12/02/2024,20069385,"-1,271.00",Abel Living,ACCOMMODATION BED & BREAKFAST,Environment Housing and Neighbourhoods,Bed & Breakfast,A56000,0
London Borough of Sutton,01/12/2023,20064797,"1,689.16",Absolute Care Services Ltd,SOCIAL SERVICES DAY CARE,People's Services,Building Rents,A22005,0
London Borough of Sutton,25/12/2023,20065729,"6,144.50",Absolute Care Services Ltd,SOCIAL SERVICES DAY CARE,People's Services,Homecare Core Services,A56020,0
London Borough of Sutton,01/01/2024,20065939,"6,371.00",Absolute Care Services Ltd,SOCIAL SERVICES DAY CARE,People's Services,Homecare Core Services,A56020,0
London Borough of Sutton,08/01/2024,20066362,"6,371.00",Absolute Care Services Ltd,SOCIAL SERVICES DAY CARE,People's Services,Homecare Core Services,A56020,0
London Borough of Sutton,08/01/2024,20066363,"6,144.50",Absolute Care Services Ltd,SOCIAL SERVICES DAY CARE,People's Services,Homecare Core Services,A56020,0
London Borough of Sutton,17/07/2023,20068357,"6,794.87",Absolute Care Services Ltd,SOCIAL SERVICES DAY CARE,People's Services,Homecare Core Services,A56020,0
London Borough of Sutton,05/02/2024,20068493,"6,144.50",Absolute Care Services Ltd,SOCIAL SERVICES DAY CARE,People's Services,Homecare Core Services,A56020,0
London Borough of Sutton,05/02/2024,20068494,"7,304.59",Absolute Care Services Ltd,SOCIAL SERVICES DAY CARE,People's Services,Homecare Core Services,A56020,0
London Borough of Sutton,05/02/2024,20068496,"6,371.00",Absolute Care Services Ltd,SOCIAL SERVICES DAY CARE,People's Services,Homecare Core Services,A56020,0
London Borough of Sutton,12/02/2024,20069099,"6,144.50",Absolute Care Services Ltd,SOCIAL SERVICES DAY CARE,People's Services,Homecare Core Services,A56020,0
London Borough of Sutton,12/02/2024,20069103,"6,371.00",Absolute Care Services Ltd,SOCIAL SERVICES DAY CARE,People's Services,Homecare Core Services,A56020,0
London Borough of Sutton,12/02/2024,20069120,"7,304.59",Absolute Care Services Ltd,SOCIAL SERVICES DAY CARE,People's Services,Homecare Core Services,A56020,0
London Borough of Sutton,19/02/2024,20069520,"6,144.50",Absolute Care Services Ltd,SOCIAL SERVICES DAY CARE,People's Services,Homecare Core Services,A56020,0
London Borough of Sutton,19/02/2024,20069521,"7,304.59",Absolute Care Services Ltd,SOCIAL SERVICES DAY CARE,People's Services,Homecare Core Services,A56020,0
London Borough of Sutton,19/02/2024,20069522,"6,371.00",Absolute Care Services Ltd,SOCIAL SERVICES DAY CARE,People's Services,Homecare Core Services,A56020,0
London Borough of Sutton,28/01/2024,50458090,62.73,Absolute Care Services Ltd,SOCIAL SERVICES DAY CARE,People's Services,Home Care Services,A56019,0
London Borough of Sutton,28/01/2024,50458090,784.23,Absolute Care Services Ltd,SOCIAL SERVICES DAY CARE,People's Services,Home Care Services,A56019,0
London Borough of Sutton,28/01/2024,50458119,658.84,Absolute Care Services Ltd,SOCIAL SERVICES DAY CARE,People's Services,Home Care Services,A56019,0
London Borough of Sutton,28/01/2024,50458123,732.06,Absolute Care Services Ltd,SOCIAL SERVICES DAY CARE,People's Services,Home Care Services,A56019,0
London Borough of Sutton,28/01/2024,50458191,658.84,Absolute Care Services Ltd,SOCIAL SERVICES DAY CARE,People's Services,Home Care Services,A56019,0
London Borough of Sutton,28/01/2024,50458272,34.58,Absolute Care Services Ltd,SOCIAL SERVICES DAY CARE,People's Services,Home Care Services,A56019,0
London Borough of Sutton,28/01/2024,50458272,544.88,Absolute Care Services Ltd,SOCIAL SERVICES DAY CARE,People's Services,Home Care Services,A56019,0
London Borough of Sutton,28/01/2024,50458275,544.88,Absolute Care Services Ltd,SOCIAL SERVICES DAY CARE,People's Services,Home Care Services,A56019,0
London Borough of Sutton,28/01/2024,50458282,484.12,Absolute Care Services Ltd,SOCIAL SERVICES DAY CARE,People's Services,Home Care Services,A56019,0
London Borough of Sutton,28/01/2024,50458282,242.06,Absolute Care Services Ltd,SOCIAL SERVICES DAY CARE,People's Services,Home Care Services,A56019,0
London Borough of Sutton,28/01/2024,50458289,518.75,Absolute Care Services Ltd,SOCIAL SERVICES DAY CARE,People's Services,Home Care Services,A56019,0
London Borough of Sutton,28/01/2024,50458343,544.88,Absolute Care Services Ltd,SOCIAL SERVICES DAY CARE,People's Services,Home Care Services,A56019,0
London Borough of Sutton,28/01/2024,50458343,17.29,Absolute Care Services Ltd,SOCIAL SERVICES DAY CARE,People's Services,Home Care Services,A56019,0
London Borough of Sutton,07/02/2024,50460157,514.44,Absolute Care Services Ltd,SOCIAL SERVICES DAY CARE,People's Services,Home Care Services,A56019,0
London Borough of Sutton,01/02/2024,50460158,514.44,Absolute Care Services Ltd,SOCIAL SERVICES DAY CARE,People's Services,Home Care Services,A56019,0
London Borough of Sutton,25/01/2024,50460159,514.44,Absolute Care Services Ltd,SOCIAL SERVICES DAY CARE,People's Services,Home Care Services,A56019,0
London Borough of Sutton,28/01/2024,50460180,167.21,Absolute Care Services Ltd,SOCIAL SERVICES DAY CARE,People's Services,Home Care Services,A56019,0
London Borough of Sutton,28/01/2024,50460180,460.23,Absolute Care Services Ltd,SOCIAL SERVICES DAY CARE,People's Services,Home Care Services,A56019,0
London Borough of Sutton,21/01/2024,50460181,167.21,Absolute Care Services Ltd,SOCIAL SERVICES DAY CARE,People's Services,Home Care Services,A56019,0
London Borough of Sutton,21/01/2024,50460181,460.23,Absolute Care Services Ltd,SOCIAL SERVICES DAY CARE,People's Services,Home Care Services,A56019,0
London Borough of Sutton,04/02/2024,50460264,544.88,Absolute Care Services Ltd,SOCIAL SERVICES DAY CARE,People's Services,Home Care Services,A56019,0
London Borough of Sutton,04/02/2024,50460264,17.29,Absolute Care Services Ltd,SOCIAL SERVICES DAY CARE,People's Services,Home Care Services,A56019,0
London Borough of Sutton,04/02/2024,50460318,34.58,Absolute Care Services Ltd,SOCIAL SERVICES DAY CARE,People's Services,Home Care Services,A56019,0
London Borough of Sutton,04/02/2024,50460318,544.88,Absolute Care Services Ltd,SOCIAL SERVICES DAY CARE,People's Services,Home Care Services,A56019,0
London Borough of Sutton,04/02/2024,50460351,544.88,Absolute Care Services Ltd,SOCIAL SERVICES DAY CARE,People's Services,Home Care Services,A56019,0
London Borough of Sutton,04/02/2024,50460360,484.12,Absolute Care Services Ltd,SOCIAL SERVICES DAY CARE,People's Services,Home Care Services,A56019,0
London Borough of Sutton,04/02/2024,50460360,242.06,Absolute Care Services Ltd,SOCIAL SERVICES DAY CARE,People's Services,Home Care Services,A56019,0
London Borough of Sutton,04/02/2024,50460365,531.72,Absolute Care Services Ltd,SOCIAL SERVICES DAY CARE,People's Services,Home Care Services,A56019,0
London Borough of Sutton,04/02/2024,50460749,550.79,Absolute Care Services Ltd,SOCIAL SERVICES DAY CARE,People's Services,Home Care Services,A56019,0
London Borough of Sutton,04/02/2024,50460770,599.55,Absolute Care Services Ltd,SOCIAL SERVICES DAY CARE,People's Services,Home Care Services,A56019,0
London Borough of Sutton,04/02/2024,50460783,62.73,Absolute Care Services Ltd,SOCIAL SERVICES DAY CARE,People's Services,Home Care Services,A56019,0
London Borough of Sutton,04/02/2024,50460783,592.52,Absolute Care Services Ltd,SOCIAL SERVICES DAY CARE,People's Services,Home Care Services,A56019,0
London Borough of Sutton,04/02/2024,50460791,651.81,Absolute Care Services Ltd,SOCIAL SERVICES DAY CARE,People's Services,Home Care Services,A56019,0
London Borough of Sutton,21/01/2024,50462238,86.45,Absolute Care Services Ltd,SOCIAL SERVICES DAY CARE,People's Services,Home Care Services,A56019,0
London Borough of Sutton,21/01/2024,50462238,518.75,Absolute Care Services Ltd,SOCIAL SERVICES DAY CARE,People's Services,Home Care Services,A56019,0
London Borough of Sutton,11/02/2024,50463805,544.88,Absolute Care Services Ltd,SOCIAL SERVICES DAY CARE,People's Services,Home Care Services,A56019,0
London Borough of Sutton,11/02/2024,50463805,17.29,Absolute Care Services Ltd,SOCIAL SERVICES DAY CARE,People's Services,Home Care Services,A56019,0
London Borough of Sutton,11/02/2024,50463811,34.58,Absolute Care Services Ltd,SOCIAL SERVICES DAY CARE,People's Services,Home Care Services,A56019,0
London Borough of Sutton,11/02/2024,50463811,544.88,Absolute Care Services Ltd,SOCIAL SERVICES DAY CARE,People's Services,Home Care Services,A56019,0
London Borough of Sutton,11/02/2024,50463820,484.12,Absolute Care Services Ltd,SOCIAL SERVICES DAY CARE,People's Services,Home Care Services,A56019,0
London Borough of Sutton,11/02/2024,50463820,242.06,Absolute Care Services Ltd,SOCIAL SERVICES DAY CARE,People's Services,Home Care Services,A56019,0
London Borough of Sutton,11/02/2024,50463824,471.17,Absolute Care Services Ltd,SOCIAL SERVICES DAY CARE,People's Services,Home Care Services,A56019,0
London Borough of Sutton,11/02/2024,50463824,60.55,Absolute Care Services Ltd,SOCIAL SERVICES DAY CARE,People's Services,Home Care Services,A56019,0
London Borough of Sutton,11/02/2024,50463829,667.49,Absolute Care Services Ltd,SOCIAL SERVICES DAY CARE,People's Services,Home Care Services,A56019,0
London Borough of Sutton,11/02/2024,50463845,62.73,Absolute Care Services Ltd,SOCIAL SERVICES DAY CARE,People's Services,Home Care Services,A56019,0
London Borough of Sutton,11/02/2024,50463845,650.07,Absolute Care Services Ltd,SOCIAL SERVICES DAY CARE,People's Services,Home Care Services,A56019,0
London Borough of Sutton,18/02/2024,50465663,62.73,Absolute Care Services Ltd,SOCIAL SERVICES DAY CARE,People's Services,Home Care Services,A56019,0
London Borough of Sutton,18/02/2024,50465663,752.89,Absolute Care Services Ltd,SOCIAL SERVICES DAY CARE,People's Services,Home Care Services,A56019,0
London Borough of Sutton,18/02/2024,50465823,544.88,Absolute Care Services Ltd,SOCIAL SERVICES DAY CARE,People's Services,Home Care Services,A56019,0
London Borough of Sutton,18/02/2024,50465823,17.29,Absolute Care Services Ltd,SOCIAL SERVICES DAY CARE,People's Services,Home Care Services,A56019,0
London Borough of Sutton,18/02/2024,50465848,34.58,Absolute Care Services Ltd,SOCIAL SERVICES DAY CARE,People's Services,Home Care Services,A56019,0
London Borough of Sutton,18/02/2024,50465848,544.88,Absolute Care Services Ltd,SOCIAL SERVICES DAY CARE,People's Services,Home Care Services,A56019,0
London Borough of Sutton,18/02/2024,50465860,181.58,Absolute Care Services Ltd,SOCIAL SERVICES DAY CARE,People's Services,Home Care Services,A56019,0
London Borough of Sutton,18/02/2024,50465860,307.02,Absolute Care Services Ltd,SOCIAL SERVICES DAY CARE,People's Services,Home Care Services,A56019,0
London Borough of Sutton,18/02/2024,50465860,121.03,Absolute Care Services Ltd,SOCIAL SERVICES DAY CARE,People's Services,Home Care Services,A56019,0
London Borough of Sutton,18/02/2024,50465870,484.12,Absolute Care Services Ltd,SOCIAL SERVICES DAY CARE,People's Services,Home Care Services,A56019,0
London Borough of Sutton,18/02/2024,50465870,242.06,Absolute Care Services Ltd,SOCIAL SERVICES DAY CARE,People's Services,Home Care Services,A56019,0
London Borough of Sutton,18/02/2024,50465917,90.79,Absolute Care Services Ltd,SOCIAL SERVICES DAY CARE,People's Services,Home Care Services,A56019,0
London Borough of Sutton,18/02/2024,50465917,423.66,Absolute Care Services Ltd,SOCIAL SERVICES DAY CARE,People's Services,Home Care Services,A56019,0
London Borough of Sutton,18/02/2024,50465918,423.85,Absolute Care Services Ltd,SOCIAL SERVICES DAY CARE,People's Services,Home Care Services,A56019,0
London Borough of Sutton,18/02/2024,50465918,121.03,Absolute Care Services Ltd,SOCIAL SERVICES DAY CARE,People's Services,Home Care Services,A56019,0
London Borough of Sutton,31/01/2024,20068202,"259,412.54",Access UK Limited,TAXI AND COACH HIRE,People's Services,Childrens Social Care Transport,A32009,0
London Borough of Sutton,07/02/2024,20068755,"235,479.52",Access UK Limited,TAXI AND COACH HIRE,People's Services,Childrens Social Care Transport,A32009,0
London Borough of Sutton,14/02/2024,20069307,"217,249.66",Access UK Limited,TAXI AND COACH HIRE,People's Services,Childrens Social Care Transport,A32009,0
London Borough of Sutton,21/02/2024,20069830,"17,942.20",Access UK Limited,TAXI AND COACH HIRE,People's Services,Childrens Social Care Transport,A32009,0
London Borough of Sutton,28/02/2024,20070806,"233,931.66",Access UK Limited,TAXI AND COACH HIRE,People's Services,Childrens Social Care Transport,A32009,0
London Borough of Sutton,06/02/2024,50464345,"3,195.81",Accomplish Group Ltd,SOCIAL SERVICES RESIDENTIAL,People's Services,Supported Living,A56088,0
London Borough of Sutton,01/02/2024,50464428,"5,614.18",Accomplish Group Ltd,SOCIAL SERVICES RESIDENTIAL,People's Services,Supported Living,A56088,0
London Borough of Sutton,06/02/2024,50464432,"4,847.17",Accomplish Group Ltd,SOCIAL SERVICES RESIDENTIAL,People's Services,Supported Living,A56088,0
London Borough of Sutton,16/02/2024,50461276,-549.00,Achieve Together Limited,SOCIAL SERVICES RESIDENTIAL,People's Services,Residential Care - Client Cont ( Net Paymt ),A56113,0
London Borough of Sutton,16/02/2024,50461276,390.00,Achieve Together Limited,SOCIAL SERVICES RESIDENTIAL,People's Services,One to One Care,A56108,0
London Borough of Sutton,16/02/2024,50461276,"4,375.48",Achieve Together Limited,SOCIAL SERVICES RESIDENTIAL,People's Services,Residential Care - Ext Provider,A56114,0
London Borough of Sutton,16/02/2024,50461291,"-17,343.28",Achieve Together Limited,SOCIAL SERVICES RESIDENTIAL,People's Services,Residential Care - Client Cont ( Net Paymt ),A56113,0
London Borough of Sutton,16/02/2024,50461291,"-19,068.33",Achieve Together Limited,SOCIAL SERVICES RESIDENTIAL,People's Services,Residential Care - Ext Provider,A56114,0
London Borough of Sutton,16/02/2024,50461291,"18,846.77",Achieve Together Limited,SOCIAL SERVICES RESIDENTIAL,People's Services,Residential Care - Client Cont ( Net Paymt ),A56113,0
London Borough of Sutton,16/02/2024,50461318,"5,810.56",Achieve Together Limited,SOCIAL SERVICES RESIDENTIAL,People's Services,Residential Care - Ext Provider,A56114,0
London Borough of Sutton,16/02/2024,50461365,"7,303.88",Achieve Together Limited,SOCIAL SERVICES RESIDENTIAL,People's Services,Residential Care - Ext Provider,A56114,0
London Borough of Sutton,16/02/2024,50461388,"8,103.64",Achieve Together Limited,SOCIAL SERVICES RESIDENTIAL,People's Services,Residential Care - Ext Provider,A56114,0
London Borough of Sutton,16/02/2024,50461388,-467.20,Achieve Together Limited,SOCIAL SERVICES RESIDENTIAL,People's Services,Residential Care - Client Cont ( Net Paymt ),A56113,0
London Borough of Sutton,16/02/2024,50461409,"5,100.00",Achieve Together Limited,SOCIAL SERVICES RESIDENTIAL,People's Services,Residential Care - Ext Provider,A56114,0
London Borough of Sutton,16/02/2024,50461420,-537.00,Achieve Together Limited,SOCIAL SERVICES RESIDENTIAL,People's Services,Residential Care - Client Cont ( Net Paymt ),A56113,0
London Borough of Sutton,16/02/2024,50461420,"4,682.44",Achieve Together Limited,SOCIAL SERVICES RESIDENTIAL,People's Services,Residential Care - Ext Provider,A56114,0
London Borough of Sutton,18/01/2024,50459377,"-27,234.97",ACHIEVE TOGETHER LTD,SOCIAL SERVICES RESIDENTIAL,People's Services,Home Care Services,A56019,0
London Borough of Sutton,16/02/2024,50461286,-483.20,ACHIEVE TOGETHER LTD,SOCIAL SERVICES RESIDENTIAL,People's Services,Residential Care - Client Cont ( Net Paymt ),A56113,0
London Borough of Sutton,16/02/2024,50461286,"5,620.60",ACHIEVE TOGETHER LTD,SOCIAL SERVICES RESIDENTIAL,People's Services,Residential Care - Ext Provider,A56114,0
London Borough of Sutton,16/02/2024,50461353,"11,047.88",ACHIEVE TOGETHER LTD,SOCIAL SERVICES RESIDENTIAL,People's Services,Residential Care - Ext Provider,A56114,0
London Borough of Sutton,16/02/2024,50461368,"8,716.00",ACHIEVE TOGETHER LTD,SOCIAL SERVICES RESIDENTIAL,People's Services,Residential Care - Ext Provider,A56114,0
London Borough of Sutton,16/02/2024,50461380,"4,653.76",ACHIEVE TOGETHER LTD,SOCIAL SERVICES RESIDENTIAL,People's Services,Residential Care - Ext Provider,A56114,0
London Borough of Sutton,06/02/2024,50461873,"3,357.50",ACHIEVE TOGETHER LTD,SOCIAL SERVICES RESIDENTIAL,People's Services,Home Care Services,A56019,0
London Borough of Sutton,19/02/2024,50462284,"4,564.10",ACHIEVE TOGETHER LTD,SOCIAL SERVICES RESIDENTIAL,People's Services,Supported Living,A56088,0
London Borough of Sutton,19/02/2024,50462291,420.45,ACHIEVE TOGETHER LTD,SOCIAL SERVICES RESIDENTIAL,People's Services,Supported Living,A56088,0
London Borough of Sutton,19/02/2024,50462291,930.66,ACHIEVE TOGETHER LTD,SOCIAL SERVICES RESIDENTIAL,People's Services,Supported Living,A56088,0
London Borough of Sutton,19/02/2024,50462291,"3,101.55",ACHIEVE TOGETHER LTD,SOCIAL SERVICES RESIDENTIAL,People's Services,Supported Living,A56088,0
London Borough of Sutton,19/02/2024,50462291,"2,153.38",ACHIEVE TOGETHER LTD,SOCIAL SERVICES RESIDENTIAL,People's Services,Supported Living,A56088,0
London Borough of Sutton,19/02/2024,50462301,"1,274.36",ACHIEVE TOGETHER LTD,SOCIAL SERVICES RESIDENTIAL,People's Services,Supported Living,A56088,0
London Borough of Sutton,19/02/2024,50462301,"1,274.36",ACHIEVE TOGETHER LTD,SOCIAL SERVICES RESIDENTIAL,People's Services,Supported Living,A56088,0
London Borough of Sutton,19/02/2024,50462301,"1,047.12",ACHIEVE TOGETHER LTD,SOCIAL SERVICES RESIDENTIAL,People's Services,Supported Living,A56088,0
London Borough of Sutton,19/02/2024,50462302,"3,185.90",ACHIEVE TOGETHER LTD,SOCIAL SERVICES RESIDENTIAL,People's Services,Supported Living,A56088,0
London Borough of Sutton,19/02/2024,50462370,"2,867.31",ACHIEVE TOGETHER LTD,SOCIAL SERVICES RESIDENTIAL,People's Services,Supported Living,A56088,0
London Borough of Sutton,19/02/2024,50462370,743.62,ACHIEVE TOGETHER LTD,SOCIAL SERVICES RESIDENTIAL,People's Services,Supported Living,A56088,0
London Borough of Sutton,19/02/2024,50462370,756.63,ACHIEVE TOGETHER LTD,SOCIAL SERVICES RESIDENTIAL,People's Services,Supported Living,A56088,0
London Borough of Sutton,19/02/2024,50462392,"3,530.08",ACHIEVE TOGETHER LTD,SOCIAL SERVICES RESIDENTIAL,People's Services,Supported Living,A56088,0
London Borough of Sutton,19/02/2024,50462392,"2,978.88",ACHIEVE TOGETHER LTD,SOCIAL SERVICES RESIDENTIAL,People's Services,Supported Living,A56088,0
London Borough of Sutton,02/02/2024,50458943,"33,671.89",Achieving Above Average Ltd,CHILDREN'S SERVICES - RESIDENTIAL,People's Services,Residential Care-Children,A56115,0
London Borough of Sutton,03/10/2023,20069184,"86,417.00",Achieving For Children Limited,SOCIAL SERVICES - OTHER,People's Services,Respite Care,A56116,0
London Borough of Sutton,03/10/2023,20069185,"69,133.00",Achieving For Children Limited,SOCIAL SERVICES - OTHER,People's Services,Respite Care,A56116,0
London Borough of Sutton,03/10/2023,20069186,"51,850.00",Achieving For Children Limited,SOCIAL SERVICES - OTHER,People's Services,Respite Care,A56116,0
London Borough of Sutton,03/10/2023,20069187,"33,950.00",Achieving For Children Limited,SOCIAL SERVICES - OTHER,People's Services,Respite Care,A56116,0
London Borough of Sutton,16/02/2024,50461313,"4,231.40",CARELODGE GROUP LTD,SOCIAL SERVICES RESIDENTIAL,People's Services,Residential Care - Ext Provider,A56114,0
London Borough of Sutton,16/02/2024,50461359,"5,844.00",Acorn Residential Home,SOCIAL SERVICES RESIDENTIAL,People's Services,Residential Care - Ext Provider,A56114,0
London Borough of Sutton,16/02/2024,50461312,"6,441.84",Active Prospects,SOCIAL SERVICES DAY CARE,People's Services,Residential Care - Ext Provider,A56114,0
London Borough of Sutton,16/02/2024,50461407,"8,918.80",Active Prospects,SOCIAL SERVICES DAY CARE,People's Services,Residential Care - Ext Provider,A56114,0
London Borough of Sutton,16/02/2024,50461407,-702.40,Active Prospects,SOCIAL SERVICES DAY CARE,People's Services,Residential Care - Client Cont ( Net Paymt ),A56113,0
London Borough of Sutton,16/02/2024,50461321,"6,000.00",Admiral Healthcare Ltd.,SOCIAL SERVICES RESIDENTIAL,People's Services,Residential Care - Ext Provider,A56114,0
London Borough of Sutton,16/02/2024,50461435,"1,458.00",Admiral Healthcare Ltd.,SOCIAL SERVICES RESIDENTIAL,People's Services,Residential Care - Ext Provider,A56114,0
London Borough of Sutton,17/01/2024,50458922,"3,317.31",Affinity Fostering Services Ltd,CHILDREN'S SERVICES - FOSTERING & ADOPTION SERVICES,People's Services,Foster Parents Support,A44110,0
London Borough of Sutton,17/01/2024,50458923,"3,494.01",Affinity Fostering Services Ltd,CHILDREN'S SERVICES - FOSTERING & ADOPTION SERVICES,People's Services,Foster Parents Support,A44110,0
London Borough of Sutton,17/01/2024,50458924,"3,715.35",Affinity Fostering Services Ltd,CHILDREN'S SERVICES - FOSTERING & ADOPTION SERVICES,People's Services,Foster Parents Support,A44110,0
London Borough of Sutton,17/01/2024,50458925,"3,527.49",Affinity Fostering Services Ltd,CHILDREN'S SERVICES - FOSTERING & ADOPTION SERVICES,People's Services,Foster Parents Support,A44110,0
London Borough of Sutton,19/02/2024,50462383,"1,893.62",Agincare Enable Limited,SOCIAL SERVICES RESIDENTIAL,People's Services,One to One Care,A56108,0
London Borough of Sutton,19/02/2024,50462383,"1,893.62",Agincare Enable Limited,SOCIAL SERVICES RESIDENTIAL,People's Services,Supported Living,A56088,0
London Borough of Sutton,19/02/2024,50462383,426.30,Agincare Enable Limited,SOCIAL SERVICES RESIDENTIAL,People's Services,Supported Living,A56088,0
London Borough of Sutton,16/02/2024,50461297,"6,600.00",Leighton House Ltd,SOCIAL SERVICES RESIDENTIAL,People's Services,Nursing Care Short Term,A56026,0
London Borough of Sutton,16/02/2024,50461297,"-3,300.00",Leighton House Ltd,SOCIAL SERVICES RESIDENTIAL,People's Services,Nursing Care - 3rd party top up payment,A56023,0
London Borough of Sutton,16/02/2024,50461375,"7,793.40",Leighton House Ltd,SOCIAL SERVICES RESIDENTIAL,People's Services,Residential Care - Ext Provider,A56114,0
London Borough of Sutton,22/01/2024,20067763,"1,940.00",Alarm,CONFERENCES,Resources,Staff Development And Training,A15022,0
London Borough of Sutton,31/01/2024,20068212,"4,867.25",Albany Housing YP Ltd,CARE LEAVERS,People's Services,Approved Lodgings,A61000,0
London Borough of Sutton,11/02/2024,50459437,"1,092.00",REDACTED - PERSONAL DATA,CHILDREN'S SERVICES - SEN SERVICES,People's Services,Miscellaneous Expenses,A49000,0
London Borough of Sutton,06/02/2024,50457011,500.00,REDACTED - PERSONAL DATA,GRANTS & EX GRATIA PAYMENTS,Environment Housing and Neighbourhoods,"Grants, Contributions & Donations",A47005,0
London Borough of Sutton,06/02/2024,50455722,"168,131.48",All Saints Benhilton C Of E,SCHOOL FUNDS,People's Services,Payments to Schools,A51013,0
London Borough of Sutton,06/02/2024,50455766,"17,055.52",All Saints Benhilton C Of E,SCHOOL FUNDS,People's Services,Payment - Nursery Funding,A51056,0
London Borough of Sutton,06/02/2024,50455814,"1,393.52",All Saints Benhilton C Of E,SCHOOL FUNDS,People's Services,Payment - school supplementary grant,A51062,0
London Borough of Sutton,16/02/2024,50462020,598.00,All Saints Benhilton C Of E,SCHOOL FUNDS,People's Services,Payments to Schools,A51013,0
London Borough of Sutton,16/02/2024,50462032,"23,029.00",All Saints Benhilton C Of E,SCHOOL FUNDS,People's Services,FSM Supplementary,A60036,0
London Borough of Sutton,06/02/2024,50455767,"14,380.15",All Saints Carshalton Primary School,SCHOOL FUNDS,People's Services,Payment - Nursery Funding,A51056,0
London Borough of Sutton,06/02/2024,50455815,"1,174.93",All Saints Carshalton Primary School,SCHOOL FUNDS,People's Services,Payment - school supplementary grant,A51062,0
London Borough of Sutton,16/02/2024,50462044,"22,741.00",All Saints Carshalton Primary School,SCHOOL FUNDS,People's Services,FSM Supplementary,A60036,0
London Borough of Sutton,31/01/2024,50458876,"6,051.51",All4U Fostering Ltd,CHILDREN'S SERVICES - FOSTERING & ADOPTION SERVICES,People's Services,Foster Parents Support,A44110,0
London Borough of Sutton,31/01/2024,50458942,"5,761.35",All4U Fostering Ltd,CHILDREN'S SERVICES - FOSTERING & ADOPTION SERVICES,People's Services,Foster Parents Support,A44110,0
London Borough of Sutton,31/01/2024,50458944,"9,026.18",All4U Fostering Ltd,CHILDREN'S SERVICES - FOSTERING & ADOPTION SERVICES,People's Services,Foster Parents Support,A44110,0
London Borough of Sutton,30/01/2024,50458388,"11,538.00",ALLEN EDWARDS PRIMARY SCHOOL,CHILDREN'S SERVICES - SEN SERVICES,People's Services,Top-up Funding,A51016,0
London Borough of Sutton,31/03/2023,50458389,"19,500.00",ALLEN EDWARDS PRIMARY SCHOOL,CHILDREN'S SERVICES - SEN SERVICES,People's Services,Top-up Funding,A51016,0
London Borough of Sutton,16/02/2024,50461279,"4,806.52",Allied Care (Mhs) Ltd,SOCIAL SERVICES - OTHER,People's Services,Residential Care - Ext Provider,A56114,0
London Borough of Sutton,30/01/2024,20068144,828.18,Allied Publicity Services (Manchester) Ltd,REPROGRAPHICS & PHOTOGRAPHY,Health and Wellbeing,Mobility Scheme for the Disabled,A61015,0
London Borough of Sutton,01/02/2024,20068444,"1,679.77",Allstar Business Solutions,FUEL AND VEHICLE SUPPLIES,Environment Housing and Neighbourhoods,Vehicles -  Fuel,A30015,0
London Borough of Sutton,16/02/2024,50461553,"5,397.60",Allswell Care Services Ltd,SOCIAL SERVICES RESIDENTIAL,People's Services,Residential Care - Ext Provider,A56114,0
London Borough of Sutton,16/02/2024,50461636,"5,397.60",Allswell Care Services Ltd,SOCIAL SERVICES RESIDENTIAL,People's Services,Residential Care - Ext Provider,A56114,0
London Borough of Sutton,16/02/2024,50461776,"6,609.52",Allswell Care Services Ltd,SOCIAL SERVICES RESIDENTIAL,People's Services,Residential Care - Ext Provider,A56114,0
London Borough of Sutton,30/01/2024,50455600,"1,312.74",Alpenbest Limited,SOCIAL SERVICES DAY CARE,People's Services,Home Care Services,A56019,0
London Borough of Sutton,30/01/2024,50455602,"1,328.42",Alpenbest Limited,SOCIAL SERVICES DAY CARE,People's Services,Home Care Services,A56019,0
London Borough of Sutton,30/01/2024,50455604,"2,630.70",Alpenbest Limited,SOCIAL SERVICES DAY CARE,People's Services,Home Care Services,A56019,0
London Borough of Sutton,30/01/2024,50455605,"1,112.26",Alpenbest Limited,SOCIAL SERVICES DAY CARE,People's Services,Home Care Services,A56019,0
London Borough of Sutton,30/01/2024,50455606,"3,514.56",Alpenbest Limited,SOCIAL SERVICES DAY CARE,People's Services,Home Care Services,A56019,0
London Borough of Sutton,30/01/2024,50455606,"1,609.72",Alpenbest Limited,SOCIAL SERVICES DAY CARE,People's Services,Home Care Services,A56019,0
London Borough of Sutton,30/01/2024,50455607,"2,296.04",Alpenbest Limited,SOCIAL SERVICES DAY CARE,People's Services,Home Care Services,A56019,0
London Borough of Sutton,30/01/2024,50455609,693.85,Alpenbest Limited,SOCIAL SERVICES DAY CARE,People's Services,Home Care Services,A56019,0
London Borough of Sutton,30/01/2024,50455610,768.81,Alpenbest Limited,SOCIAL SERVICES DAY CARE,People's Services,Home Care Services,A56019,0
London Borough of Sutton,30/01/2024,50455612,915.25,Alpenbest Limited,SOCIAL SERVICES DAY CARE,People's Services,Home Care Services,A56019,0
London Borough of Sutton,30/01/2024,50455614,"1,098.29",Alpenbest Limited,SOCIAL SERVICES DAY CARE,People's Services,Home Care Services,A56019,0
London Borough of Sutton,30/01/2024,50455617,669.40,Alpenbest Limited,SOCIAL SERVICES DAY CARE,People's Services,Home Care Services,A56019,0
London Borough of Sutton,30/01/2024,50455618,732.20,Alpenbest Limited,SOCIAL SERVICES DAY CARE,People's Services,Home Care Services,A56019,0
London Borough of Sutton,30/01/2024,50455619,"1,591.39",Alpenbest Limited,SOCIAL SERVICES DAY CARE,People's Services,Home Care Services,A56019,0
London Borough of Sutton,30/01/2024,50455620,770.56,Alpenbest Limited,SOCIAL SERVICES DAY CARE,People's Services,Home Care Services,A56019,0
London Borough of Sutton,30/01/2024,50455621,725.23,Alpenbest Limited,SOCIAL SERVICES DAY CARE,People's Services,Home Care Services,A56019,0
London Borough of Sutton,30/01/2024,50455622,923.75,Alpenbest Limited,SOCIAL SERVICES DAY CARE,People's Services,Home Care Services,A56019,0
London Borough of Sutton,30/01/2024,50455623,"1,688.94",Alpenbest Limited,SOCIAL SERVICES DAY CARE,People's Services,Home Care Services,A56019,0
London Borough of Sutton,30/01/2024,50455624,"2,581.96",Alpenbest Limited,SOCIAL SERVICES DAY CARE,People's Services,Home Care Services,A56019,0
London Borough of Sutton,30/01/2024,50455626,753.12,Alpenbest Limited,SOCIAL SERVICES DAY CARE,People's Services,Home Care Services,A56019,0
London Borough of Sutton,30/01/2024,50455628,679.90,Alpenbest Limited,SOCIAL SERVICES DAY CARE,People's Services,Home Care Services,A56019,0
London Borough of Sutton,30/01/2024,50455629,784.50,Alpenbest Limited,SOCIAL SERVICES DAY CARE,People's Services,Home Care Services,A56019,0
London Borough of Sutton,30/01/2024,50455631,"1,284.85",Alpenbest Limited,SOCIAL SERVICES DAY CARE,People's Services,Home Care Services,A56019,0
London Borough of Sutton,30/01/2024,50455632,"3,011.92",Alpenbest Limited,SOCIAL SERVICES DAY CARE,People's Services,Home Care Services,A56019,0
London Borough of Sutton,30/01/2024,50455632,836.12,Alpenbest Limited,SOCIAL SERVICES DAY CARE,People's Services,Home Care Services,A56019,0
London Borough of Sutton,30/01/2024,50455633,925.71,Alpenbest Limited,SOCIAL SERVICES DAY CARE,People's Services,Home Care Services,A56019,0
London Borough of Sutton,30/01/2024,50457249,939.61,Alpenbest Limited,SOCIAL SERVICES DAY CARE,People's Services,Home Care Services,A56019,0
London Borough of Sutton,01/02/2024,50457254,753.07,Alpenbest Limited,SOCIAL SERVICES DAY CARE,People's Services,Home Care Services,A56019,0
London Borough of Sutton,08/01/2024,50457263,"1,337.06",Alpenbest Limited,SOCIAL SERVICES DAY CARE,People's Services,Home Care Services,A56019,0
London Borough of Sutton,30/01/2024,50457264,"1,330.09",Alpenbest Limited,SOCIAL SERVICES DAY CARE,People's Services,Home Care Services,A56019,0
London Borough of Sutton,30/01/2024,50461877,643.29,Alpenbest Limited,SOCIAL SERVICES DAY CARE,People's Services,Home Care Services,A56019,0
London Borough of Sutton,06/02/2024,50457005,500.00,REDACTED - PERSONAL DATA,GRANTS & EX GRATIA PAYMENTS,Environment Housing and Neighbourhoods,"Grants, Contributions & Donations",A47005,0
London Borough of Sutton,06/02/2024,50456794,679.22,REDACTED - PERSONAL DATA,GRANTS & EX GRATIA PAYMENTS,People's Services,Payment - Nursery Funding,A51056,0
London Borough of Sutton,06/02/2024,50456805,"1,999.41",REDACTED - PERSONAL DATA,CHILDMINDERS START UP GRANT,People's Services,Payment - Nursery Funding,A51056,0
London Borough of Sutton,11/02/2024,50459397,"1,601.70",REDACTED - PERSONAL DATA,CHILDREN'S SERVICES - SEN SERVICES,People's Services,Miscellaneous Expenses,A49000,0
London Borough of Sutton,06/02/2024,50456988,500.00,REDACTED - PERSONAL DATA,GRANTS & EX GRATIA PAYMENTS,Environment Housing and Neighbourhoods,"Grants, Contributions & Donations",A47005,0
London Borough of Sutton,23/01/2024,20069562,"1,096.00",REDACTED - PERSONAL DATA,PLS LANDLORDS,Environment Housing and Neighbourhoods,Temporary Protection - Homeless Persons,A62028,0
London Borough of Sutton,23/02/2024,20069563,"1,096.00",REDACTED - PERSONAL DATA,PLS LANDLORDS,Environment Housing and Neighbourhoods,Temporary Protection - Homeless Persons,A62028,0
London Borough of Sutton,06/02/2024,50456839,999.70,REDACTED - PERSONAL DATA,GRANTS & EX GRATIA PAYMENTS,People's Services,Payment - Nursery Funding,A51056,0
London Borough of Sutton,02/02/2024,50458079,"1,254.00",Lexwin Trading,SOCIAL SERVICES DAY CARE,People's Services,Home Care Services,A56019,0
London Borough of Sutton,02/02/2024,50458081,752.40,Lexwin Trading,SOCIAL SERVICES DAY CARE,People's Services,Home Care Services,A56019,0
London Borough of Sutton,02/02/2024,50458082,658.35,Lexwin Trading,SOCIAL SERVICES DAY CARE,People's Services,Home Care Services,A56019,0
London Borough of Sutton,02/02/2024,50458091,532.95,Lexwin Trading,SOCIAL SERVICES DAY CARE,People's Services,Home Care Services,A56019,0
London Borough of Sutton,02/02/2024,50458159,"2,706.55",Lexwin Trading,SOCIAL SERVICES DAY CARE,People's Services,Home Care Services,A56019,0
London Borough of Sutton,02/02/2024,50458160,961.40,Lexwin Trading,SOCIAL SERVICES DAY CARE,People's Services,Home Care Services,A56019,0
London Borough of Sutton,02/02/2024,50458161,276.88,Lexwin Trading,SOCIAL SERVICES DAY CARE,People's Services,Home Care Services,A56019,0
London Borough of Sutton,02/02/2024,50458161,365.80,Lexwin Trading,SOCIAL SERVICES DAY CARE,People's Services,Home Care Services,A56019,0
London Borough of Sutton,02/02/2024,50458162,658.38,Lexwin Trading,SOCIAL SERVICES DAY CARE,People's Services,Home Care Services,A56019,0
London Borough of Sutton,02/02/2024,50458163,679.25,Lexwin Trading,SOCIAL SERVICES DAY CARE,People's Services,Home Care Services,A56019,0
London Borough of Sutton,02/02/2024,50458196,"2,633.68",Lexwin Trading,SOCIAL SERVICES DAY CARE,People's Services,Home Care Services,A56019,0
London Borough of Sutton,02/02/2024,50459255,"2,560.25",Lexwin Trading,SOCIAL SERVICES DAY CARE,People's Services,Home Care Services,A56019,0
London Borough of Sutton,02/02/2024,50459268,846.45,Lexwin Trading,SOCIAL SERVICES DAY CARE,People's Services,Home Care Services,A56019,0
London Borough of Sutton,02/02/2024,50459278,794.30,Lexwin Trading,SOCIAL SERVICES DAY CARE,People's Services,Home Care Services,A56019,0
London Borough of Sutton,02/02/2024,50459280,893.48,Lexwin Trading,SOCIAL SERVICES DAY CARE,People's Services,Home Care Services,A56019,0
London Borough of Sutton,02/02/2024,50459281,"1,316.84",Lexwin Trading,SOCIAL SERVICES DAY CARE,People's Services,Home Care Services,A56019,0
London Borough of Sutton,02/02/2024,50461861,"2,341.92",Lexwin Trading,SOCIAL SERVICES DAY CARE,People's Services,Home Care Services,A56019,0
London Borough of Sutton,02/02/2024,50461861,"1,169.28",Lexwin Trading,SOCIAL SERVICES DAY CARE,People's Services,Home Care Services,A56019,0
London Borough of Sutton,31/01/2024,50458869,"3,556.98",Ansacare Fostering Agency Ltd,CHILDREN'S SERVICES - FOSTERING & ADOPTION SERVICES,People's Services,Foster Parents Support,A44110,0
London Borough of Sutton,06/02/2024,50456995,500.00,REDACTED - PERSONAL DATA,GRANTS & EX GRATIA PAYMENTS,Environment Housing and Neighbourhoods,"Grants, Contributions & Donations",A47005,0
London Borough of Sutton,09/01/2024,20069216,"86,427.42",Aon UK Limited,FINANCIAL / INSURANCE INSTNS,Resources,General Insurance (Excl Premises & Transport),A44260,0
London Borough of Sutton,30/11/2023,20068064,"8,636.08",Apetito Ltd,FOOD & DRINK,Health and Wellbeing,Catering Contract - Frozen Meals,A41001,0
London Borough of Sutton,31/01/2024,20068427,"7,774.31",Apetito Ltd,FOOD & DRINK,Health and Wellbeing,Catering Contract - Frozen Meals,A41001,0
London Borough of Sutton,01/01/2024,20068290,"9,762.00",Apex Housing Solutions Ltd,SOCIAL SERVICES DAY CARE,Environment Housing and Neighbourhoods,Bed & Breakfast,A56000,0
London Borough of Sutton,30/01/2024,20068148,"31,760.00",Architecture PLB Ltd,CONSULTING ARCHITECTS ENGINEER,HRA,External Fees and Consultants,C20000,0
London Borough of Sutton,16/02/2024,50461316,"5,550.00",Aria Healthcare Group Ltd,SOCIAL SERVICES RESIDENTIAL,People's Services,Nursing Care - Ext Provider,A56025,0
London Borough of Sutton,16/02/2024,50461316,-659.13,Aria Healthcare Group Ltd,SOCIAL SERVICES RESIDENTIAL,People's Services,Nursing Care - 3rd party top up payment,A56023,0
London Borough of Sutton,31/01/2024,50458405,"5,154.66",Ark Bolingbroke Academy,CHILDREN'S SERVICES - SEN SERVICES,People's Services,Top-up Funding,A51016,0
London Borough of Sutton,13/12/2023,20068226,"1,453.28",Arthur Rai Medical Services Ltd,TEMP STAFF & CONSULTANCY,Health and Wellbeing,Agency Staff - Other,A10505,0
London Borough of Sutton,20/12/2023,20068227,"1,711.12",Arthur Rai Medical Services Ltd,TEMP STAFF & CONSULTANCY,Health and Wellbeing,Agency Staff - Other,A10505,0
London Borough of Sutton,23/02/2023,20070517,"3,600.00",Arun Estate Agencies LTD,SUNDRY SUPPLIER - HOUSING,Environment Housing and Neighbourhoods,PSL Payments To Landlords,A22031,0
London Borough of Sutton,03/10/2023,50462248,"1,630.28",Ashlong House Ltd,SOCIAL SERVICES RESIDENTIAL,People's Services,Supported Living,A56088,0
London Borough of Sutton,06/10/2023,50462249,"1,108.44",Ashlong House Ltd,SOCIAL SERVICES RESIDENTIAL,People's Services,Supported Living,A56088,0
London Borough of Sutton,31/10/2023,50462250,"1,630.28",Ashlong House Ltd,SOCIAL SERVICES RESIDENTIAL,People's Services,Supported Living,A56088,0
London Borough of Sutton,31/10/2023,50462251,"1,108.44",Ashlong House Ltd,SOCIAL SERVICES RESIDENTIAL,People's Services,Supported Living,A56088,0
London Borough of Sutton,31/10/2023,50462261,"1,108.44",Ashlong House Ltd,SOCIAL SERVICES RESIDENTIAL,People's Services,Supported Living,A56088,0
London Borough of Sutton,30/11/2023,50462262,"1,630.28",Ashlong House Ltd,SOCIAL SERVICES RESIDENTIAL,People's Services,Supported Living,A56088,0
London Borough of Sutton,30/11/2023,50462263,"1,108.44",Ashlong House Ltd,SOCIAL SERVICES RESIDENTIAL,People's Services,Supported Living,A56088,0
London Borough of Sutton,31/10/2023,50462264,"1,630.28",Ashlong House Ltd,SOCIAL SERVICES RESIDENTIAL,People's Services,Supported Living,A56088,0
London Borough of Sutton,21/02/2024,50464015,"1,630.28",Ashlong House Ltd,SOCIAL SERVICES RESIDENTIAL,People's Services,Supported Living,A56088,0
London Borough of Sutton,01/02/2024,50464021,"1,108.44",Ashlong House Ltd,SOCIAL SERVICES RESIDENTIAL,People's Services,Supported Living,A56088,0
London Borough of Sutton,01/02/2024,50464022,"1,108.44",Ashlong House Ltd,SOCIAL SERVICES RESIDENTIAL,People's Services,Supported Living,A56088,0
London Borough of Sutton,16/02/2024,50461315,"3,821.24",Ashton Care Homes Ltd.,SOCIAL SERVICES RESIDENTIAL,People's Services,Nursing Care - Ext Provider,A56025,0
London Borough of Sutton,16/02/2024,50461315,-836.76,Ashton Care Homes Ltd.,SOCIAL SERVICES RESIDENTIAL,People's Services,Nursing Care - 3rd party top up payment,A56023,0
London Borough of Sutton,16/02/2024,50461382,"3,980.00",Ashurst Lodge Healthcare Ltd,CHILDREN'S SERVICES - RESIDENTIAL,People's Services,Residential Care - Ext Provider,A56114,0
London Borough of Sutton,16/02/2024,50461382,"-1,990.00",Ashurst Lodge Healthcare Ltd,CHILDREN'S SERVICES - RESIDENTIAL,People's Services,Nursing Care - 3rd party top up payment,A56023,0
London Borough of Sutton,16/02/2024,50461277,"6,478.84",Aspen Place,SOCIAL SERVICES DAY CARE,People's Services,Nursing Care - Ext Provider,A56025,0
London Borough of Sutton,16/02/2024,50461277,-878.84,Aspen Place,SOCIAL SERVICES DAY CARE,People's Services,Nursing Care - 3rd party top up payment,A56023,0
London Borough of Sutton,16/02/2024,50461403,"5,699.00",Aspens Charities,SOCIAL SERVICES RESIDENTIAL,People's Services,Residential Care - Ext Provider,A56114,0
London Borough of Sutton,19/02/2024,50462308,612.48,Aspens Charities,SOCIAL SERVICES RESIDENTIAL,People's Services,Supported Living,A56088,0
London Borough of Sutton,19/02/2024,50462308,"7,928.68",Aspens Charities,SOCIAL SERVICES RESIDENTIAL,People's Services,Supported Living,A56088,0
London Borough of Sutton,19/02/2024,50462308,"1,495.53",Aspens Charities,SOCIAL SERVICES RESIDENTIAL,People's Services,Supported Living,A56088,0
London Borough of Sutton,31/01/2024,50455563,"2,480.00",Aspirations Care Ltd,SOCIAL SERVICES DAY CARE,People's Services,Home Care Services,A56019,0
London Borough of Sutton,31/01/2024,50455563,"9,074.94",Aspirations Care Ltd,SOCIAL SERVICES DAY CARE,People's Services,Home Care Services,A56019,0
London Borough of Sutton,02/02/2024,50458124,"1,317.32",Aspire Care Services Ltd,SOCIAL SERVICES DAY CARE,People's Services,Home Care Services,A56019,0
London Borough of Sutton,02/02/2024,50458185,"2,049.20",Aspire Care Services Ltd,SOCIAL SERVICES DAY CARE,People's Services,Home Care Services,A56019,0
London Borough of Sutton,02/02/2024,50458197,731.84,Aspire Care Services Ltd,SOCIAL SERVICES DAY CARE,People's Services,Home Care Services,A56019,0
London Borough of Sutton,02/02/2024,50461875,355.32,Aspire Care Services Ltd,SOCIAL SERVICES DAY CARE,People's Services,Home Care Services,A56019,0
London Borough of Sutton,02/02/2024,50461875,"2,007.50",Aspire Care Services Ltd,SOCIAL SERVICES DAY CARE,People's Services,Home Care Services,A56019,0
London Borough of Sutton,19/02/2024,50464403,"1,317.32",Aspire Care Services Ltd,SOCIAL SERVICES DAY CARE,People's Services,Home Care Services,A56019,0
London Borough of Sutton,19/02/2024,50464412,"2,049.20",Aspire Care Services Ltd,SOCIAL SERVICES DAY CARE,People's Services,Home Care Services,A56019,0
London Borough of Sutton,19/02/2024,50464416,543.66,Aspire Care Services Ltd,SOCIAL SERVICES DAY CARE,People's Services,Home Care Services,A56019,0
London Borough of Sutton,19/02/2024,50464418,731.64,Aspire Care Services Ltd,SOCIAL SERVICES DAY CARE,People's Services,Home Care Services,A56019,0
London Borough of Sutton,19/02/2024,50464418,878.44,Aspire Care Services Ltd,SOCIAL SERVICES DAY CARE,People's Services,Home Care Services,A56019,0
London Borough of Sutton,16/02/2024,50461330,"4,560.00",Aster Grove,SOCIAL SERVICES RESIDENTIAL,People's Services,Nursing Care - Ext Provider,A56025,0
London Borough of Sutton,16/02/2024,50461330,-878.84,Aster Grove,SOCIAL SERVICES RESIDENTIAL,People's Services,Nursing Care - 3rd party top up payment,A56023,0
London Borough of Sutton,06/02/2024,50458967,"24,312.86",Athena Housing and Support Ltd,CHILDREN'S SERVICES - RESIDENTIAL,People's Services,Residential Care-Children,A56115,0
London Borough of Sutton,06/02/2024,50456796,"1,273.54",Aunty Connies Childcare,GRANTS & EX GRATIA PAYMENTS,People's Services,Payment - Nursery Funding,A51056,0
London Borough of Sutton,16/02/2024,50461391,"7,040.00",Autism & Aspergers Care Services,SOCIAL SERVICES RESIDENTIAL,People's Services,Residential Care - Ext Provider,A56114,0
London Borough of Sutton,12/02/2024,50461265,"41,695.00",Avance Ltd,CHILDREN'S SERVICES - FOSTERING & ADOPTION SERVICES,People's Services,Residential Care-Children,A56115,0
London Borough of Sutton,29/01/2024,50455573,721.74,Avant Healthcare Services Ltd.,SOCIAL SERVICES DAY CARE,People's Services,Home Care Services,A56019,0
London Borough of Sutton,29/01/2024,50455575,"1,045.99",Avant Healthcare Services Ltd.,SOCIAL SERVICES DAY CARE,People's Services,Home Care Services,A56019,0
London Borough of Sutton,29/01/2024,50455576,"1,171.24",Avant Healthcare Services Ltd.,SOCIAL SERVICES DAY CARE,People's Services,Home Care Services,A56019,0
London Borough of Sutton,29/01/2024,50455579,"1,317.96",Avant Healthcare Services Ltd.,SOCIAL SERVICES DAY CARE,People's Services,Home Care Services,A56019,0
London Borough of Sutton,29/01/2024,50455580,732.20,Avant Healthcare Services Ltd.,SOCIAL SERVICES DAY CARE,People's Services,Home Care Services,A56019,0
London Borough of Sutton,29/01/2024,50455581,"1,307.50",Avant Healthcare Services Ltd.,SOCIAL SERVICES DAY CARE,People's Services,Home Care Services,A56019,0
London Borough of Sutton,29/01/2024,50455582,"1,066.92",Avant Healthcare Services Ltd.,SOCIAL SERVICES DAY CARE,People's Services,Home Care Services,A56019,0
London Borough of Sutton,29/01/2024,50455583,962.32,Avant Healthcare Services Ltd.,SOCIAL SERVICES DAY CARE,People's Services,Home Care Services,A56019,0
London Borough of Sutton,29/01/2024,50455584,742.66,Avant Healthcare Services Ltd.,SOCIAL SERVICES DAY CARE,People's Services,Home Care Services,A56019,0
London Borough of Sutton,29/01/2024,50455598,611.91,Avant Healthcare Services Ltd.,SOCIAL SERVICES DAY CARE,People's Services,Home Care Services,A56019,0
London Borough of Sutton,06/12/2023,50458997,559.61,Avant Healthcare Services Ltd.,SOCIAL SERVICES DAY CARE,People's Services,Home Care Services,A56019,0
London Borough of Sutton,06/02/2024,50455768,"18,162.15",Avenue Primary Acadamy,SCHOOL FUNDS,People's Services,Payment - Nursery Funding,A51056,0
London Borough of Sutton,06/02/2024,50455811,"4,816.71",Avenue Primary Acadamy,SCHOOL FUNDS,People's Services,Pupil Growth,A51014,0
London Borough of Sutton,06/02/2024,50455816,"1,420.85",Avenue Primary Acadamy,SCHOOL FUNDS,People's Services,Payment - school supplementary grant,A51062,0
London Borough of Sutton,13/02/2024,50460448,"1,000.00",Avenue Primary Acadamy,SCHOOL FUNDS,People's Services,Equipment,A61013,0
London Borough of Sutton,13/02/2024,50460461,"1,680.00",Avenue Primary Acadamy,SCHOOL FUNDS,People's Services,Special Educational Needs,A51015,0
London Borough of Sutton,14/02/2024,50460463,"25,749.92",Avenue Primary Acadamy,SCHOOL FUNDS,People's Services,Top-up Funding,A51016,0
London Borough of Sutton,14/02/2024,50460463,"-2,905.25",Avenue Primary Acadamy,SCHOOL FUNDS,People's Services,Top-up Funding,A51016,0
London Borough of Sutton,16/02/2024,50462054,"56,325.50",Avenue Primary Acadamy,SCHOOL FUNDS,People's Services,FSM Supplementary,A60036,0
London Borough of Sutton,21/02/2024,50462445,"-56,325.50",Avenue Primary Acadamy,SCHOOL FUNDS,People's Services,FSM Supplementary,A60036,0
London Borough of Sutton,21/02/2024,50462483,"56,325.50",Avenue Primary Acadamy,SCHOOL FUNDS,People's Services,FSM Supplementary,A60036,0
London Borough of Sutton,27/02/2024,50466035,"140,000.00",Avenue Primary Acadamy,SCHOOL FUNDS,People's Services,Place extra funding,A56124,0
London Borough of Sutton,19/02/2024,50462267,"13,224.00",Ayai Care Limited,SOCIAL SERVICES DAY CARE,People's Services,Supported Living,A56088,0
London Borough of Sutton,19/02/2024,50462288,"4,532.70",Ayai Care Limited,SOCIAL SERVICES DAY CARE,People's Services,Supported Living,A56088,0
London Borough of Sutton,19/02/2024,50462288,"2,264.90",Ayai Care Limited,SOCIAL SERVICES DAY CARE,People's Services,Supported Living,A56088,0
London Borough of Sutton,19/02/2024,50462288,390.92,Ayai Care Limited,SOCIAL SERVICES DAY CARE,People's Services,Supported Living,A56088,0
London Borough of Sutton,19/02/2024,50462362,"12,726.86",Ayai Care Limited,SOCIAL SERVICES DAY CARE,People's Services,Supported Living,A56088,0
London Borough of Sutton,01/01/2024,50458975,"29,627.14",Back on track children's services SE Ltd,CHILDREN'S SERVICE - OTHER,People's Services,Residential Care-Children,A56115,0
London Borough of Sutton,28/01/2024,20068074,"3,907.85",Back on Track Housing Ltd,SOCIAL SERVICES - OTHER,People's Services,Approved Lodgings,A61000,0
London Borough of Sutton,28/01/2024,50458910,276.79,Back on Track Housing Ltd,SOCIAL SERVICES - OTHER,People's Services,Approved Lodgings,A61000,0
London Borough of Sutton,28/01/2024,50458910,"6,199.99",Back on Track Housing Ltd,SOCIAL SERVICES - OTHER,People's Services,Approved Lodgings,A61000,0
London Borough of Sutton,29/01/2024,50458933,276.79,Back on Track Housing Ltd,SOCIAL SERVICES - OTHER,People's Services,Approved Lodgings,A61000,0
London Borough of Sutton,29/01/2024,50458933,"5,757.13",Back on Track Housing Ltd,SOCIAL SERVICES - OTHER,People's Services,Approved Lodgings,A61000,0
London Borough of Sutton,30/01/2024,50458948,276.79,Back on Track Housing Ltd,SOCIAL SERVICES - OTHER,People's Services,Approved Lodgings,A61000,0
London Borough of Sutton,30/01/2024,50458948,"5,857.14",Back on Track Housing Ltd,SOCIAL SERVICES - OTHER,People's Services,Approved Lodgings,A61000,0
London Borough of Sutton,06/02/2024,50455769,"20,607.05",Bandon Hill Primary School (Academy),SCHOOL FUNDS,People's Services,Payment - Nursery Funding,A51056,0
London Borough of Sutton,06/02/2024,50455817,"1,612.12",Bandon Hill Primary School (Academy),SCHOOL FUNDS,People's Services,Payment - school supplementary grant,A51062,0
London Borough of Sutton,14/02/2024,50460482,"8,751.83",Bandon Hill Primary School (Academy),SCHOOL FUNDS,People's Services,Top-up Funding,A51016,0
London Borough of Sutton,16/02/2024,50462055,"22,867.00",Bandon Hill Primary School (Academy),SCHOOL FUNDS,People's Services,FSM Supplementary,A60036,0
London Borough of Sutton,31/01/2024,50458969,"4,774.00",Banya,SOCIAL SERVICES RESIDENTIAL,People's Services,Foster Parents Support,A44110,0
London Borough of Sutton,16/02/2024,50461425,"4,096.12",Barchester Healthcare Homes Ltd,SOCIAL SERVICES RESIDENTIAL,People's Services,Nursing Care - Ext Provider,A56025,0
London Borough of Sutton,16/02/2024,50461425,-878.84,Barchester Healthcare Homes Ltd,SOCIAL SERVICES RESIDENTIAL,People's Services,Nursing Care - 3rd party top up payment,A56023,0
London Borough of Sutton,14/02/2024,20069382,"9,037.37",Barnardo's,CHILDREN'S SERVICES - RESIDENTIAL,People's Services,Housing and Support - Generic Services,A62013,0
London Borough of Sutton,15/02/2024,20069432,"25,015.50",Barnardo's,CHILDREN'S SERVICES - RESIDENTIAL,People's Services,Approved Lodgings,A61000,0
London Borough of Sutton,29/01/2024,20068099,897.20,Bauer Analysis,CONSTRUCTION INDUSTRY,Environment Housing and Neighbourhoods,Payments to Contractors,C14000,0
London Borough of Sutton,06/02/2024,50455716,"108,196.24",Beddington Infants School,SCHOOL FUNDS,People's Services,Payments to Schools,A51013,0
London Borough of Sutton,06/02/2024,50455771,"15,274.83",Beddington Infants School,SCHOOL FUNDS,People's Services,Payment - Nursery Funding,A51056,0
London Borough of Sutton,06/02/2024,50455819,"1,194.97",Beddington Infants School,SCHOOL FUNDS,People's Services,Payment - school supplementary grant,A51062,0
London Borough of Sutton,14/02/2024,50460465,"-2,632.05",Beddington Infants School,SCHOOL FUNDS,People's Services,Top-up Funding,A51016,0
London Borough of Sutton,06/02/2024,50455772,"16,066.51",Beddington Park Primary (Academy),SCHOOL FUNDS,People's Services,Payment - Nursery Funding,A51056,0
London Borough of Sutton,06/02/2024,50455820,"1,256.90",Beddington Park Primary (Academy),SCHOOL FUNDS,People's Services,Payment - school supplementary grant,A51062,0
London Borough of Sutton,16/02/2024,50462041,"17,080.00",Beddington Park Primary (Academy),SCHOOL FUNDS,People's Services,FSM Supplementary,A60036,0
London Borough of Sutton,19/02/2024,50462396,"6,193.58",Beechcroft Care Limited,SOCIAL SERVICES RESIDENTIAL,People's Services,Supported Living,A56088,0
London Borough of Sutton,19/02/2024,50462396,761.25,Beechcroft Care Limited,SOCIAL SERVICES RESIDENTIAL,People's Services,One to One Care,A56108,0
London Borough of Sutton,02/02/2024,20068449,"7,327.94",Beeches Tree Care,AGRICULTURAL & ESTATE SERVICES,Environment Housing and Neighbourhoods,Maintenance of trees,A28003,0
London Borough of Sutton,07/02/2024,20068854,"5,174.17",Beeches Tree Care,AGRICULTURAL & ESTATE SERVICES,Environment Housing and Neighbourhoods,Highway Trees - Maintenance,A28005,0
London Borough of Sutton,08/02/2024,20069003,"2,108.95",Beeches Tree Care,AGRICULTURAL & ESTATE SERVICES,Environment Housing and Neighbourhoods,Highway Trees - Maintenance,A28005,0
London Borough of Sutton,09/02/2024,20069020,"2,381.67",Beeches Tree Care,AGRICULTURAL & ESTATE SERVICES,Environment Housing and Neighbourhoods,Highway Trees - Maintenance,A28005,0
London Borough of Sutton,28/11/2023,20069119,"4,859.32",Beeches Tree Care,AGRICULTURAL & ESTATE SERVICES,Environment Housing and Neighbourhoods,Landscaping,C20019,0
London Borough of Sutton,25/01/2024,20069264,530.40,Beeches Tree Care,AGRICULTURAL & ESTATE SERVICES,Environment Housing and Neighbourhoods,Parks and Open Spaces - Trees Maintenance,A56128,0
London Borough of Sutton,25/01/2024,20069265,852.60,Beeches Tree Care,AGRICULTURAL & ESTATE SERVICES,Environment Housing and Neighbourhoods,Highway Trees - Maintenance,A28005,0
London Borough of Sutton,20/02/2024,20069747,"8,375.50",Beeches Tree Care,AGRICULTURAL & ESTATE SERVICES,Resources,Landscaping,C20019,0
London Borough of Sutton,20/02/2024,20069750,"6,706.98",Beeches Tree Care,AGRICULTURAL & ESTATE SERVICES,Environment Housing and Neighbourhoods,Landscaping,C20019,0
London Borough of Sutton,20/02/2024,20069756,485.34,Beeches Tree Care,AGRICULTURAL & ESTATE SERVICES,Environment Housing and Neighbourhoods,Highway Trees - Maintenance,A28005,0
London Borough of Sutton,20/02/2024,20069762,"3,000.00",Beeches Tree Care,AGRICULTURAL & ESTATE SERVICES,Environment Housing and Neighbourhoods,Payments to Contractors,C14000,0
London Borough of Sutton,21/02/2024,20069845,"2,831.25",Beeches Tree Care,AGRICULTURAL & ESTATE SERVICES,Environment Housing and Neighbourhoods,Highway Trees - Maintenance,A28005,0
London Borough of Sutton,22/02/2024,20069900,"1,200.00",Beeches Tree Care,AGRICULTURAL & ESTATE SERVICES,Resources,Payments to Contractors,C14000,0
London Borough of Sutton,22/02/2024,20069901,"2,976.29",Beeches Tree Care,AGRICULTURAL & ESTATE SERVICES,Environment Housing and Neighbourhoods,Maintenance of trees,A28003,0
London Borough of Sutton,22/02/2024,20069914,585.90,Beeches Tree Care,AGRICULTURAL & ESTATE SERVICES,Environment Housing and Neighbourhoods,Maintenance of trees,A28003,0
London Borough of Sutton,22/02/2024,20069916,"3,906.00",Beeches Tree Care,AGRICULTURAL & ESTATE SERVICES,Environment Housing and Neighbourhoods,Maintenance of trees,A28003,0
London Borough of Sutton,01/02/2024,50460455,"11,469.76",Aurora Poppyfield School,CHILDREN'S SERVICES - SEN SERVICES,People's Services,Independent School Fees,A56002,0
London Borough of Sutton,01/02/2024,50460456,"11,469.76",Aurora Poppyfield School,CHILDREN'S SERVICES - SEN SERVICES,People's Services,Independent School Fees,A56002,0
London Borough of Sutton,01/02/2024,50460457,"22,012.67",Aurora Poppyfield School,CHILDREN'S SERVICES - SEN SERVICES,People's Services,Independent School Fees,A56002,0
London Borough of Sutton,01/02/2024,50460458,"22,012.67",Aurora Poppyfield School,CHILDREN'S SERVICES - SEN SERVICES,People's Services,Independent School Fees,A56002,0
London Borough of Sutton,01/02/2024,50460459,"22,012.67",Aurora Poppyfield School,CHILDREN'S SERVICES - SEN SERVICES,People's Services,Independent School Fees,A56002,0
London Borough of Sutton,01/02/2024,50460460,"22,012.67",Aurora Poppyfield School,CHILDREN'S SERVICES - SEN SERVICES,People's Services,Independent School Fees,A56002,0
London Borough of Sutton,01/02/2024,20068631,"2,400.00",Benhill & Belmont GP Centre,SOCIAL SERVICES - OTHER,Health and Wellbeing,Hire of Rooms,A22010,0
London Borough of Sutton,06/02/2024,50456880,636.77,REDACTED - PERSONAL DATA,CHILDMINDERS START UP GRANT,People's Services,Payment - Nursery Funding,A51056,0
London Borough of Sutton,16/02/2024,50461460,"7,781.36",Bespoke Care Support Ltd,SOCIAL SERVICES - OTHER,People's Services,Nursing Care - 3rd party top up payment,A56023,0
London Borough of Sutton,16/02/2024,50461516,"-3,591.08",Bespoke Care Support Ltd,SOCIAL SERVICES - OTHER,People's Services,Nursing Care - 3rd party top up payment,A56023,0
London Borough of Sutton,16/02/2024,50461681,"-23,885.71",Bespoke Care Support Ltd,SOCIAL SERVICES - OTHER,People's Services,Nursing Care - 3rd party top up payment,A56023,0
London Borough of Sutton,19/02/2024,50462333,"-18,063.87",Bespoke Care Support Ltd,SOCIAL SERVICES - OTHER,People's Services,Supported Living,A56088,0
London Borough of Sutton,19/02/2024,50462334,"47,928.57",Bespoke Care Support Ltd,SOCIAL SERVICES - OTHER,People's Services,Supported Living,A56088,0
London Borough of Sutton,19/02/2024,50462335,"16,757.14",Bespoke Care Support Ltd,SOCIAL SERVICES - OTHER,People's Services,Supported Living,A56088,0
London Borough of Sutton,19/02/2024,50462336,"-10,428.57",Bespoke Care Support Ltd,SOCIAL SERVICES - OTHER,People's Services,Supported Living,A56088,0
London Borough of Sutton,19/02/2024,50462394,"3,728.58",Bespoke Care Support Ltd,SOCIAL SERVICES - OTHER,People's Services,Supported Living,A56088,0
London Borough of Sutton,28/01/2024,50457316,"1,024.49",Best at Home Domiciliary Care Services Ltd,SOCIAL SERVICES DAY CARE,People's Services,Home Care Services,A56019,0
London Borough of Sutton,28/01/2024,50457325,731.64,Best at Home Domiciliary Care Services Ltd,SOCIAL SERVICES DAY CARE,People's Services,Home Care Services,A56019,0
London Borough of Sutton,28/01/2024,50457367,"3,512.88",Best at Home Domiciliary Care Services Ltd,SOCIAL SERVICES DAY CARE,People's Services,Home Care Services,A56019,0
London Borough of Sutton,28/01/2024,50457383,742.04,Best at Home Domiciliary Care Services Ltd,SOCIAL SERVICES DAY CARE,People's Services,Home Care Services,A56019,0
London Borough of Sutton,28/01/2024,50457431,773.47,Best at Home Domiciliary Care Services Ltd,SOCIAL SERVICES DAY CARE,People's Services,Home Care Services,A56019,0
London Borough of Sutton,04/02/2024,50460192,"1,024.49",Best at Home Domiciliary Care Services Ltd,SOCIAL SERVICES DAY CARE,People's Services,Home Care Services,A56019,0
London Borough of Sutton,04/02/2024,50460199,731.64,Best at Home Domiciliary Care Services Ltd,SOCIAL SERVICES DAY CARE,People's Services,Home Care Services,A56019,0
London Borough of Sutton,04/02/2024,50460210,"3,512.88",Best at Home Domiciliary Care Services Ltd,SOCIAL SERVICES DAY CARE,People's Services,Home Care Services,A56019,0
London Borough of Sutton,04/02/2024,50460214,742.04,Best at Home Domiciliary Care Services Ltd,SOCIAL SERVICES DAY CARE,People's Services,Home Care Services,A56019,0
London Borough of Sutton,04/02/2024,50460224,773.47,Best at Home Domiciliary Care Services Ltd,SOCIAL SERVICES DAY CARE,People's Services,Home Care Services,A56019,0
London Borough of Sutton,11/02/2024,50464444,"1,024.49",Best at Home Domiciliary Care Services Ltd,SOCIAL SERVICES DAY CARE,People's Services,Home Care Services,A56019,0
London Borough of Sutton,11/02/2024,50464455,"3,512.88",Best at Home Domiciliary Care Services Ltd,SOCIAL SERVICES DAY CARE,People's Services,Home Care Services,A56019,0
London Borough of Sutton,11/02/2024,50464474,742.04,Best at Home Domiciliary Care Services Ltd,SOCIAL SERVICES DAY CARE,People's Services,Home Care Services,A56019,0
London Borough of Sutton,11/02/2024,50464530,773.47,Best at Home Domiciliary Care Services Ltd,SOCIAL SERVICES DAY CARE,People's Services,Home Care Services,A56019,0
London Borough of Sutton,11/02/2024,50464554,731.64,Best at Home Domiciliary Care Services Ltd,SOCIAL SERVICES DAY CARE,People's Services,Home Care Services,A56019,0
London Borough of Sutton,18/02/2024,50465718,"1,024.49",Best at Home Domiciliary Care Services Ltd,SOCIAL SERVICES DAY CARE,People's Services,Home Care Services,A56019,0
London Borough of Sutton,18/02/2024,50465727,731.64,Best at Home Domiciliary Care Services Ltd,SOCIAL SERVICES DAY CARE,People's Services,Home Care Services,A56019,0
London Borough of Sutton,18/02/2024,50465746,"3,512.88",Best at Home Domiciliary Care Services Ltd,SOCIAL SERVICES DAY CARE,People's Services,Home Care Services,A56019,0
London Borough of Sutton,18/02/2024,50465758,742.04,Best at Home Domiciliary Care Services Ltd,SOCIAL SERVICES DAY CARE,People's Services,Home Care Services,A56019,0
London Borough of Sutton,18/02/2024,50465802,773.47,Best at Home Domiciliary Care Services Ltd,SOCIAL SERVICES DAY CARE,People's Services,Home Care Services,A56019,0
London Borough of Sutton,31/01/2024,20068546,"5,040.00",Bestcourt UK Ltd,ACCOMMODATION BED & BREAKFAST,Environment Housing and Neighbourhoods,Bed & Breakfast,A56000,0
London Borough of Sutton,11/01/2024,50458950,"16,850.57",Better Families Social Work Services Ltd,SUNDRY SUPPLIER - SOCIAL SERVICES,People's Services,Residential Care-Children,A56115,0
London Borough of Sutton,19/02/2024,50462326,"4,350.00",BETTER LIFE SUPPORTED LIVING LIMITED,SOCIAL SERVICES RESIDENTIAL,People's Services,One to One Care,A56108,0
London Borough of Sutton,31/10/2023,20064818,"12,635.20",Bevan Brittan LLP,LEGAL & PROFESSIONAL SERVICES,Development Growth and Regeneration,External Legal Fees,C20008,0
London Borough of Sutton,15/02/2024,50461016,684.00,Bindmans LLP,LEGAL & PROFESSIONAL SERVICES,People's Services,Miscellaneous Expenses,A49000,0
London Borough of Sutton,06/02/2024,50456901,"4,998.51",Bizzy Bees Day Nursery,GRANTS & EX GRATIA PAYMENTS,People's Services,Payment - Nursery Funding,A51056,0
London Borough of Sutton,29/01/2024,20068036,"11,000.00",Bloom Procurement Services Ltd,TEMP STAFF & CONSULTANCY,Development Growth and Regeneration,External Fees and Consultants,C20000,0
London Borough of Sutton,01/02/2024,20068348,"1,237.50",Bloom Procurement Services Ltd,TEMP STAFF & CONSULTANCY,People's Services,Professional Fees,A44066,0
London Borough of Sutton,09/02/2024,20068991,"5,544.00",Bloom Procurement Services Ltd,TEMP STAFF & CONSULTANCY,Development Growth and Regeneration,External Fees and Consultants,C20000,0
London Borough of Sutton,31/01/2024,20068331,"3,151.16",BOC Limited,BUILDING MNTCE - SERVICES,Resources,Equipment And Materials Purchase,A40000,0
London Borough of Sutton,13/02/2024,20069324,675.00,Bournemouth University,ACADEMIC INSTNS - OTHER,People's Services,Staff Development And Training,A15022,0
London Borough of Sutton,13/02/2024,20069329,675.00,Bournemouth University,ACADEMIC INSTNS - OTHER,People's Services,Staff Development And Training,A15022,0
London Borough of Sutton,09/12/2023,20069123,"99,498.87",BRJ System Buildings Limited,CONSTRUCTION INDUSTRY,People's Services,Payments to Contractors,C14000,0
London Borough of Sutton,16/02/2024,50461444,"2,400.00",Brama Care Ltd,SOCIAL SERVICES-HOME CARE,People's Services,Nursing Care - Ext Provider,A56025,0
London Borough of Sutton,16/02/2024,50461269,"-4,890.00",Bramley Health Ltd.,SOCIAL SERVICES RESIDENTIAL,People's Services,Nursing Care - 3rd party top up payment,A56023,0
London Borough of Sutton,16/02/2024,50461269,-878.84,Bramley Health Ltd.,SOCIAL SERVICES RESIDENTIAL,People's Services,Nursing Care - 3rd party top up payment,A56023,0
London Borough of Sutton,16/02/2024,50461269,"10,658.84",Bramley Health Ltd.,SOCIAL SERVICES RESIDENTIAL,People's Services,Nursing Care - Ext Provider,A56025,0
London Borough of Sutton,16/02/2024,50461378,"12,529.44",Bramley Health Ltd.,SOCIAL SERVICES RESIDENTIAL,People's Services,Nursing Care - Ext Provider,A56025,0
London Borough of Sutton,16/02/2024,50461378,"-8,770.60",Bramley Health Ltd.,SOCIAL SERVICES RESIDENTIAL,People's Services,Nursing Care - 3rd party top up payment,A56023,0
London Borough of Sutton,15/02/2024,50461018,"2,673.75",BRASENOSE COLLEGE,CARE LEAVERS,People's Services,Education Allowance,A60008,0
London Borough of Sutton,16/02/2024,50461470,-188.32,Bridge House Care Centre,SOCIAL SERVICES RESIDENTIAL,People's Services,Nursing Care - 3rd party top up payment,A56023,0
London Borough of Sutton,16/02/2024,50461470,977.14,Bridge House Care Centre,SOCIAL SERVICES RESIDENTIAL,People's Services,Nursing Care Short Term,A56026,0
London Borough of Sutton,16/02/2024,50461477,"4,978.76",Bridge House Care Centre,SOCIAL SERVICES RESIDENTIAL,People's Services,Nursing Care - Ext Provider,A56025,0
London Borough of Sutton,16/02/2024,50461477,-836.76,Bridge House Care Centre,SOCIAL SERVICES RESIDENTIAL,People's Services,Nursing Care - 3rd party top up payment,A56023,0
London Borough of Sutton,16/02/2024,50461482,"4,096.12",Bridge House Care Centre,SOCIAL SERVICES RESIDENTIAL,People's Services,Nursing Care Short Term,A56026,0
London Borough of Sutton,16/02/2024,50461482,-878.84,Bridge House Care Centre,SOCIAL SERVICES RESIDENTIAL,People's Services,Nursing Care - 3rd party top up payment,A56023,0
London Borough of Sutton,16/02/2024,50461487,"4,096.12",Bridge House Care Centre,SOCIAL SERVICES RESIDENTIAL,People's Services,Nursing Care - Ext Provider,A56025,0
London Borough of Sutton,16/02/2024,50461507,-878.84,Bridge House Care Centre,SOCIAL SERVICES RESIDENTIAL,People's Services,Nursing Care - 3rd party top up payment,A56023,0
London Borough of Sutton,16/02/2024,50461510,"4,096.12",Bridge House Care Centre,SOCIAL SERVICES RESIDENTIAL,People's Services,Nursing Care - Ext Provider,A56025,0
London Borough of Sutton,16/02/2024,50461510,-878.84,Bridge House Care Centre,SOCIAL SERVICES RESIDENTIAL,People's Services,Nursing Care - 3rd party top up payment,A56023,0
London Borough of Sutton,16/02/2024,50461511,-878.84,Bridge House Care Centre,SOCIAL SERVICES RESIDENTIAL,People's Services,Nursing Care - 3rd party top up payment,A56023,0
London Borough of Sutton,16/02/2024,50461511,"4,096.12",Bridge House Care Centre,SOCIAL SERVICES RESIDENTIAL,People's Services,Nursing Care - Ext Provider,A56025,0
London Borough of Sutton,16/02/2024,50461536,"4,560.00",Bridge House Care Centre,SOCIAL SERVICES RESIDENTIAL,People's Services,Nursing Care - Ext Provider,A56025,0
London Borough of Sutton,16/02/2024,50461536,-878.84,Bridge House Care Centre,SOCIAL SERVICES RESIDENTIAL,People's Services,Nursing Care - 3rd party top up payment,A56023,0
London Borough of Sutton,16/02/2024,50461576,"4,096.12",Bridge House Care Centre,SOCIAL SERVICES RESIDENTIAL,People's Services,Nursing Care - Ext Provider,A56025,0
London Borough of Sutton,16/02/2024,50461638,"4,096.12",Bridge House Care Centre,SOCIAL SERVICES RESIDENTIAL,People's Services,Nursing Care - Ext Provider,A56025,0
London Borough of Sutton,16/02/2024,50461638,-878.84,Bridge House Care Centre,SOCIAL SERVICES RESIDENTIAL,People's Services,Nursing Care - 3rd party top up payment,A56023,0
London Borough of Sutton,16/02/2024,50461646,-878.84,Bridge House Care Centre,SOCIAL SERVICES RESIDENTIAL,People's Services,Nursing Care - 3rd party top up payment,A56023,0
London Borough of Sutton,16/02/2024,50461646,"4,560.00",Bridge House Care Centre,SOCIAL SERVICES RESIDENTIAL,People's Services,Nursing Care Short Term,A56026,0
London Borough of Sutton,16/02/2024,50461649,"1,465.71",Bridge House Care Centre,SOCIAL SERVICES RESIDENTIAL,People's Services,Respite Care,A56116,0
London Borough of Sutton,16/02/2024,50461649,-282.48,Bridge House Care Centre,SOCIAL SERVICES RESIDENTIAL,People's Services,Nursing Care - 3rd party top up payment,A56023,0
London Borough of Sutton,16/02/2024,50461671,"4,096.12",Bridge House Care Centre,SOCIAL SERVICES RESIDENTIAL,People's Services,Nursing Care - Ext Provider,A56025,0
London Borough of Sutton,16/02/2024,50461671,-878.84,Bridge House Care Centre,SOCIAL SERVICES RESIDENTIAL,People's Services,Nursing Care - 3rd party top up payment,A56023,0
London Borough of Sutton,16/02/2024,50461693,-878.84,Bridge House Care Centre,SOCIAL SERVICES RESIDENTIAL,People's Services,Nursing Care - 3rd party top up payment,A56023,0
London Borough of Sutton,16/02/2024,50461693,"4,560.00",Bridge House Care Centre,SOCIAL SERVICES RESIDENTIAL,People's Services,Nursing Care Short Term,A56026,0
London Borough of Sutton,16/02/2024,50461723,"4,096.12",Bridge House Care Centre,SOCIAL SERVICES RESIDENTIAL,People's Services,Nursing Care - Ext Provider,A56025,0
London Borough of Sutton,16/02/2024,50461723,-878.84,Bridge House Care Centre,SOCIAL SERVICES RESIDENTIAL,People's Services,Nursing Care - 3rd party top up payment,A56023,0
London Borough of Sutton,16/02/2024,50461725,"4,096.12",Bridge House Care Centre,SOCIAL SERVICES RESIDENTIAL,People's Services,Nursing Care - Ext Provider,A56025,0
London Borough of Sutton,16/02/2024,50461725,-878.84,Bridge House Care Centre,SOCIAL SERVICES RESIDENTIAL,People's Services,Nursing Care - 3rd party top up payment,A56023,0
London Borough of Sutton,16/02/2024,50461731,-878.84,Bridge House Care Centre,SOCIAL SERVICES RESIDENTIAL,People's Services,Nursing Care - 3rd party top up payment,A56023,0
London Borough of Sutton,16/02/2024,50461749,-878.84,Bridge House Care Centre,SOCIAL SERVICES RESIDENTIAL,People's Services,Nursing Care - 3rd party top up payment,A56023,0
London Borough of Sutton,16/02/2024,50461749,"4,560.00",Bridge House Care Centre,SOCIAL SERVICES RESIDENTIAL,People's Services,Nursing Care - Ext Provider,A56025,0
London Borough of Sutton,16/02/2024,50461750,-878.84,Bridge House Care Centre,SOCIAL SERVICES RESIDENTIAL,People's Services,Nursing Care - 3rd party top up payment,A56023,0
London Borough of Sutton,16/02/2024,50461750,"5,278.84",Bridge House Care Centre,SOCIAL SERVICES RESIDENTIAL,People's Services,Respite Care,A56116,0
London Borough of Sutton,16/02/2024,50461758,-878.84,Bridge House Care Centre,SOCIAL SERVICES RESIDENTIAL,People's Services,Nursing Care - 3rd party top up payment,A56023,0
London Borough of Sutton,16/02/2024,50461758,"4,096.12",Bridge House Care Centre,SOCIAL SERVICES RESIDENTIAL,People's Services,Nursing Care Short Term,A56026,0
London Borough of Sutton,16/02/2024,50461802,-878.84,Bridge House Care Centre,SOCIAL SERVICES RESIDENTIAL,People's Services,Nursing Care - 3rd party top up payment,A56023,0
London Borough of Sutton,16/02/2024,50461802,"4,558.84",Bridge House Care Centre,SOCIAL SERVICES RESIDENTIAL,People's Services,Nursing Care Short Term,A56026,0
London Borough of Sutton,16/02/2024,50461813,"-2,436.94",Bridge House Care Centre,SOCIAL SERVICES RESIDENTIAL,People's Services,Nursing Care - Ext Provider,A56025,0
London Borough of Sutton,16/02/2024,50461813,596.36,Bridge House Care Centre,SOCIAL SERVICES RESIDENTIAL,People's Services,Nursing Care - 3rd party top up payment,A56023,0
London Borough of Sutton,16/02/2024,50461831,"4,096.12",Bridge House Care Centre,SOCIAL SERVICES RESIDENTIAL,People's Services,Nursing Care - Ext Provider,A56025,0
London Borough of Sutton,16/02/2024,50461831,-878.84,Bridge House Care Centre,SOCIAL SERVICES RESIDENTIAL,People's Services,Nursing Care - 3rd party top up payment,A56023,0
London Borough of Sutton,25/01/2024,50458990,276.79,Bridgestock Housing Services,CHILDREN'S SERVICES - RESIDENTIAL,People's Services,Approved Lodgings,A61000,0
London Borough of Sutton,25/01/2024,50458990,"5,535.70",Bridgestock Housing Services,CHILDREN'S SERVICES - RESIDENTIAL,People's Services,Approved Lodgings,A61000,0
London Borough of Sutton,25/01/2024,50464337,89.29,Bridgestock Housing Services,CHILDREN'S SERVICES - RESIDENTIAL,People's Services,Approved Lodgings,A61000,0
London Borough of Sutton,25/01/2024,50464337,"1,749.99",Bridgestock Housing Services,CHILDREN'S SERVICES - RESIDENTIAL,People's Services,Approved Lodgings,A61000,0
London Borough of Sutton,01/01/2024,50458890,564.29,Bridging Gaps Limited,CHILDREN'S SERVICES - FOSTERING & ADOPTION SERVICES,People's Services,Foster Parents Support,A44110,0
London Borough of Sutton,01/01/2024,50458890,"2,934.28",Bridging Gaps Limited,CHILDREN'S SERVICES - FOSTERING & ADOPTION SERVICES,People's Services,Foster Parents Support,A44110,0
London Borough of Sutton,29/01/2024,20068061,"5,500.00",Brightcorp Ltd,TRAINING,Development Growth and Regeneration,Fees,A44040,0
London Borough of Sutton,01/01/2024,50458900,"3,683.73",Brighter Futures Foster Care Ltd,CHILDREN'S SERVICES - FOSTERING & ADOPTION SERVICES,People's Services,Foster Parents Support,A44110,0
London Borough of Sutton,01/01/2024,50458908,"3,485.02",Brighter Futures Foster Care Ltd,CHILDREN'S SERVICES - FOSTERING & ADOPTION SERVICES,People's Services,Foster Parents Support,A44110,0
London Borough of Sutton,06/02/2024,50458427,"3,845.96",Brit School,SCHOOL FUNDS,People's Services,Independent School Fees,A56002,0
London Borough of Sutton,05/02/2024,20068971,"3,348.72",British Gas,UTILITIES,Resources,Electricity,A21000,0
London Borough of Sutton,05/12/2023,20068972,"2,621.76",British Gas,UTILITIES,Resources,Electricity,A21000,0
London Borough of Sutton,23/01/2024,20068973,"1,056.29",British Gas,UTILITIES,HRA,Electricity,A21000,0
London Borough of Sutton,21/12/2023,20068976,"1,100.97",British Gas,UTILITIES,HRA,Electricity,A21000,0
London Borough of Sutton,03/01/2024,20068978,"2,281.50",British Gas,UTILITIES,Resources,Electricity,A21000,0
London Borough of Sutton,14/02/2024,20069477,"10,022.14",British Gas,UTILITIES,Resources,Gas,A21003,0
London Borough of Sutton,14/02/2024,20069477,-0.01,British Gas,UTILITIES,,Legal entity balancing account,E99994,0
London Borough of Sutton,16/02/2024,50461392,-875.64,British Home & Hospital For Incurables,SOCIAL SERVICES RESIDENTIAL,People's Services,Nursing Care - Client Cont ( Net paymt ),A56024,0
London Borough of Sutton,16/02/2024,50461392,"4,096.12",British Home & Hospital For Incurables,SOCIAL SERVICES RESIDENTIAL,People's Services,Nursing Care - Ext Provider,A56025,0
London Borough of Sutton,16/02/2024,50461392,-878.84,British Home & Hospital For Incurables,SOCIAL SERVICES RESIDENTIAL,People's Services,Nursing Care - 3rd party top up payment,A56023,0
London Borough of Sutton,06/02/2024,50456626,"1,721.41",Bumpsa Daisies Nurserys,ACADEMIC INSTNS - OTHER,People's Services,Payment - school supplementary grant,A51062,0
London Borough of Sutton,06/02/2024,50456739,"3,314.52",Bumpsa Daisies Nurserys,ACADEMIC INSTNS - OTHER,People's Services,Payment - Nursery Funding,A51056,0
London Borough of Sutton,06/02/2024,50456807,"20,058.19",Bumpsa Daisies Nurserys,ACADEMIC INSTNS - OTHER,People's Services,Payment - Nursery Funding,A51056,0
London Borough of Sutton,06/02/2024,50456918,"7,227.79",Bumpsa Daisies Nurserys,ACADEMIC INSTNS - OTHER,People's Services,Payment - Nursery Funding,A51056,0
London Borough of Sutton,16/02/2024,50461370,"7,084.60",Bupa Care Services,SOCIAL SERVICES RESIDENTIAL,People's Services,Nursing Care Short Term,A56026,0
London Borough of Sutton,16/02/2024,50461370,-836.76,Bupa Care Services,SOCIAL SERVICES RESIDENTIAL,People's Services,Nursing Care - 3rd party top up payment,A56023,0
London Borough of Sutton,16/02/2024,50461389,"8,091.16",Bupa Care Services,SOCIAL SERVICES RESIDENTIAL,People's Services,Nursing Care Short Term,A56026,0
London Borough of Sutton,16/02/2024,50461389,"-1,436.76",Bupa Care Services,SOCIAL SERVICES RESIDENTIAL,People's Services,Nursing Care - 3rd party top up payment,A56023,0
London Borough of Sutton,16/02/2024,50461552,"4,096.12",Bupa Care Services,SOCIAL SERVICES RESIDENTIAL,People's Services,Nursing Care - Ext Provider,A56025,0
London Borough of Sutton,16/02/2024,50461573,"4,339.24",Bupa Care Services,SOCIAL SERVICES RESIDENTIAL,People's Services,Nursing Care - Ext Provider,A56025,0
London Borough of Sutton,16/02/2024,50461573,-878.84,Bupa Care Services,SOCIAL SERVICES RESIDENTIAL,People's Services,Nursing Care - 3rd party top up payment,A56023,0
London Borough of Sutton,16/02/2024,50461666,"4,339.24",Bupa Care Services,SOCIAL SERVICES RESIDENTIAL,People's Services,Nursing Care Short Term,A56026,0
London Borough of Sutton,16/02/2024,50461666,-878.84,Bupa Care Services,SOCIAL SERVICES RESIDENTIAL,People's Services,Nursing Care - 3rd party top up payment,A56023,0
London Borough of Sutton,16/02/2024,50461677,"4,096.12",Bupa Care Services,SOCIAL SERVICES RESIDENTIAL,People's Services,Nursing Care Short Term,A56026,0
London Borough of Sutton,16/02/2024,50461677,-878.84,Bupa Care Services,SOCIAL SERVICES RESIDENTIAL,People's Services,Nursing Care - 3rd party top up payment,A56023,0
London Borough of Sutton,16/02/2024,50461688,-878.84,Bupa Care Services,SOCIAL SERVICES RESIDENTIAL,People's Services,Nursing Care - 3rd party top up payment,A56023,0
London Borough of Sutton,16/02/2024,50461716,"4,096.12",Bupa Care Services,SOCIAL SERVICES RESIDENTIAL,People's Services,Nursing Care Short Term,A56026,0
London Borough of Sutton,16/02/2024,50461716,-878.84,Bupa Care Services,SOCIAL SERVICES RESIDENTIAL,People's Services,Nursing Care - 3rd party top up payment,A56023,0
London Borough of Sutton,16/02/2024,50461717,"3,821.24",Bupa Care Services,SOCIAL SERVICES RESIDENTIAL,People's Services,Nursing Care Short Term,A56026,0
London Borough of Sutton,16/02/2024,50461717,-836.76,Bupa Care Services,SOCIAL SERVICES RESIDENTIAL,People's Services,Nursing Care - 3rd party top up payment,A56023,0
London Borough of Sutton,06/02/2024,50456629,"1,395.34",Busy Bees Day Nurseries Ltd,ACADEMIC INSTNS - OTHER,People's Services,Payment - school supplementary grant,A51062,0
London Borough of Sutton,06/02/2024,50456810,"16,258.81",Busy Bees Day Nurseries Ltd,ACADEMIC INSTNS - OTHER,People's Services,Payment - Nursery Funding,A51056,0
London Borough of Sutton,06/02/2024,50456920,"1,070.79",Busy Bees Day Nurseries Ltd,ACADEMIC INSTNS - OTHER,People's Services,Payment - Nursery Funding,A51056,0
London Borough of Sutton,01/02/2024,50465299,"1,200.00",Busy Bees Day Nurseries Ltd,ACADEMIC INSTNS - OTHER,People's Services,SEND Inclusion funding,A60038,0
London Borough of Sutton,06/02/2024,50456628,"1,010.98",Busy Bees Day Nurseries Ltd,ACADEMIC INSTNS - OTHER,People's Services,Payment - school supplementary grant,A51062,0
London Borough of Sutton,06/02/2024,50456809,"11,780.21",Busy Bees Day Nurseries Ltd,ACADEMIC INSTNS - OTHER,People's Services,Payment - Nursery Funding,A51056,0
London Borough of Sutton,02/02/2024,20068451,"1,287.00",Busy Bees Day Nurseries Ltd,SUNDRY SUPPLIER - FINANCE,Health and Wellbeing,Fees-General-OS Scope,A92129,0
London Borough of Sutton,16/02/2024,50461317,"8,118.48",Butterfly's Care Homes Ltd,SOCIAL SERVICES RESIDENTIAL,People's Services,Residential Care - Ext Provider,A56114,0
London Borough of Sutton,01/02/2024,50458912,"2,975.69",By The Bridge Ltd,CHILDREN'S SERVICES - FOSTERING & ADOPTION SERVICES,People's Services,Foster Parents Support,A44110,0
London Borough of Sutton,01/02/2024,50458913,"7,705.67",By The Bridge Ltd,CHILDREN'S SERVICES - FOSTERING & ADOPTION SERVICES,People's Services,Foster Parents Support,A44110,0
London Borough of Sutton,01/02/2024,50458914,"2,975.69",By The Bridge Ltd,CHILDREN'S SERVICES - FOSTERING & ADOPTION SERVICES,People's Services,Foster Parents Support,A44110,0
London Borough of Sutton,01/02/2024,50458985,"4,667.05",By The Bridge Ltd,CHILDREN'S SERVICES - FOSTERING & ADOPTION SERVICES,People's Services,Foster Parents Support,A44110,0
London Borough of Sutton,31/01/2024,20068238,"2,539.92",Cablesheer (Asbestos) Ltd,CONSTRUCTION INDUSTRY,HRA,Payments to Contractors,C14000,0
London Borough of Sutton,31/01/2024,20068239,"4,780.00",Cablesheer (Asbestos) Ltd,CONSTRUCTION INDUSTRY,HRA,Payments to Contractors,C14000,0
London Borough of Sutton,31/01/2024,20068240,"4,840.00",Cablesheer (Asbestos) Ltd,CONSTRUCTION INDUSTRY,HRA,Payments to Contractors,C14000,0
London Borough of Sutton,31/01/2024,20068241,"1,112.56",Cablesheer (Asbestos) Ltd,CONSTRUCTION INDUSTRY,HRA,Payments to Contractors,C14000,0
London Borough of Sutton,31/01/2024,20068242,"16,822.57",Cablesheer (Asbestos) Ltd,CONSTRUCTION INDUSTRY,HRA,Payments to Contractors,C14000,0
London Borough of Sutton,19/12/2023,50458907,"24,374.99",Calcot Services for Children Ltd,CHILDREN'S SERVICES - FOSTERING & ADOPTION SERVICES,People's Services,Residential Care-Children,A56115,0
London Borough of Sutton,26/01/2024,50458390,"3,935.71",Cambian Childcare Ltd,CHILDREN'S SERVICES - FOSTERING & ADOPTION SERVICES,People's Services,Independent School Fees,A56002,0
London Borough of Sutton,26/01/2024,50458947,"20,105.67",Cambian Childcare Ltd,CHILDREN'S SERVICES - FOSTERING & ADOPTION SERVICES,People's Services,Residential Care-Children,A56115,0
London Borough of Sutton,26/02/2024,50466038,"4,207.14",Cambian Childcare Ltd,CHILDREN'S SERVICES - FOSTERING & ADOPTION SERVICES,People's Services,Independent School Fees,A56002,0
London Borough of Sutton,16/02/2024,50461436,"4,060.72",Canterbury Oast Trust,SOCIAL SERVICES RESIDENTIAL,People's Services,Residential Care - Ext Provider,A56114,0
London Borough of Sutton,16/02/2024,50461436,204.72,Canterbury Oast Trust,SOCIAL SERVICES RESIDENTIAL,People's Services,One to One Care,A56108,0
London Borough of Sutton,16/02/2024,50461436,"-1,032.56",Canterbury Oast Trust,SOCIAL SERVICES RESIDENTIAL,People's Services,Residential Care - Client Cont ( Net Paymt ),A56113,0
London Borough of Sutton,31/01/2024,50458868,"5,977.42",Capstone Foster Care (South East) Ltd,CHILDREN'S SERVICES - FOSTERING & ADOPTION SERVICES,People's Services,Foster Parents Support,A44110,0
London Borough of Sutton,31/01/2024,50458906,"6,125.29",Capstone Foster Care (South East) Ltd,CHILDREN'S SERVICES - FOSTERING & ADOPTION SERVICES,People's Services,Foster Parents Support,A44110,0
London Borough of Sutton,25/01/2024,20067745,"1,816.92",Card Processing Advisory Service Ltd,SUNDRY SUPPLIER - FINANCE,Resources,Bank Fees & Charges,A44250,0
London Borough of Sutton,03/01/2024,50455642,"3,909.72",Care Advocates Ltd,MANAGEMENT & TRAINING SERVICES,People's Services,Supported Living,A56088,0
London Borough of Sutton,03/01/2024,50455642,"2,976.00",Care Advocates Ltd,MANAGEMENT & TRAINING SERVICES,People's Services,Supported Living,A56088,0
London Borough of Sutton,03/01/2024,50455642,"2,573.31",Care Advocates Ltd,MANAGEMENT & TRAINING SERVICES,People's Services,Supported Living,A56088,0
London Borough of Sutton,03/01/2024,50455643,"-3,635.06",Care Advocates Ltd,MANAGEMENT & TRAINING SERVICES,People's Services,Supported Living,A56088,0
London Borough of Sutton,03/01/2024,50455643,"6,547.20",Care Advocates Ltd,MANAGEMENT & TRAINING SERVICES,People's Services,Supported Living,A56088,0
London Borough of Sutton,03/01/2024,50455643,"2,573.31",Care Advocates Ltd,MANAGEMENT & TRAINING SERVICES,People's Services,Supported Living,A56088,0
London Borough of Sutton,03/01/2024,50455644,"2,662.86",Care Advocates Ltd,MANAGEMENT & TRAINING SERVICES,People's Services,Supported Living,A56088,0
London Borough of Sutton,03/01/2024,50455644,"1,554.34",Care Advocates Ltd,MANAGEMENT & TRAINING SERVICES,People's Services,Supported Living,A56088,0
London Borough of Sutton,03/01/2024,50455644,"1,242.52",Care Advocates Ltd,MANAGEMENT & TRAINING SERVICES,People's Services,Supported Living,A56088,0
London Borough of Sutton,03/01/2024,50455646,"1,800.70",Care Advocates Ltd,MANAGEMENT & TRAINING SERVICES,People's Services,Supported Living,A56088,0
London Borough of Sutton,03/01/2024,50455646,"2,465.83",Care Advocates Ltd,MANAGEMENT & TRAINING SERVICES,People's Services,Supported Living,A56088,0
London Borough of Sutton,03/01/2024,50455646,"2,573.31",Care Advocates Ltd,MANAGEMENT & TRAINING SERVICES,People's Services,Supported Living,A56088,0
London Borough of Sutton,16/02/2024,50461446,"3,400.00",Care Assist Ltd.,SOCIAL SERVICES RESIDENTIAL,People's Services,Residential Care - Ext Provider,A56114,0
London Borough of Sutton,16/02/2024,50461446,"-1,700.00",Care Assist Ltd.,SOCIAL SERVICES RESIDENTIAL,People's Services,Nursing Care - 3rd party top up payment,A56023,0
London Borough of Sutton,16/02/2024,50461272,"7,078.84",Care Base(Redhill)Ltd,SOCIAL SERVICES - OTHER,People's Services,Nursing Care - Ext Provider,A56025,0
London Borough of Sutton,16/02/2024,50461272,-878.84,Care Base(Redhill)Ltd,SOCIAL SERVICES - OTHER,People's Services,Nursing Care - 3rd party top up payment,A56023,0
London Borough of Sutton,16/02/2024,50461287,"3,320.32",Care Concern Group,SOCIAL SERVICES RESIDENTIAL,People's Services,Residential Care - Ext Provider,A56114,0
London Borough of Sutton,19/02/2024,50462380,"1,936.78",Care Connexions UK Limited,SOCIAL SERVICES RESIDENTIAL,People's Services,One to One Care,A56108,0
London Borough of Sutton,16/02/2024,50461437,"3,768.36",Care Direct Uk Ltd,SOCIAL SERVICES RESIDENTIAL,People's Services,Residential Care - Ext Provider,A56114,0
London Borough of Sutton,28/01/2024,50460591,783.81,Care More Limited,SOCIAL SERVICES RESIDENTIAL,People's Services,Home Care Services,A56019,0
London Borough of Sutton,28/01/2024,50460597,658.40,Care More Limited,SOCIAL SERVICES RESIDENTIAL,People's Services,Home Care Services,A56019,0
London Borough of Sutton,28/01/2024,50460599,878.05,Care More Limited,SOCIAL SERVICES RESIDENTIAL,People's Services,Home Care Services,A56019,0
London Borough of Sutton,28/01/2024,50460599,20.91,Care More Limited,SOCIAL SERVICES RESIDENTIAL,People's Services,Home Care Services,A56019,0
London Borough of Sutton,28/01/2024,50460719,219.45,Care More Limited,SOCIAL SERVICES RESIDENTIAL,People's Services,Home Care Services,A56019,0
London Borough of Sutton,28/01/2024,50460719,"1,024.52",Care More Limited,SOCIAL SERVICES RESIDENTIAL,People's Services,Home Care Services,A56019,0
London Borough of Sutton,11/02/2024,50463932,658.40,Care More Limited,SOCIAL SERVICES RESIDENTIAL,People's Services,Home Care Services,A56019,0
London Borough of Sutton,11/02/2024,50463935,878.05,Care More Limited,SOCIAL SERVICES RESIDENTIAL,People's Services,Home Care Services,A56019,0
London Borough of Sutton,11/02/2024,50463935,31.36,Care More Limited,SOCIAL SERVICES RESIDENTIAL,People's Services,Home Care Services,A56019,0
London Borough of Sutton,11/02/2024,50463968,951.25,Care More Limited,SOCIAL SERVICES RESIDENTIAL,People's Services,Home Care Services,A56019,0
London Borough of Sutton,11/02/2024,50463990,878.05,Care More Limited,SOCIAL SERVICES RESIDENTIAL,People's Services,Home Care Services,A56019,0
London Borough of Sutton,11/02/2024,50463996,219.45,Care More Limited,SOCIAL SERVICES RESIDENTIAL,People's Services,Home Care Services,A56019,0
London Borough of Sutton,11/02/2024,50463996,"1,024.52",Care More Limited,SOCIAL SERVICES RESIDENTIAL,People's Services,Home Care Services,A56019,0
London Borough of Sutton,28/01/2024,50465444,878.05,Care More Limited,SOCIAL SERVICES RESIDENTIAL,People's Services,Home Care Services,A56019,0
London Borough of Sutton,18/02/2024,50465445,878.05,Care More Limited,SOCIAL SERVICES RESIDENTIAL,People's Services,Home Care Services,A56019,0
London Borough of Sutton,18/02/2024,50465483,658.40,Care More Limited,SOCIAL SERVICES RESIDENTIAL,People's Services,Home Care Services,A56019,0
London Borough of Sutton,18/02/2024,50465490,219.45,Care More Limited,SOCIAL SERVICES RESIDENTIAL,People's Services,Home Care Services,A56019,0
London Borough of Sutton,18/02/2024,50465490,"1,024.52",Care More Limited,SOCIAL SERVICES RESIDENTIAL,People's Services,Home Care Services,A56019,0
London Borough of Sutton,18/02/2024,50465506,951.25,Care More Limited,SOCIAL SERVICES RESIDENTIAL,People's Services,Home Care Services,A56019,0
London Borough of Sutton,31/12/2023,50465588,595.82,Care More Limited,SOCIAL SERVICES RESIDENTIAL,People's Services,Home Care Services,A56019,0
London Borough of Sutton,18/02/2024,50465600,878.05,Care More Limited,SOCIAL SERVICES RESIDENTIAL,People's Services,Home Care Services,A56019,0
London Borough of Sutton,18/02/2024,50465600,20.91,Care More Limited,SOCIAL SERVICES RESIDENTIAL,People's Services,Home Care Services,A56019,0
London Borough of Sutton,15/01/2024,20070735,"14,013.00",Care Quality Commission,SUBSCRIPTIONS & PUBLICATIONS,People's Services,Fees,A44040,0
London Borough of Sutton,16/02/2024,50461274,"4,772.96",Care UK Homecare Ltd,SOCIAL SERVICES RESIDENTIAL,People's Services,Residential Care - Ext Provider,A56114,0
London Borough of Sutton,16/02/2024,50461274,-563.20,Care UK Homecare Ltd,SOCIAL SERVICES RESIDENTIAL,People's Services,Residential Care - Client Cont ( Net Paymt ),A56113,0
London Borough of Sutton,16/02/2024,50461601,"-2,730.68",Care UK Homecare Ltd,SOCIAL SERVICES RESIDENTIAL,People's Services,Nursing Care - 3rd party top up payment,A56023,0
London Borough of Sutton,16/02/2024,50461601,"14,168.57",Care UK Homecare Ltd,SOCIAL SERVICES RESIDENTIAL,People's Services,Nursing Care Short Term,A56026,0
London Borough of Sutton,16/02/2024,50461715,"4,096.12",Care UK Homecare Ltd,SOCIAL SERVICES RESIDENTIAL,People's Services,Nursing Care - Ext Provider,A56025,0
London Borough of Sutton,16/02/2024,50461715,-878.84,Care UK Homecare Ltd,SOCIAL SERVICES RESIDENTIAL,People's Services,Nursing Care - 3rd party top up payment,A56023,0
London Borough of Sutton,16/02/2024,50461722,"4,560.00",Care UK Homecare Ltd,SOCIAL SERVICES RESIDENTIAL,People's Services,Nursing Care - Ext Provider,A56025,0
London Borough of Sutton,16/02/2024,50461739,"5,458.84",Care UK Homecare Ltd,SOCIAL SERVICES RESIDENTIAL,People's Services,Nursing Care - Ext Provider,A56025,0
London Borough of Sutton,16/02/2024,50461739,-878.84,Care UK Homecare Ltd,SOCIAL SERVICES RESIDENTIAL,People's Services,Nursing Care - 3rd party top up payment,A56023,0
London Borough of Sutton,16/02/2024,50461795,-836.76,Care UK Homecare Ltd,SOCIAL SERVICES RESIDENTIAL,People's Services,Nursing Care - 3rd party top up payment,A56023,0
London Borough of Sutton,26/01/2024,50457267,"5,931.52",Care Unlimited Domcare Ltd,SOCIAL SERVICES DAY CARE,People's Services,Supported Living,A56088,0
London Borough of Sutton,26/01/2024,50457313,410.56,Care Unlimited Domcare Ltd,SOCIAL SERVICES DAY CARE,People's Services,Supported Living,A56088,0
London Borough of Sutton,26/01/2024,50457313,"3,595.20",Care Unlimited Domcare Ltd,SOCIAL SERVICES DAY CARE,People's Services,Supported Living,A56088,0
London Borough of Sutton,26/01/2024,50457313,"1,056.88",Care Unlimited Domcare Ltd,SOCIAL SERVICES DAY CARE,People's Services,Supported Living,A56088,0
London Borough of Sutton,26/01/2024,50457314,410.56,Care Unlimited Domcare Ltd,SOCIAL SERVICES DAY CARE,People's Services,Supported Living,A56088,0
London Borough of Sutton,26/01/2024,50457314,"3,595.20",Care Unlimited Domcare Ltd,SOCIAL SERVICES DAY CARE,People's Services,Supported Living,A56088,0
London Borough of Sutton,26/01/2024,50457314,"1,056.88",Care Unlimited Domcare Ltd,SOCIAL SERVICES DAY CARE,People's Services,Supported Living,A56088,0
London Borough of Sutton,01/02/2024,50457919,410.56,Care Unlimited Domcare Ltd,SOCIAL SERVICES DAY CARE,People's Services,Supported Living,A56088,0
London Borough of Sutton,01/02/2024,50457919,"3,595.20",Care Unlimited Domcare Ltd,SOCIAL SERVICES DAY CARE,People's Services,Supported Living,A56088,0
London Borough of Sutton,01/02/2024,50457919,"1,056.88",Care Unlimited Domcare Ltd,SOCIAL SERVICES DAY CARE,People's Services,Supported Living,A56088,0
London Borough of Sutton,01/02/2024,50457920,410.56,Care Unlimited Domcare Ltd,SOCIAL SERVICES DAY CARE,People's Services,Supported Living,A56088,0
London Borough of Sutton,01/02/2024,50457920,"3,595.20",Care Unlimited Domcare Ltd,SOCIAL SERVICES DAY CARE,People's Services,Supported Living,A56088,0
London Borough of Sutton,01/02/2024,50457920,"1,056.88",Care Unlimited Domcare Ltd,SOCIAL SERVICES DAY CARE,People's Services,Supported Living,A56088,0
London Borough of Sutton,01/02/2024,50458495,"4,540.59",Care Unlimited Domcare Ltd,SOCIAL SERVICES DAY CARE,People's Services,Supported Living,A56088,0
London Borough of Sutton,01/02/2024,50458495,347.64,Care Unlimited Domcare Ltd,SOCIAL SERVICES DAY CARE,People's Services,Supported Living,A56088,0
London Borough of Sutton,01/02/2024,50458495,"1,043.29",Care Unlimited Domcare Ltd,SOCIAL SERVICES DAY CARE,People's Services,Supported Living,A56088,0
London Borough of Sutton,01/02/2024,50465354,410.56,Care Unlimited Domcare Ltd,SOCIAL SERVICES DAY CARE,People's Services,Supported Living,A56088,0
London Borough of Sutton,01/02/2024,50465354,"3,595.20",Care Unlimited Domcare Ltd,SOCIAL SERVICES DAY CARE,People's Services,Supported Living,A56088,0
London Borough of Sutton,01/02/2024,50465354,"1,056.88",Care Unlimited Domcare Ltd,SOCIAL SERVICES DAY CARE,People's Services,Supported Living,A56088,0
London Borough of Sutton,01/02/2024,50465359,410.56,Care Unlimited Domcare Ltd,SOCIAL SERVICES DAY CARE,People's Services,Supported Living,A56088,0
London Borough of Sutton,01/02/2024,50465359,"3,595.20",Care Unlimited Domcare Ltd,SOCIAL SERVICES DAY CARE,People's Services,Supported Living,A56088,0
London Borough of Sutton,01/02/2024,50465359,"1,056.88",Care Unlimited Domcare Ltd,SOCIAL SERVICES DAY CARE,People's Services,Supported Living,A56088,0
London Borough of Sutton,04/02/2024,50458497,"2,106.68",Care4Care Services Ltd,SOCIAL SERVICES DAY CARE,People's Services,Home Care Services,A56019,0
London Borough of Sutton,04/02/2024,50458499,"4,213.36",Care4Care Services Ltd,SOCIAL SERVICES DAY CARE,People's Services,Home Care Services,A56019,0
London Borough of Sutton,04/02/2024,50458500,773.67,Care4Care Services Ltd,SOCIAL SERVICES DAY CARE,People's Services,Home Care Services,A56019,0
London Borough of Sutton,04/02/2024,50458502,810.26,Care4Care Services Ltd,SOCIAL SERVICES DAY CARE,People's Services,Home Care Services,A56019,0
London Borough of Sutton,04/02/2024,50464429,"2,916.94",Care4Care Services Ltd,SOCIAL SERVICES DAY CARE,People's Services,Home Care Services,A56019,0
London Borough of Sutton,04/02/2024,50464430,"2,728.75",Care4Care Services Ltd,SOCIAL SERVICES DAY CARE,People's Services,Home Care Services,A56019,0
London Borough of Sutton,04/02/2024,50464431,"7,544.69",Care4Care Services Ltd,SOCIAL SERVICES DAY CARE,People's Services,Home Care Services,A56019,0
London Borough of Sutton,28/01/2024,50457949,867.57,Caremark (Sutton),SOCIAL SERVICES DAY CARE,People's Services,Home Care Services,A56019,0
London Borough of Sutton,28/01/2024,50457977,783.86,Caremark (Sutton),SOCIAL SERVICES DAY CARE,People's Services,Home Care Services,A56019,0
London Borough of Sutton,28/01/2024,50457982,"1,756.44",Caremark (Sutton),SOCIAL SERVICES DAY CARE,People's Services,Home Care Services,A56019,0
London Borough of Sutton,28/01/2024,50457988,658.40,Caremark (Sutton),SOCIAL SERVICES DAY CARE,People's Services,Home Care Services,A56019,0
London Borough of Sutton,28/01/2024,50457988,41.82,Caremark (Sutton),SOCIAL SERVICES DAY CARE,People's Services,Home Care Services,A56019,0
London Borough of Sutton,28/01/2024,50457994,62.73,Caremark (Sutton),SOCIAL SERVICES DAY CARE,People's Services,Home Care Services,A56019,0
London Borough of Sutton,28/01/2024,50457994,731.64,Caremark (Sutton),SOCIAL SERVICES DAY CARE,People's Services,Home Care Services,A56019,0
London Borough of Sutton,28/01/2024,50458036,512.30,Caremark (Sutton),SOCIAL SERVICES DAY CARE,People's Services,Home Care Services,A56019,0
London Borough of Sutton,21/01/2024,50460190,533.20,Caremark (Sutton),SOCIAL SERVICES DAY CARE,People's Services,Home Care Services,A56019,0
London Borough of Sutton,04/02/2024,50460752,658.40,Caremark (Sutton),SOCIAL SERVICES DAY CARE,People's Services,Home Care Services,A56019,0
London Borough of Sutton,04/02/2024,50460752,41.82,Caremark (Sutton),SOCIAL SERVICES DAY CARE,People's Services,Home Care Services,A56019,0
London Borough of Sutton,04/02/2024,50460763,533.20,Caremark (Sutton),SOCIAL SERVICES DAY CARE,People's Services,Home Care Services,A56019,0
London Borough of Sutton,04/02/2024,50460767,"1,756.44",Caremark (Sutton),SOCIAL SERVICES DAY CARE,People's Services,Home Care Services,A56019,0
London Borough of Sutton,04/02/2024,50460780,637.76,Caremark (Sutton),SOCIAL SERVICES DAY CARE,People's Services,Home Care Services,A56019,0
London Borough of Sutton,04/02/2024,50460785,867.57,Caremark (Sutton),SOCIAL SERVICES DAY CARE,People's Services,Home Care Services,A56019,0
London Borough of Sutton,04/02/2024,50460792,783.86,Caremark (Sutton),SOCIAL SERVICES DAY CARE,People's Services,Home Care Services,A56019,0
London Borough of Sutton,04/02/2024,50460850,658.40,Caremark (Sutton),SOCIAL SERVICES DAY CARE,People's Services,Home Care Services,A56019,0
London Borough of Sutton,04/02/2024,50460852,62.73,Caremark (Sutton),SOCIAL SERVICES DAY CARE,People's Services,Home Care Services,A56019,0
London Borough of Sutton,04/02/2024,50460852,731.64,Caremark (Sutton),SOCIAL SERVICES DAY CARE,People's Services,Home Care Services,A56019,0
London Borough of Sutton,28/01/2024,50461868,512.09,Caremark (Sutton),SOCIAL SERVICES DAY CARE,People's Services,Home Care Services,A56019,0
London Borough of Sutton,14/01/2024,50461869,658.40,Caremark (Sutton),SOCIAL SERVICES DAY CARE,People's Services,Home Care Services,A56019,0
London Borough of Sutton,21/01/2024,50461891,501.84,Caremark (Sutton),SOCIAL SERVICES DAY CARE,People's Services,Home Care Services,A56019,0
London Borough of Sutton,04/02/2024,50461892,648.15,Caremark (Sutton),SOCIAL SERVICES DAY CARE,People's Services,Home Care Services,A56019,0
London Borough of Sutton,14/01/2024,50461893,648.14,Caremark (Sutton),SOCIAL SERVICES DAY CARE,People's Services,Home Care Services,A56019,0
London Borough of Sutton,28/01/2024,50461894,648.14,Caremark (Sutton),SOCIAL SERVICES DAY CARE,People's Services,Home Care Services,A56019,0
London Borough of Sutton,21/01/2024,50461895,648.15,Caremark (Sutton),SOCIAL SERVICES DAY CARE,People's Services,Home Care Services,A56019,0
London Borough of Sutton,04/02/2024,50461896,501.84,Caremark (Sutton),SOCIAL SERVICES DAY CARE,People's Services,Home Care Services,A56019,0
London Borough of Sutton,14/01/2024,50461897,501.84,Caremark (Sutton),SOCIAL SERVICES DAY CARE,People's Services,Home Care Services,A56019,0
London Borough of Sutton,28/01/2024,50461898,501.84,Caremark (Sutton),SOCIAL SERVICES DAY CARE,People's Services,Home Care Services,A56019,0
London Borough of Sutton,28/01/2024,50461900,637.76,Caremark (Sutton),SOCIAL SERVICES DAY CARE,People's Services,Home Care Services,A56019,0
London Borough of Sutton,14/01/2024,50461901,637.76,Caremark (Sutton),SOCIAL SERVICES DAY CARE,People's Services,Home Care Services,A56019,0
London Borough of Sutton,21/01/2024,50461928,637.76,Caremark (Sutton),SOCIAL SERVICES DAY CARE,People's Services,Home Care Services,A56019,0
London Borough of Sutton,11/02/2024,50463828,512.30,Caremark (Sutton),SOCIAL SERVICES DAY CARE,People's Services,Home Care Services,A56019,0
London Borough of Sutton,11/02/2024,50463830,783.86,Caremark (Sutton),SOCIAL SERVICES DAY CARE,People's Services,Home Care Services,A56019,0
London Borough of Sutton,11/02/2024,50463847,867.57,Caremark (Sutton),SOCIAL SERVICES DAY CARE,People's Services,Home Care Services,A56019,0
London Borough of Sutton,11/02/2024,50463873,658.40,Caremark (Sutton),SOCIAL SERVICES DAY CARE,People's Services,Home Care Services,A56019,0
London Borough of Sutton,11/02/2024,50463873,41.82,Caremark (Sutton),SOCIAL SERVICES DAY CARE,People's Services,Home Care Services,A56019,0
London Borough of Sutton,11/02/2024,50463874,658.40,Caremark (Sutton),SOCIAL SERVICES DAY CARE,People's Services,Home Care Services,A56019,0
London Borough of Sutton,11/02/2024,50463876,62.73,Caremark (Sutton),SOCIAL SERVICES DAY CARE,People's Services,Home Care Services,A56019,0
London Borough of Sutton,11/02/2024,50463876,731.64,Caremark (Sutton),SOCIAL SERVICES DAY CARE,People's Services,Home Care Services,A56019,0
London Borough of Sutton,18/02/2024,50465719,"1,756.44",Caremark (Sutton),SOCIAL SERVICES DAY CARE,People's Services,Home Care Services,A56019,0
London Borough of Sutton,18/02/2024,50465734,867.57,Caremark (Sutton),SOCIAL SERVICES DAY CARE,People's Services,Home Care Services,A56019,0
London Borough of Sutton,18/02/2024,50465743,783.86,Caremark (Sutton),SOCIAL SERVICES DAY CARE,People's Services,Home Care Services,A56019,0
London Borough of Sutton,18/02/2024,50465765,658.40,Caremark (Sutton),SOCIAL SERVICES DAY CARE,People's Services,Home Care Services,A56019,0
London Borough of Sutton,18/02/2024,50465765,41.82,Caremark (Sutton),SOCIAL SERVICES DAY CARE,People's Services,Home Care Services,A56019,0
London Borough of Sutton,18/02/2024,50465766,62.73,Caremark (Sutton),SOCIAL SERVICES DAY CARE,People's Services,Home Care Services,A56019,0
London Borough of Sutton,18/02/2024,50465766,731.64,Caremark (Sutton),SOCIAL SERVICES DAY CARE,People's Services,Home Care Services,A56019,0
London Borough of Sutton,18/02/2024,50465792,658.40,Caremark (Sutton),SOCIAL SERVICES DAY CARE,People's Services,Home Care Services,A56019,0
London Borough of Sutton,06/02/2024,50458879,276.79,Caremore Group Ltd,CHILDREN'S SERVICES - FOSTERING & ADOPTION SERVICES,People's Services,Approved Lodgings,A61000,0
London Borough of Sutton,06/02/2024,50458879,"6,598.57",Caremore Group Ltd,CHILDREN'S SERVICES - FOSTERING & ADOPTION SERVICES,People's Services,Approved Lodgings,A61000,0
London Borough of Sutton,06/02/2024,50458880,276.79,Caremore Group Ltd,CHILDREN'S SERVICES - FOSTERING & ADOPTION SERVICES,People's Services,Approved Lodgings,A61000,0
London Borough of Sutton,06/02/2024,50458880,"6,598.57",Caremore Group Ltd,CHILDREN'S SERVICES - FOSTERING & ADOPTION SERVICES,People's Services,Approved Lodgings,A61000,0
London Borough of Sutton,16/02/2024,50461339,-846.40,Caretech Community Services Ltd,SOCIAL SERVICES RESIDENTIAL,People's Services,Residential Care - Client Cont ( Net Paymt ),A56113,0
London Borough of Sutton,16/02/2024,50461339,"6,115.08",Caretech Community Services Ltd,SOCIAL SERVICES RESIDENTIAL,People's Services,Residential Care - Ext Provider,A56114,0
London Borough of Sutton,16/02/2024,50461342,"5,621.56",Caretech Community Services Ltd,SOCIAL SERVICES RESIDENTIAL,People's Services,Residential Care - Ext Provider,A56114,0
London Borough of Sutton,06/02/2024,50455748,"4,076.70",Carew Academy,CHILDREN'S SERVICES - RESIDENTIAL,People's Services,Payment - Teachers Pay Grant,A51026,0
London Borough of Sutton,06/02/2024,50455754,"11,296.86",Carew Academy,CHILDREN'S SERVICES - RESIDENTIAL,People's Services,Payment - Teachers Pension Grant,A51027,0
London Borough of Sutton,01/02/2024,50458414,"250,970.56",Carew Academy,CHILDREN'S SERVICES - RESIDENTIAL,People's Services,Top-up Funding,A51016,0
London Borough of Sutton,01/02/2024,50458415,"848,588.67",Carew Academy,CHILDREN'S SERVICES - RESIDENTIAL,People's Services,Top-up Funding,A51016,0
London Borough of Sutton,16/02/2024,50462057,"2,015.00",Carew Academy,CHILDREN'S SERVICES - RESIDENTIAL,People's Services,FSM Supplementary,A60036,0
London Borough of Sutton,24/01/2023,20068186,"1,750.00",Caridon Property Ltd,SUNDRY SUPPLIER - HOUSING,Environment Housing and Neighbourhoods,Rent Deposit Scheme,B32179,0
London Borough of Sutton,02/02/2024,20068414,"8,593.50",Caridon Property Ltd,ACCOMMODATION BED & BREAKFAST,Environment Housing and Neighbourhoods,Bed & Breakfast,A56000,0
London Borough of Sutton,25/01/2024,50458857,276.79,Caridon Young Living Ltd,CHILDREN'S SERVICES - RESIDENTIAL,People's Services,Approved Lodgings,A61000,0
London Borough of Sutton,25/01/2024,50458857,"4,650.00",Caridon Young Living Ltd,CHILDREN'S SERVICES - RESIDENTIAL,People's Services,Approved Lodgings,A61000,0
London Borough of Sutton,25/01/2024,50458885,276.79,Caridon Young Living Ltd,CHILDREN'S SERVICES - RESIDENTIAL,People's Services,Approved Lodgings,A61000,0
London Borough of Sutton,25/01/2024,50458885,"20,482.14",Caridon Young Living Ltd,CHILDREN'S SERVICES - RESIDENTIAL,People's Services,Approved Lodgings,A61000,0
London Borough of Sutton,25/01/2024,50458902,276.79,Caridon Young Living Ltd,CHILDREN'S SERVICES - RESIDENTIAL,People's Services,Approved Lodgings,A61000,0
London Borough of Sutton,25/01/2024,50458902,"5,592.86",Caridon Young Living Ltd,CHILDREN'S SERVICES - RESIDENTIAL,People's Services,Approved Lodgings,A61000,0
London Borough of Sutton,25/01/2024,50458968,"22,198.22",Caridon Young Living Ltd,CHILDREN'S SERVICES - RESIDENTIAL,People's Services,Residential Care-Children,A56115,0
London Borough of Sutton,19/02/2024,50462323,741.58,Care  Support Partners Ltd,SOCIAL SERVICES RESIDENTIAL,People's Services,Supported Living,A56088,0
London Borough of Sutton,19/02/2024,50462323,593.26,Care  Support Partners Ltd,SOCIAL SERVICES RESIDENTIAL,People's Services,Supported Living,A56088,0
London Borough of Sutton,19/02/2024,50462323,"2,009.28",Care  Support Partners Ltd,SOCIAL SERVICES RESIDENTIAL,People's Services,Supported Living,A56088,0
London Borough of Sutton,28/12/2023,50458379,"1,386.64",Carlene House,SOCIAL SERVICES RESIDENTIAL,People's Services,Supported Living,A56088,0
London Borough of Sutton,28/12/2023,50458379,"1,458.52",Carlene House,SOCIAL SERVICES RESIDENTIAL,People's Services,Supported Living,A56088,0
London Borough of Sutton,28/12/2023,50458379,784.84,Carlene House,SOCIAL SERVICES RESIDENTIAL,People's Services,Supported Living,A56088,0
London Borough of Sutton,05/02/2024,50458496,"1,986.45",Carlene House,SOCIAL SERVICES RESIDENTIAL,People's Services,Home Care Services,A56019,0
London Borough of Sutton,05/02/2024,50458516,"1,463.70",Carlene House,SOCIAL SERVICES RESIDENTIAL,People's Services,Home Care Services,A56019,0
London Borough of Sutton,05/02/2024,50458517,"1,627.80",Carlene House,SOCIAL SERVICES RESIDENTIAL,People's Services,Home Care Services,A56019,0
London Borough of Sutton,05/02/2024,50458518,"1,881.90",Carlene House,SOCIAL SERVICES RESIDENTIAL,People's Services,Home Care Services,A56019,0
London Borough of Sutton,05/02/2024,50458519,"1,359.15",Carlene House,SOCIAL SERVICES RESIDENTIAL,People's Services,Home Care Services,A56019,0
London Borough of Sutton,05/02/2024,50458520,"4,966.15",Carlene House,SOCIAL SERVICES RESIDENTIAL,People's Services,Home Care Services,A56019,0
London Borough of Sutton,05/02/2024,50458521,"1,986.45",Carlene House,SOCIAL SERVICES RESIDENTIAL,People's Services,Home Care Services,A56019,0
London Borough of Sutton,05/02/2024,50458522,"1,367.10",Carlene House,SOCIAL SERVICES RESIDENTIAL,People's Services,Supported Living,A56088,0
London Borough of Sutton,05/02/2024,50458522,"1,823.15",Carlene House,SOCIAL SERVICES RESIDENTIAL,People's Services,Supported Living,A56088,0
London Borough of Sutton,05/02/2024,50458522,981.05,Carlene House,SOCIAL SERVICES RESIDENTIAL,People's Services,Supported Living,A56088,0
London Borough of Sutton,05/02/2024,50458523,"2,636.55",Carlene House,SOCIAL SERVICES RESIDENTIAL,People's Services,Supported Living,A56088,0
London Borough of Sutton,05/02/2024,50458523,"1,823.15",Carlene House,SOCIAL SERVICES RESIDENTIAL,People's Services,Supported Living,A56088,0
London Borough of Sutton,05/02/2024,50458523,981.05,Carlene House,SOCIAL SERVICES RESIDENTIAL,People's Services,Supported Living,A56088,0
London Borough of Sutton,16/02/2024,50461609,"6,127.44",Carlene House,SOCIAL SERVICES RESIDENTIAL,People's Services,Residential Care - Ext Provider,A56114,0
London Borough of Sutton,16/02/2024,50461618,"6,127.44",Carlene House,SOCIAL SERVICES RESIDENTIAL,People's Services,Residential Care - Ext Provider,A56114,0
London Borough of Sutton,16/02/2024,50461718,"6,127.44",Carlene House,SOCIAL SERVICES RESIDENTIAL,People's Services,Residential Care - Ext Provider,A56114,0
London Borough of Sutton,16/02/2024,50461784,"6,127.44",Carlene House,SOCIAL SERVICES RESIDENTIAL,People's Services,Residential Care - Ext Provider,A56114,0
London Borough of Sutton,16/02/2024,50461818,"6,127.44",Carlene House,SOCIAL SERVICES RESIDENTIAL,People's Services,Residential Care - Ext Provider,A56114,0
London Borough of Sutton,16/02/2024,50461822,"6,127.44",Carlene House,SOCIAL SERVICES RESIDENTIAL,People's Services,Residential Care - Ext Provider,A56114,0
London Borough of Sutton,05/02/2024,50461984,"2,974.30",Carlene House,SOCIAL SERVICES RESIDENTIAL,People's Services,Supported Living,A56088,0
London Borough of Sutton,05/02/2024,50461984,"1,823.15",Carlene House,SOCIAL SERVICES RESIDENTIAL,People's Services,Supported Living,A56088,0
London Borough of Sutton,05/02/2024,50461984,981.05,Carlene House,SOCIAL SERVICES RESIDENTIAL,People's Services,Supported Living,A56088,0
London Borough of Sutton,06/02/2024,50456849,"2,332.64",REDACTED - PERSONAL DATA,GRANTS & EX GRATIA PAYMENTS,People's Services,Payment - Nursery Funding,A51056,0
London Borough of Sutton,06/02/2024,50456990,500.00,REDACTED - PERSONAL DATA,GRANTS & EX GRATIA PAYMENTS,Environment Housing and Neighbourhoods,"Grants, Contributions & Donations",A47005,0
London Borough of Sutton,06/02/2024,50455804,"4,816.71",Carshalton Boys Sports College (Academy),SCHOOL FUNDS,People's Services,Pupil Growth,A51014,0
London Borough of Sutton,08/02/2024,50460440,"6,000.00",Carshalton Boys Sports College (Academy),SCHOOL FUNDS,People's Services,Top Up Additional Support,A60015,0
London Borough of Sutton,14/02/2024,50460467,"1,230.78",Carshalton Boys Sports College (Academy),SCHOOL FUNDS,People's Services,Top-up Funding,A51016,0
London Borough of Sutton,30/01/2024,20068113,"2,852.00",Carter Jonas LLP,LEGAL & PROFESSIONAL SERVICES,Environment Housing and Neighbourhoods,Payments to Contractors,C14000,0
London Borough of Sutton,19/12/2023,20068057,"2,360.00",Cascade Communications Ltd,LEGAL & PROFESSIONAL SERVICES,Development Growth and Regeneration,External Fees and Consultants,C20000,0
London Borough of Sutton,31/10/2023,20068130,"5,100.00",Cascade Communications Ltd,LEGAL & PROFESSIONAL SERVICES,Development Growth and Regeneration,External Fees and Consultants,C20000,0
London Borough of Sutton,10/10/2023,20068131,"5,850.00",Cascade Communications Ltd,LEGAL & PROFESSIONAL SERVICES,Development Growth and Regeneration,External Fees and Consultants,C20000,0
London Borough of Sutton,28/11/2023,20068132,"5,110.06",Cascade Communications Ltd,LEGAL & PROFESSIONAL SERVICES,Development Growth and Regeneration,External Fees and Consultants,C20000,0
London Borough of Sutton,06/02/2024,50456859,999.70,REDACTED - PERSONAL DATA,GRANTS & EX GRATIA PAYMENTS,People's Services,Payment - Nursery Funding,A51056,0
London Borough of Sutton,01/12/2023,50460452,"16,300.00",Cavendish Education Ltd,CHILDREN'S SERVICES - SEN SERVICES,People's Services,Independent School Fees,A56002,0
London Borough of Sutton,01/12/2023,50460453,"16,300.00",Cavendish Education Ltd,CHILDREN'S SERVICES - SEN SERVICES,People's Services,Independent School Fees,A56002,0
London Borough of Sutton,01/12/2023,50460454,"16,300.00",Cavendish Education Ltd,CHILDREN'S SERVICES - SEN SERVICES,People's Services,Independent School Fees,A56002,0
London Borough of Sutton,29/02/2024,20069726,"8,066.10",CBRE Ltd,TEMP STAFF & CONSULTANCY,Resources,Building Rents,A22005,0
London Borough of Sutton,18/07/2023,20054433,"1,600.49",Central London Community Healthcare NHS Trust,SOCIAL SERVICES - OTHER,Health and Wellbeing,Provider Contract Payments,A44290,0
London Borough of Sutton,28/07/2023,20054883,"1,600.49",Central London Community Healthcare NHS Trust,SOCIAL SERVICES - OTHER,Health and Wellbeing,Provider Contract Payments,A44290,0
London Borough of Sutton,28/07/2023,20054884,"-1,600.49",Central London Community Healthcare NHS Trust,SOCIAL SERVICES - OTHER,Health and Wellbeing,Provider Contract Payments,A44290,0
London Borough of Sutton,18/08/2023,20056328,"1,600.49",Central London Community Healthcare NHS Trust,SOCIAL SERVICES - OTHER,Health and Wellbeing,Provider Contract Payments,A44290,0
London Borough of Sutton,18/09/2023,20058212,"1,600.49",Central London Community Healthcare NHS Trust,SOCIAL SERVICES - OTHER,Health and Wellbeing,Provider Contract Payments,A44290,0
London Borough of Sutton,19/02/2024,50462397,"2,097.57",Centred (Scotland) N,SOCIAL SERVICES RESIDENTIAL,People's Services,Supported Living,A56088,0
London Borough of Sutton,16/02/2024,50461285,"4,080.00",CHARING GARDENS LTD,SOCIAL SERVICES RESIDENTIAL,People's Services,Residential Care - Ext Provider,A56114,0
London Borough of Sutton,06/02/2024,50456632,"1,046.51",Cheam Baptist Church Pre-School,ACADEMIC INSTNS - OTHER,People's Services,Payment - school supplementary grant,A51062,0
London Borough of Sutton,06/02/2024,50456813,"12,762.86",Cheam Baptist Church Pre-School,ACADEMIC INSTNS - OTHER,People's Services,Payment - Nursery Funding,A51056,0
London Borough of Sutton,01/02/2024,50465300,"1,980.00",Cheam Baptist Church Pre-School,ACADEMIC INSTNS - OTHER,People's Services,SEND Inclusion funding,A60038,0
London Borough of Sutton,06/02/2024,50455774,"32,133.03",Cheam Common Infants School -ACADEMY,SCHOOL FUNDS,People's Services,Payment - Nursery Funding,A51056,0
London Borough of Sutton,06/02/2024,50455822,"2,513.81",Cheam Common Infants School -ACADEMY,SCHOOL FUNDS,People's Services,Payment - school supplementary grant,A51062,0
London Borough of Sutton,14/02/2024,50460469,"1,843.80",Cheam Common Junior Academy,SCHOOL FUNDS,People's Services,Top-up Funding,A51016,0
London Borough of Sutton,20/02/2024,50460944,"1,689.12",Cheam Common Junior Academy,SCHOOL FUNDS,Resources,Other Supplies & Services,A44291,0
London Borough of Sutton,16/02/2024,50462053,"46,346.00",Cheam Common Junior Academy,SCHOOL FUNDS,People's Services,FSM Supplementary,A60036,0
London Borough of Sutton,06/02/2024,50455806,"3,211.14",Cheam High School (Academy),SCHOOL FUNDS,People's Services,Pupil Growth,A51014,0
London Borough of Sutton,14/02/2024,50460470,"5,567.74",Cheam High School (Academy),SCHOOL FUNDS,People's Services,Top-up Funding,A51016,0
London Borough of Sutton,14/02/2024,50460479,"3,045.60",Cheam High School (Academy),SCHOOL FUNDS,People's Services,Top-up Funding,A51016,0
London Borough of Sutton,06/02/2024,50455776,668.85,Cheam Park Farm Primary School,SCHOOL FUNDS,People's Services,Payment - Nursery Funding,A51056,0
London Borough of Sutton,14/02/2024,50460471,"3,663.84",Cheam Park Farm Primary School,SCHOOL FUNDS,People's Services,Top-up Funding,A51016,0
London Borough of Sutton,16/02/2024,50462052,"46,058.00",Cheam Park Farm Primary School,SCHOOL FUNDS,People's Services,FSM Supplementary,A60036,0
London Borough of Sutton,16/02/2024,50461469,"4,096.12",Chegworth Nursing Home Bayswift Ltd,SOCIAL SERVICES RESIDENTIAL,People's Services,Nursing Care - Ext Provider,A56025,0
London Borough of Sutton,16/02/2024,50461469,-878.84,Chegworth Nursing Home Bayswift Ltd,SOCIAL SERVICES RESIDENTIAL,People's Services,Nursing Care - 3rd party top up payment,A56023,0
London Borough of Sutton,16/02/2024,50461486,-878.84,Chegworth Nursing Home Bayswift Ltd,SOCIAL SERVICES RESIDENTIAL,People's Services,Nursing Care - 3rd party top up payment,A56023,0
London Borough of Sutton,16/02/2024,50461486,"4,096.12",Chegworth Nursing Home Bayswift Ltd,SOCIAL SERVICES RESIDENTIAL,People's Services,Nursing Care Short Term,A56026,0
London Borough of Sutton,16/02/2024,50461490,"4,400.00",Chegworth Nursing Home Bayswift Ltd,SOCIAL SERVICES RESIDENTIAL,People's Services,Nursing Care - Ext Provider,A56025,0
London Borough of Sutton,16/02/2024,50461490,-878.84,Chegworth Nursing Home Bayswift Ltd,SOCIAL SERVICES RESIDENTIAL,People's Services,Nursing Care - 3rd party top up payment,A56023,0
London Borough of Sutton,16/02/2024,50461529,"4,560.00",Chegworth Nursing Home Bayswift Ltd,SOCIAL SERVICES RESIDENTIAL,People's Services,Nursing Care - Ext Provider,A56025,0
London Borough of Sutton,16/02/2024,50461529,-878.84,Chegworth Nursing Home Bayswift Ltd,SOCIAL SERVICES RESIDENTIAL,People's Services,Nursing Care - 3rd party top up payment,A56023,0
London Borough of Sutton,16/02/2024,50461544,"1,598.54",Chegworth Nursing Home Bayswift Ltd,SOCIAL SERVICES RESIDENTIAL,People's Services,Nursing Care - Ext Provider,A56025,0
London Borough of Sutton,16/02/2024,50461544,-219.71,Chegworth Nursing Home Bayswift Ltd,SOCIAL SERVICES RESIDENTIAL,People's Services,Nursing Care - 3rd party top up payment,A56023,0
London Borough of Sutton,16/02/2024,50461567,"4,096.12",Chegworth Nursing Home Bayswift Ltd,SOCIAL SERVICES RESIDENTIAL,People's Services,Nursing Care - Ext Provider,A56025,0
London Borough of Sutton,16/02/2024,50461567,-878.84,Chegworth Nursing Home Bayswift Ltd,SOCIAL SERVICES RESIDENTIAL,People's Services,Nursing Care - 3rd party top up payment,A56023,0
London Borough of Sutton,16/02/2024,50461569,-878.84,Chegworth Nursing Home Bayswift Ltd,SOCIAL SERVICES RESIDENTIAL,People's Services,Nursing Care - 3rd party top up payment,A56023,0
London Borough of Sutton,16/02/2024,50461569,"4,096.12",Chegworth Nursing Home Bayswift Ltd,SOCIAL SERVICES RESIDENTIAL,People's Services,Nursing Care Short Term,A56026,0
London Borough of Sutton,16/02/2024,50461589,"4,096.12",Chegworth Nursing Home Bayswift Ltd,SOCIAL SERVICES RESIDENTIAL,People's Services,Nursing Care - Ext Provider,A56025,0
London Borough of Sutton,16/02/2024,50461589,-878.84,Chegworth Nursing Home Bayswift Ltd,SOCIAL SERVICES RESIDENTIAL,People's Services,Nursing Care - 3rd party top up payment,A56023,0
London Borough of Sutton,16/02/2024,50461592,"4,560.00",Chegworth Nursing Home Bayswift Ltd,SOCIAL SERVICES RESIDENTIAL,People's Services,Nursing Care - Ext Provider,A56025,0
London Borough of Sutton,16/02/2024,50461592,-878.84,Chegworth Nursing Home Bayswift Ltd,SOCIAL SERVICES RESIDENTIAL,People's Services,Nursing Care - 3rd party top up payment,A56023,0
London Borough of Sutton,16/02/2024,50461605,-878.84,Chegworth Nursing Home Bayswift Ltd,SOCIAL SERVICES RESIDENTIAL,People's Services,Nursing Care - 3rd party top up payment,A56023,0
London Borough of Sutton,16/02/2024,50461605,"4,096.12",Chegworth Nursing Home Bayswift Ltd,SOCIAL SERVICES RESIDENTIAL,People's Services,Nursing Care - Ext Provider,A56025,0
London Borough of Sutton,16/02/2024,50461650,-878.84,Chegworth Nursing Home Bayswift Ltd,SOCIAL SERVICES RESIDENTIAL,People's Services,Nursing Care - 3rd party top up payment,A56023,0
London Borough of Sutton,16/02/2024,50461650,"4,096.12",Chegworth Nursing Home Bayswift Ltd,SOCIAL SERVICES RESIDENTIAL,People's Services,Nursing Care - Ext Provider,A56025,0
London Borough of Sutton,16/02/2024,50461667,-878.84,Chegworth Nursing Home Bayswift Ltd,SOCIAL SERVICES RESIDENTIAL,People's Services,Nursing Care - 3rd party top up payment,A56023,0
London Borough of Sutton,16/02/2024,50461667,"4,096.12",Chegworth Nursing Home Bayswift Ltd,SOCIAL SERVICES RESIDENTIAL,People's Services,Nursing Care - Ext Provider,A56025,0
London Borough of Sutton,16/02/2024,50461682,"4,150.40",Chegworth Nursing Home Bayswift Ltd,SOCIAL SERVICES RESIDENTIAL,People's Services,Nursing Care - Ext Provider,A56025,0
London Borough of Sutton,16/02/2024,50461695,-878.84,Chegworth Nursing Home Bayswift Ltd,SOCIAL SERVICES RESIDENTIAL,People's Services,Nursing Care - 3rd party top up payment,A56023,0
London Borough of Sutton,16/02/2024,50461695,"4,096.12",Chegworth Nursing Home Bayswift Ltd,SOCIAL SERVICES RESIDENTIAL,People's Services,Nursing Care Short Term,A56026,0
London Borough of Sutton,16/02/2024,50461712,"4,096.12",Chegworth Nursing Home Bayswift Ltd,SOCIAL SERVICES RESIDENTIAL,People's Services,Nursing Care - Ext Provider,A56025,0
London Borough of Sutton,16/02/2024,50461712,-878.84,Chegworth Nursing Home Bayswift Ltd,SOCIAL SERVICES RESIDENTIAL,People's Services,Nursing Care - 3rd party top up payment,A56023,0
London Borough of Sutton,16/02/2024,50461730,-878.84,Chegworth Nursing Home Bayswift Ltd,SOCIAL SERVICES RESIDENTIAL,People's Services,Nursing Care - 3rd party top up payment,A56023,0
London Borough of Sutton,16/02/2024,50461730,"4,560.00",Chegworth Nursing Home Bayswift Ltd,SOCIAL SERVICES RESIDENTIAL,People's Services,Nursing Care Short Term,A56026,0
London Borough of Sutton,16/02/2024,50461743,"4,096.12",Chegworth Nursing Home Bayswift Ltd,SOCIAL SERVICES RESIDENTIAL,People's Services,Nursing Care - Ext Provider,A56025,0
London Borough of Sutton,16/02/2024,50461743,-878.84,Chegworth Nursing Home Bayswift Ltd,SOCIAL SERVICES RESIDENTIAL,People's Services,Nursing Care - 3rd party top up payment,A56023,0
London Borough of Sutton,16/02/2024,50461773,"4,149.92",Chegworth Nursing Home Bayswift Ltd,SOCIAL SERVICES RESIDENTIAL,People's Services,Nursing Care - Ext Provider,A56025,0
London Borough of Sutton,16/02/2024,50461773,-750.40,Chegworth Nursing Home Bayswift Ltd,SOCIAL SERVICES RESIDENTIAL,People's Services,Nursing Care - 3rd party top up payment,A56023,0
London Borough of Sutton,16/02/2024,50461777,"12,865.71",Chegworth Nursing Home Bayswift Ltd,SOCIAL SERVICES RESIDENTIAL,People's Services,Nursing Care - Ext Provider,A56025,0
London Borough of Sutton,16/02/2024,50461777,"-2,479.58",Chegworth Nursing Home Bayswift Ltd,SOCIAL SERVICES RESIDENTIAL,People's Services,Nursing Care - 3rd party top up payment,A56023,0
London Borough of Sutton,16/02/2024,50461796,"4,096.12",Chegworth Nursing Home Bayswift Ltd,SOCIAL SERVICES RESIDENTIAL,People's Services,Nursing Care - Ext Provider,A56025,0
London Borough of Sutton,16/02/2024,50461796,-878.84,Chegworth Nursing Home Bayswift Ltd,SOCIAL SERVICES RESIDENTIAL,People's Services,Nursing Care - 3rd party top up payment,A56023,0
London Borough of Sutton,16/02/2024,50461809,-662.24,Chegworth Nursing Home Bayswift Ltd,SOCIAL SERVICES RESIDENTIAL,People's Services,Nursing Care - 3rd party top up payment,A56023,0
London Borough of Sutton,16/02/2024,50461809,"4,955.56",Chegworth Nursing Home Bayswift Ltd,SOCIAL SERVICES RESIDENTIAL,People's Services,Nursing Care Short Term,A56026,0
London Borough of Sutton,16/02/2024,50461283,-508.04,Cherry Lodge,SOCIAL SERVICES RESIDENTIAL,People's Services,Residential Care - Client Cont ( Net Paymt ),A56113,0
London Borough of Sutton,16/02/2024,50461283,"5,159.40",Cherry Lodge,SOCIAL SERVICES RESIDENTIAL,People's Services,Residential Care - Ext Provider,A56114,0
London Borough of Sutton,16/02/2024,50461341,"4,443.40",Cherry Lodge,SOCIAL SERVICES RESIDENTIAL,People's Services,Residential Care - Ext Provider,A56114,0
London Borough of Sutton,16/02/2024,50461284,"4,096.12",CHHG Ltd,SOCIAL SERVICES RESIDENTIAL,People's Services,Nursing Care - Ext Provider,A56025,0
London Borough of Sutton,16/02/2024,50461284,-878.84,CHHG Ltd,SOCIAL SERVICES RESIDENTIAL,People's Services,Nursing Care - 3rd party top up payment,A56023,0
London Borough of Sutton,05/01/2024,50458982,"14,102.52",Children's Trust,CHILDREN'S SERVICES - DAY CARE,People's Services,Residential Care-Children,A56115,0
London Borough of Sutton,05/02/2024,50460430,"6,357.38",Children's Trust,CHILDREN'S SERVICES - DAY CARE,People's Services,Independent School Fees,A56002,0
London Borough of Sutton,05/02/2024,50460431,"6,426.40",Children's Trust,CHILDREN'S SERVICES - DAY CARE,People's Services,Independent School Fees,A56002,0
London Borough of Sutton,05/02/2024,50460432,"7,477.07",Children's Trust,CHILDREN'S SERVICES - DAY CARE,People's Services,Independent School Fees,A56002,0
London Borough of Sutton,05/02/2024,50460433,"6,455.40",Children's Trust,CHILDREN'S SERVICES - DAY CARE,People's Services,Independent School Fees,A56002,0
London Borough of Sutton,21/02/2024,50466039,"3,999.99",Chipstead Valley Primary School,SCHOOL FUNDS,People's Services,Top-up Funding,A51016,0
London Borough of Sutton,16/02/2024,50461457,"8,863.92",Choice Care Group (Surrey) Ltd,SOCIAL SERVICES RESIDENTIAL,People's Services,Residential Care - Ext Provider,A56114,0
London Borough of Sutton,16/02/2024,50461464,"8,769.56",Choice Care Group (Surrey) Ltd,SOCIAL SERVICES RESIDENTIAL,People's Services,Residential Care - Ext Provider,A56114,0
London Borough of Sutton,16/02/2024,50461611,"7,809.32",Choice Care Group (Surrey) Ltd,SOCIAL SERVICES RESIDENTIAL,People's Services,Residential Care - Ext Provider,A56114,0
London Borough of Sutton,16/02/2024,50461711,"8,682.92",Choice Care Group (Surrey) Ltd,SOCIAL SERVICES RESIDENTIAL,People's Services,Residential Care - Ext Provider,A56114,0
London Borough of Sutton,16/02/2024,50461830,"7,512.24",Choice Care Group (Surrey) Ltd,SOCIAL SERVICES RESIDENTIAL,People's Services,Residential Care - Ext Provider,A56114,0
London Borough of Sutton,01/02/2024,50457546,"54,672.33",Choice Support,GRANTS & EX GRATIA PAYMENTS,People's Services,Supported Living,A56088,0
London Borough of Sutton,01/02/2024,50457546,"10,628.45",Choice Support,GRANTS & EX GRATIA PAYMENTS,People's Services,Supported Living,A56088,0
London Borough of Sutton,01/02/2024,50457546,"13,350.24",Choice Support,GRANTS & EX GRATIA PAYMENTS,People's Services,Supported Living,A56088,0
London Borough of Sutton,13/02/2024,50460423,"13,352.75",Choice Support,GRANTS & EX GRATIA PAYMENTS,People's Services,Supported Living,A56088,0
London Borough of Sutton,13/02/2024,50460423,"7,379.76",Choice Support,GRANTS & EX GRATIA PAYMENTS,People's Services,Supported Living,A56088,0
London Borough of Sutton,13/02/2024,50460423,"8,011.64",Choice Support,GRANTS & EX GRATIA PAYMENTS,People's Services,Supported Living,A56088,0
London Borough of Sutton,16/02/2024,50461383,"5,887.60",Choice Support,GRANTS & EX GRATIA PAYMENTS,People's Services,Residential Care - Ext Provider,A56114,0
London Borough of Sutton,19/02/2024,50462268,"1,197.62",Choice Support,GRANTS & EX GRATIA PAYMENTS,People's Services,Supported Living,A56088,0
London Borough of Sutton,19/02/2024,50462268,"5,298.54",Choice Support,GRANTS & EX GRATIA PAYMENTS,People's Services,Supported Living,A56088,0
London Borough of Sutton,19/02/2024,50462268,"1,103.16",Choice Support,GRANTS & EX GRATIA PAYMENTS,People's Services,Supported Living,A56088,0
London Borough of Sutton,19/02/2024,50462278,"2,281.64",Choice Support,GRANTS & EX GRATIA PAYMENTS,People's Services,Supported Living,A56088,0
London Borough of Sutton,19/02/2024,50462278,462.31,Choice Support,GRANTS & EX GRATIA PAYMENTS,People's Services,Supported Living,A56088,0
London Borough of Sutton,19/02/2024,50462278,"1,603.94",Choice Support,GRANTS & EX GRATIA PAYMENTS,People's Services,Supported Living,A56088,0
London Borough of Sutton,19/02/2024,50462278,629.35,Choice Support,GRANTS & EX GRATIA PAYMENTS,People's Services,Supported Living,A56088,0
London Borough of Sutton,19/02/2024,50462279,602.46,Choice Support,GRANTS & EX GRATIA PAYMENTS,People's Services,Supported Living,A56088,0
London Borough of Sutton,19/02/2024,50462280,"4,463.84",Choice Support,GRANTS & EX GRATIA PAYMENTS,People's Services,Supported Living,A56088,0
London Borough of Sutton,19/02/2024,50462280,"1,103.16",Choice Support,GRANTS & EX GRATIA PAYMENTS,People's Services,Supported Living,A56088,0
London Borough of Sutton,19/02/2024,50462281,"8,129.28",Choice Support,GRANTS & EX GRATIA PAYMENTS,People's Services,Supported Living,A56088,0
London Borough of Sutton,19/02/2024,50462281,"1,838.36",Choice Support,GRANTS & EX GRATIA PAYMENTS,People's Services,Supported Living,A56088,0
London Borough of Sutton,19/02/2024,50462295,"1,197.62",Choice Support,GRANTS & EX GRATIA PAYMENTS,People's Services,Supported Living,A56088,0
London Borough of Sutton,19/02/2024,50462295,"3,157.36",Choice Support,GRANTS & EX GRATIA PAYMENTS,People's Services,Supported Living,A56088,0
London Borough of Sutton,19/02/2024,50462295,"1,103.16",Choice Support,GRANTS & EX GRATIA PAYMENTS,People's Services,Supported Living,A56088,0
London Borough of Sutton,19/02/2024,50462297,"1,197.62",Choice Support,GRANTS & EX GRATIA PAYMENTS,People's Services,Supported Living,A56088,0
London Borough of Sutton,19/02/2024,50462297,"5,407.42",Choice Support,GRANTS & EX GRATIA PAYMENTS,People's Services,Supported Living,A56088,0
London Borough of Sutton,19/02/2024,50462297,"1,103.16",Choice Support,GRANTS & EX GRATIA PAYMENTS,People's Services,Supported Living,A56088,0
London Borough of Sutton,19/02/2024,50462299,"3,337.32",Choice Support,GRANTS & EX GRATIA PAYMENTS,People's Services,Supported Living,A56088,0
London Borough of Sutton,19/02/2024,50462307,508.08,Choice Support,GRANTS & EX GRATIA PAYMENTS,People's Services,Supported Living,A56088,0
London Borough of Sutton,19/02/2024,50462307,412.25,Choice Support,GRANTS & EX GRATIA PAYMENTS,People's Services,Supported Living,A56088,0
London Borough of Sutton,19/02/2024,50462307,"1,959.74",Choice Support,GRANTS & EX GRATIA PAYMENTS,People's Services,Supported Living,A56088,0
London Borough of Sutton,19/02/2024,50462310,"1,996.02",Choice Support,GRANTS & EX GRATIA PAYMENTS,People's Services,Supported Living,A56088,0
London Borough of Sutton,19/02/2024,50462310,"1,103.16",Choice Support,GRANTS & EX GRATIA PAYMENTS,People's Services,Supported Living,A56088,0
London Borough of Sutton,19/02/2024,50462310,"1,197.62",Choice Support,GRANTS & EX GRATIA PAYMENTS,People's Services,Supported Living,A56088,0
London Borough of Sutton,19/02/2024,50462319,"1,197.62",Choice Support,GRANTS & EX GRATIA PAYMENTS,People's Services,Supported Living,A56088,0
London Borough of Sutton,19/02/2024,50462319,"3,266.22",Choice Support,GRANTS & EX GRATIA PAYMENTS,People's Services,Supported Living,A56088,0
London Borough of Sutton,19/02/2024,50462319,"1,103.16",Choice Support,GRANTS & EX GRATIA PAYMENTS,People's Services,Supported Living,A56088,0
London Borough of Sutton,19/02/2024,50462327,290.34,Choice Support,GRANTS & EX GRATIA PAYMENTS,People's Services,Supported Living,A56088,0
London Borough of Sutton,19/02/2024,50462327,412.25,Choice Support,GRANTS & EX GRATIA PAYMENTS,People's Services,Supported Living,A56088,0
London Borough of Sutton,19/02/2024,50462327,"1,959.74",Choice Support,GRANTS & EX GRATIA PAYMENTS,People's Services,Supported Living,A56088,0
London Borough of Sutton,19/02/2024,50462328,602.46,Choice Support,GRANTS & EX GRATIA PAYMENTS,People's Services,Supported Living,A56088,0
London Borough of Sutton,19/02/2024,50462328,"4,971.92",Choice Support,GRANTS & EX GRATIA PAYMENTS,People's Services,Supported Living,A56088,0
London Borough of Sutton,19/02/2024,50462328,"1,103.16",Choice Support,GRANTS & EX GRATIA PAYMENTS,People's Services,Supported Living,A56088,0
London Borough of Sutton,19/02/2024,50462329,"6,187.68",Choice Support,GRANTS & EX GRATIA PAYMENTS,People's Services,Supported Living,A56088,0
London Borough of Sutton,19/02/2024,50462329,"1,103.16",Choice Support,GRANTS & EX GRATIA PAYMENTS,People's Services,Supported Living,A56088,0
London Borough of Sutton,19/02/2024,50462330,602.46,Choice Support,GRANTS & EX GRATIA PAYMENTS,People's Services,Supported Living,A56088,0
London Borough of Sutton,19/02/2024,50462341,"1,197.62",Choice Support,GRANTS & EX GRATIA PAYMENTS,People's Services,Supported Living,A56088,0
London Borough of Sutton,19/02/2024,50462341,"3,157.36",Choice Support,GRANTS & EX GRATIA PAYMENTS,People's Services,Supported Living,A56088,0
London Borough of Sutton,19/02/2024,50462341,"1,103.16",Choice Support,GRANTS & EX GRATIA PAYMENTS,People's Services,Supported Living,A56088,0
London Borough of Sutton,19/02/2024,50462348,"1,197.62",Choice Support,GRANTS & EX GRATIA PAYMENTS,People's Services,Supported Living,A56088,0
London Borough of Sutton,19/02/2024,50462348,"3,193.64",Choice Support,GRANTS & EX GRATIA PAYMENTS,People's Services,Supported Living,A56088,0
London Borough of Sutton,19/02/2024,50462348,"1,103.16",Choice Support,GRANTS & EX GRATIA PAYMENTS,People's Services,Supported Living,A56088,0
London Borough of Sutton,19/02/2024,50462351,"2,247.58",Choice Support,GRANTS & EX GRATIA PAYMENTS,People's Services,Supported Living,A56088,0
London Borough of Sutton,19/02/2024,50462351,470.46,Choice Support,GRANTS & EX GRATIA PAYMENTS,People's Services,Supported Living,A56088,0
London Borough of Sutton,19/02/2024,50462351,"1,578.76",Choice Support,GRANTS & EX GRATIA PAYMENTS,People's Services,Supported Living,A56088,0
London Borough of Sutton,19/02/2024,50462351,629.35,Choice Support,GRANTS & EX GRATIA PAYMENTS,People's Services,Supported Living,A56088,0
London Borough of Sutton,19/02/2024,50462353,462.31,Choice Support,GRANTS & EX GRATIA PAYMENTS,People's Services,Supported Living,A56088,0
London Borough of Sutton,19/02/2024,50462353,"3,745.98",Choice Support,GRANTS & EX GRATIA PAYMENTS,People's Services,Supported Living,A56088,0
London Borough of Sutton,19/02/2024,50462353,114.42,Choice Support,GRANTS & EX GRATIA PAYMENTS,People's Services,Supported Living,A56088,0
London Borough of Sutton,19/02/2024,50462356,"5,117.10",Choice Support,GRANTS & EX GRATIA PAYMENTS,People's Services,Supported Living,A56088,0
London Borough of Sutton,19/02/2024,50462356,"1,838.36",Choice Support,GRANTS & EX GRATIA PAYMENTS,People's Services,Supported Living,A56088,0
London Borough of Sutton,19/02/2024,50462357,602.46,Choice Support,GRANTS & EX GRATIA PAYMENTS,People's Services,Supported Living,A56088,0
London Borough of Sutton,19/02/2024,50462357,"4,717.88",Choice Support,GRANTS & EX GRATIA PAYMENTS,People's Services,Supported Living,A56088,0
London Borough of Sutton,19/02/2024,50462357,"1,103.16",Choice Support,GRANTS & EX GRATIA PAYMENTS,People's Services,Supported Living,A56088,0
London Borough of Sutton,19/02/2024,50462358,602.46,Choice Support,GRANTS & EX GRATIA PAYMENTS,People's Services,Supported Living,A56088,0
London Borough of Sutton,19/02/2024,50462358,"4,971.92",Choice Support,GRANTS & EX GRATIA PAYMENTS,People's Services,Supported Living,A56088,0
London Borough of Sutton,19/02/2024,50462358,"1,103.16",Choice Support,GRANTS & EX GRATIA PAYMENTS,People's Services,Supported Living,A56088,0
London Borough of Sutton,19/02/2024,50462359,"1,524.24",Choice Support,GRANTS & EX GRATIA PAYMENTS,People's Services,Supported Living,A56088,0
London Borough of Sutton,19/02/2024,50462359,412.25,Choice Support,GRANTS & EX GRATIA PAYMENTS,People's Services,Supported Living,A56088,0
London Borough of Sutton,19/02/2024,50462359,"1,959.74",Choice Support,GRANTS & EX GRATIA PAYMENTS,People's Services,Supported Living,A56088,0
London Borough of Sutton,19/02/2024,50462371,"2,111.36",Choice Support,GRANTS & EX GRATIA PAYMENTS,People's Services,Supported Living,A56088,0
London Borough of Sutton,19/02/2024,50462371,462.31,Choice Support,GRANTS & EX GRATIA PAYMENTS,People's Services,Supported Living,A56088,0
London Borough of Sutton,19/02/2024,50462371,"1,362.18",Choice Support,GRANTS & EX GRATIA PAYMENTS,People's Services,Supported Living,A56088,0
London Borough of Sutton,19/02/2024,50462371,114.42,Choice Support,GRANTS & EX GRATIA PAYMENTS,People's Services,Supported Living,A56088,0
London Borough of Sutton,19/02/2024,50462372,"3,584.56",Choice Support,GRANTS & EX GRATIA PAYMENTS,People's Services,Supported Living,A56088,0
London Borough of Sutton,19/02/2024,50462372,462.31,Choice Support,GRANTS & EX GRATIA PAYMENTS,People's Services,Supported Living,A56088,0
London Borough of Sutton,19/02/2024,50462372,"1,355.38",Choice Support,GRANTS & EX GRATIA PAYMENTS,People's Services,Supported Living,A56088,0
London Borough of Sutton,19/02/2024,50462372,629.35,Choice Support,GRANTS & EX GRATIA PAYMENTS,People's Services,Supported Living,A56088,0
London Borough of Sutton,19/02/2024,50462375,602.46,Choice Support,GRANTS & EX GRATIA PAYMENTS,People's Services,Supported Living,A56088,0
London Borough of Sutton,19/02/2024,50462375,"4,790.46",Choice Support,GRANTS & EX GRATIA PAYMENTS,People's Services,Supported Living,A56088,0
London Borough of Sutton,19/02/2024,50462375,"1,103.16",Choice Support,GRANTS & EX GRATIA PAYMENTS,People's Services,Supported Living,A56088,0
London Borough of Sutton,19/02/2024,50462376,"4,572.72",Choice Support,GRANTS & EX GRATIA PAYMENTS,People's Services,Supported Living,A56088,0
London Borough of Sutton,19/02/2024,50462376,412.25,Choice Support,GRANTS & EX GRATIA PAYMENTS,People's Services,Supported Living,A56088,0
London Borough of Sutton,19/02/2024,50462376,"1,959.74",Choice Support,GRANTS & EX GRATIA PAYMENTS,People's Services,Supported Living,A56088,0
London Borough of Sutton,19/02/2024,50462386,602.46,Choice Support,GRANTS & EX GRATIA PAYMENTS,People's Services,Supported Living,A56088,0
London Borough of Sutton,19/02/2024,50462386,"4,717.88",Choice Support,GRANTS & EX GRATIA PAYMENTS,People's Services,Supported Living,A56088,0
London Borough of Sutton,19/02/2024,50462386,"1,103.16",Choice Support,GRANTS & EX GRATIA PAYMENTS,People's Services,Supported Living,A56088,0
London Borough of Sutton,19/02/2024,50462391,"2,219.00",Choice Support,GRANTS & EX GRATIA PAYMENTS,People's Services,Supported Living,A56088,0
London Borough of Sutton,19/02/2024,50462391,462.31,Choice Support,GRANTS & EX GRATIA PAYMENTS,People's Services,Supported Living,A56088,0
London Borough of Sutton,19/02/2024,50462391,"1,569.90",Choice Support,GRANTS & EX GRATIA PAYMENTS,People's Services,Supported Living,A56088,0
London Borough of Sutton,19/02/2024,50462391,629.35,Choice Support,GRANTS & EX GRATIA PAYMENTS,People's Services,Supported Living,A56088,0
London Borough of Sutton,19/02/2024,50462404,"1,197.62",Choice Support,GRANTS & EX GRATIA PAYMENTS,People's Services,Supported Living,A56088,0
London Borough of Sutton,19/02/2024,50462404,"3,338.82",Choice Support,GRANTS & EX GRATIA PAYMENTS,People's Services,Supported Living,A56088,0
London Borough of Sutton,19/02/2024,50462404,"1,103.16",Choice Support,GRANTS & EX GRATIA PAYMENTS,People's Services,Supported Living,A56088,0
London Borough of Sutton,19/02/2024,50462407,"4,154.62",Choice Support,GRANTS & EX GRATIA PAYMENTS,People's Services,Supported Living,A56088,0
London Borough of Sutton,19/02/2024,50462409,"1,702.72",Choice Support,GRANTS & EX GRATIA PAYMENTS,People's Services,Supported Living,A56088,0
London Borough of Sutton,19/02/2024,50462409,462.31,Choice Support,GRANTS & EX GRATIA PAYMENTS,People's Services,Supported Living,A56088,0
London Borough of Sutton,19/02/2024,50462409,"2,315.70",Choice Support,GRANTS & EX GRATIA PAYMENTS,People's Services,Supported Living,A56088,0
London Borough of Sutton,19/02/2024,50462409,114.42,Choice Support,GRANTS & EX GRATIA PAYMENTS,People's Services,Supported Living,A56088,0
London Borough of Sutton,06/02/2024,50456635,"1,338.87",Christchurch Fledgelings Pre-School,ACADEMIC INSTNS - OTHER,People's Services,Payment - school supplementary grant,A51062,0
London Borough of Sutton,06/02/2024,50456745,920.70,Christchurch Fledgelings Pre-School,ACADEMIC INSTNS - OTHER,People's Services,Payment - Nursery Funding,A51056,0
London Borough of Sutton,06/02/2024,50456815,"15,600.82",Christchurch Fledgelings Pre-School,ACADEMIC INSTNS - OTHER,People's Services,Payment - Nursery Funding,A51056,0
London Borough of Sutton,06/02/2024,50456924,"2,007.72",Christchurch Fledgelings Pre-School,ACADEMIC INSTNS - OTHER,People's Services,Payment - Nursery Funding,A51056,0
London Borough of Sutton,01/02/2024,50465301,600.00,Christchurch Fledgelings Pre-School,ACADEMIC INSTNS - OTHER,People's Services,SEND Inclusion funding,A60038,0
London Borough of Sutton,01/02/2024,50465302,"5,520.00",Christchurch Fledgelings Pre-School,ACADEMIC INSTNS - OTHER,People's Services,SEND Inclusion funding,A60038,0
London Borough of Sutton,07/02/2024,20068866,"16,050.00",REDACTED - PERSONAL DATA,SUNDRY SUPPLIER - FINANCE,Environment Housing and Neighbourhoods,Grants Given For Capital Purposes,C20004,0
London Borough of Sutton,06/02/2024,50456864,636.77,REDACTED - PERSONAL DATA,CHILDMINDERS START UP GRANT,People's Services,Payment - Nursery Funding,A51056,0
London Borough of Sutton,08/01/2024,20068931,"1,096.98",KEYNYONS ESTATE AGENTS,PLS LANDLORDS,Environment Housing and Neighbourhoods,Temporary Protection - Homeless Persons,A62028,0
London Borough of Sutton,08/02/2024,20069864,"1,096.98",KEYNYONS ESTATE AGENTS,PLS LANDLORDS,Environment Housing and Neighbourhoods,Temporary Protection - Homeless Persons,A62028,0
London Borough of Sutton,26/01/2024,20068267,"1,205.04",Chroma Vision Limited,AGRICULTURAL & ESTATE SERVICES,Environment Housing and Neighbourhoods,Other Capital Expenditure,C20002,0
London Borough of Sutton,02/02/2024,20068434,"2,196.67",Chroma Vision Limited,AGRICULTURAL & ESTATE SERVICES,Environment Housing and Neighbourhoods,Other Supplies & Services,A44291,0
London Borough of Sutton,29/01/2024,50458951,"4,537.12",Chrysalis Care,SOCIAL SERVICES RESIDENTIAL,People's Services,Foster Parents Support,A44110,0
London Borough of Sutton,06/02/2024,50455770,"21,403.01",Barrow Hedges Primary School Academy,SCHOOL FUNDS,People's Services,Payment - Nursery Funding,A51056,0
London Borough of Sutton,06/02/2024,50455818,"1,748.74",Barrow Hedges Primary School Academy,SCHOOL FUNDS,People's Services,Payment - school supplementary grant,A51062,0
London Borough of Sutton,14/02/2024,50460464,"3,731.51",Barrow Hedges Primary School Academy,SCHOOL FUNDS,People's Services,Top-up Funding,A51016,0
London Borough of Sutton,16/02/2024,50462049,"35,695.00",Barrow Hedges Primary School Academy,SCHOOL FUNDS,People's Services,FSM Supplementary,A60036,0
London Borough of Sutton,18/01/2024,20067378,"14,313.09",City of London Corporation,CENTRAL & LOCAL GOVERNMENT,Health and Wellbeing,Provider Contract Payments,A44290,0
London Borough of Sutton,18/01/2024,20067379,"14,932.06",City of London Corporation,CENTRAL & LOCAL GOVERNMENT,Health and Wellbeing,Provider Contract Payments,A44290,0
London Borough of Sutton,18/01/2024,20067380,"15,865.60",City of London Corporation,CENTRAL & LOCAL GOVERNMENT,Health and Wellbeing,Provider Contract Payments,A44290,0
London Borough of Sutton,31/01/2024,20068482,977.17,City Sprint UK (Excel) Ltd,DELIVERY AND COURIER SERVICES,Resources,Printing,A43010,0
London Borough of Sutton,31/01/2024,20068490,"3,073.68",City Sprint UK (Excel) Ltd,DELIVERY AND COURIER SERVICES,Health and Wellbeing,Hire of Transport - Non Staff,A32000,0
London Borough of Sutton,01/02/2024,20068140,518.40,Cityglen Ltd,ACCOMMODATION BED & BREAKFAST,People's Services,Approved Lodgings,A61000,0
London Borough of Sutton,01/02/2024,20068380,"30,940.00",Cityglen Ltd,ACCOMMODATION BED & BREAKFAST,Environment Housing and Neighbourhoods,Bed & Breakfast,A56000,0
London Borough of Sutton,16/02/2024,50461500,"4,096.12",Claremont Care Svs Ltd,SOCIAL SERVICES RESIDENTIAL,People's Services,Nursing Care - Ext Provider,A56025,0
London Borough of Sutton,16/02/2024,50461500,-878.84,Claremont Care Svs Ltd,SOCIAL SERVICES RESIDENTIAL,People's Services,Nursing Care - 3rd party top up payment,A56023,0
London Borough of Sutton,16/02/2024,50461621,"6,236.76",Claremont Care Svs Ltd,SOCIAL SERVICES RESIDENTIAL,People's Services,Nursing Care - Ext Provider,A56025,0
London Borough of Sutton,16/02/2024,50461621,-836.76,Claremont Care Svs Ltd,SOCIAL SERVICES RESIDENTIAL,People's Services,Nursing Care - 3rd party top up payment,A56023,0
London Borough of Sutton,16/02/2024,50461643,-878.84,Claremont Care Svs Ltd,SOCIAL SERVICES RESIDENTIAL,People's Services,Nursing Care - 3rd party top up payment,A56023,0
London Borough of Sutton,16/02/2024,50461643,"7,838.84",Claremont Care Svs Ltd,SOCIAL SERVICES RESIDENTIAL,People's Services,Nursing Care Short Term,A56026,0
London Borough of Sutton,16/02/2024,50461839,"4,525.36",Claremont Care Svs Ltd,SOCIAL SERVICES RESIDENTIAL,People's Services,Nursing Care - Ext Provider,A56025,0
London Borough of Sutton,16/02/2024,50461839,-750.40,Claremont Care Svs Ltd,SOCIAL SERVICES RESIDENTIAL,People's Services,Nursing Care - 3rd party top up payment,A56023,0
London Borough of Sutton,16/02/2024,50461275,-735.68,Bondcare (London) Ltd,SOCIAL SERVICES RESIDENTIAL,People's Services,Nursing Care - 3rd party top up payment,A56023,0
London Borough of Sutton,16/02/2024,50461275,"3,720.16",Bondcare (London) Ltd,SOCIAL SERVICES RESIDENTIAL,People's Services,Nursing Care - Ext Provider,A56025,0
London Borough of Sutton,29/01/2024,50455645,"2,495.77",Clear Thinking Care Limited,SOCIAL SERVICES RESIDENTIAL,People's Services,Supported Living,A56088,0
London Borough of Sutton,07/02/2024,50458524,"2,495.77",Clear Thinking Care Limited,SOCIAL SERVICES RESIDENTIAL,People's Services,Supported Living,A56088,0
London Borough of Sutton,09/02/2024,50460414,"2,495.77",Clear Thinking Care Limited,SOCIAL SERVICES RESIDENTIAL,People's Services,Supported Living,A56088,0
London Borough of Sutton,15/02/2024,50464648,"2,495.77",Clear Thinking Care Limited,SOCIAL SERVICES RESIDENTIAL,People's Services,Supported Living,A56088,0
London Borough of Sutton,29/01/2024,20070600,"36,692.64",ClearView Communications Ltd,OFFICE SERVICES,Resources,Payments to Contractors,C14000,0
London Borough of Sutton,19/02/2024,50462344,"5,036.96",CLIA CARE LTD,SOCIAL SERVICES RESIDENTIAL,People's Services,Supported Living,A56088,0
London Borough of Sutton,19/02/2024,50462344,"-2,518.49",CLIA CARE LTD,SOCIAL SERVICES RESIDENTIAL,People's Services,Nursing Care - 3rd party top up payment,A56023,0
London Borough of Sutton,19/02/2024,50462385,"1,026.23",CLIA CARE LTD,SOCIAL SERVICES RESIDENTIAL,People's Services,Supported Living,A56088,0
London Borough of Sutton,19/02/2024,50462385,684.40,CLIA CARE LTD,SOCIAL SERVICES RESIDENTIAL,People's Services,Supported Living,A56088,0
London Borough of Sutton,19/02/2024,50462385,"3,635.73",CLIA CARE LTD,SOCIAL SERVICES RESIDENTIAL,People's Services,Supported Living,A56088,0
London Borough of Sutton,19/02/2024,50462385,"2,675.25",CLIA CARE LTD,SOCIAL SERVICES RESIDENTIAL,People's Services,One to One Care,A56108,0
London Borough of Sutton,19/02/2024,50462385,"-4,010.83",CLIA CARE LTD,SOCIAL SERVICES RESIDENTIAL,People's Services,Nursing Care - 3rd party top up payment,A56023,0
London Borough of Sutton,19/02/2024,50462410,"6,970.02",CLIA CARE LTD,SOCIAL SERVICES RESIDENTIAL,People's Services,Supported Living,A56088,0
London Borough of Sutton,19/02/2024,50462410,"-3,485.01",CLIA CARE LTD,SOCIAL SERVICES RESIDENTIAL,People's Services,Nursing Care - 3rd party top up payment,A56023,0
London Borough of Sutton,19/02/2024,50462411,"8,314.96",CLIA CARE LTD,SOCIAL SERVICES RESIDENTIAL,People's Services,Supported Living,A56088,0
London Borough of Sutton,19/02/2024,50462411,"-5,835.33",CLIA CARE LTD,SOCIAL SERVICES RESIDENTIAL,People's Services,Nursing Care - 3rd party top up payment,A56023,0
London Borough of Sutton,16/02/2024,50461302,"4,234.16",Coast Care Homes Ltd,SOCIAL SERVICES RESIDENTIAL,People's Services,Residential Care - Ext Provider,A56114,0
London Borough of Sutton,16/02/2024,50461352,"12,960.16",Cognithan Ltd,SOCIAL SERVICES RESIDENTIAL,People's Services,Residential Care - Ext Provider,A56114,0
London Borough of Sutton,02/02/2024,20068370,"151,477.17",Cognus Ltd,LEGAL & PROFESSIONAL SERVICES,People's Services,Consultancy Services,A56007,0
London Borough of Sutton,02/02/2024,20068376,"15,769.42",Cognus Ltd,LEGAL & PROFESSIONAL SERVICES,People's Services,Consultancy Services,A56007,0
London Borough of Sutton,02/02/2024,20068377,"15,769.42",Cognus Ltd,LEGAL & PROFESSIONAL SERVICES,People's Services,Consultancy Services,A56007,0
London Borough of Sutton,11/01/2024,20068761,"5,248.75",Cognus Ltd,LEGAL & PROFESSIONAL SERVICES,People's Services,LAC - Education,A44280,0
London Borough of Sutton,02/02/2024,20068849,"42,533.33",Cognus Ltd,LEGAL & PROFESSIONAL SERVICES,People's Services,Consultancy Services,A56007,0
London Borough of Sutton,24/04/2023,20069591,"2,525.00",Cognus Ltd,LEGAL & PROFESSIONAL SERVICES,Health and Wellbeing,Professional Fees,A44066,0
London Borough of Sutton,23/02/2024,20070518,"1,729.43",Cognus Ltd,LEGAL & PROFESSIONAL SERVICES,People's Services,LAC - Education,A44280,0
London Borough of Sutton,23/02/2024,20070524,"18,846.93",Cognus Ltd,LEGAL & PROFESSIONAL SERVICES,People's Services,LAC - Education,A44280,0
London Borough of Sutton,16/02/2024,50461418,"11,981.04",Coleg Elidyr Camphill Communities,CHILDREN'S SERVICES - RESIDENTIAL,People's Services,Residential Care - Ext Provider,A56114,0
London Borough of Sutton,06/02/2024,50456636,"1,256.90",Collingwood School Ltd,GRANTS & EX GRATIA PAYMENTS,People's Services,Payment - school supplementary grant,A51062,0
London Borough of Sutton,06/02/2024,50456816,"15,383.41",Collingwood School Ltd,GRANTS & EX GRATIA PAYMENTS,People's Services,Payment - Nursery Funding,A51056,0
London Borough of Sutton,20/02/2024,50460945,"2,124.00",Come and Play Childcare Ltd,CHILDREN'S SERVICES - DAY CARE,Resources,Other Supplies & Services,A44291,0
London Borough of Sutton,31/01/2024,50457549,"2,937.87",Comfort Care Services UK Ltd,SOCIAL SERVICES - DIRECT PAYMENTS,People's Services,Supported Living,A56088,0
London Borough of Sutton,31/01/2024,50457550,"2,937.87",Comfort Care Services UK Ltd,SOCIAL SERVICES - DIRECT PAYMENTS,People's Services,Supported Living,A56088,0
London Borough of Sutton,31/01/2024,50457550,"-1,468.96",Comfort Care Services UK Ltd,SOCIAL SERVICES - DIRECT PAYMENTS,People's Services,Nursing Care - 3rd party top up payment,A56023,0
London Borough of Sutton,06/02/2024,20068819,"3,000.00",Community Action Sutton,SUNDRY SUPPLIER - ENV SERVICES,Environment Housing and Neighbourhoods,CIL Holding Account,B50225,0
London Borough of Sutton,06/02/2024,20068819,"3,000.00",Community Action Sutton,SUNDRY SUPPLIER - ENV SERVICES,Environment Housing and Neighbourhoods,S106/CIL receipts,B50225,0
London Borough of Sutton,19/01/2024,20068996,"3,000.00",Community Action Sutton,GRANTS & EX GRATIA PAYMENTS,Health and Wellbeing,Arts Programme,A44286,0
London Borough of Sutton,08/02/2024,20069243,"56,145.00",Community Action Sutton,GRANTS & EX GRATIA PAYMENTS,Resources,Provider Contract Payments,A44290,0
London Borough of Sutton,01/01/2024,50458883,"2,954.16",Compass Fostering London Ltd,CHILDREN'S SERVICES - FOSTERING & ADOPTION SERVICES,People's Services,Foster Parents Support,A44110,0
London Borough of Sutton,01/01/2024,50458917,"3,639.09",Compass Fostering London Ltd,CHILDREN'S SERVICES - FOSTERING & ADOPTION SERVICES,People's Services,Foster Parents Support,A44110,0
London Borough of Sutton,01/01/2024,50458918,"3,753.17",Compass Fostering London Ltd,CHILDREN'S SERVICES - FOSTERING & ADOPTION SERVICES,People's Services,Foster Parents Support,A44110,0
London Borough of Sutton,01/01/2024,50458936,"4,021.58",Compass Fostering London Ltd,CHILDREN'S SERVICES - FOSTERING & ADOPTION SERVICES,People's Services,Foster Parents Support,A44110,0
London Borough of Sutton,01/01/2024,50458916,"4,649.69",Compass Fostering South Ltd,CHILDREN'S SERVICES - FOSTERING & ADOPTION SERVICES,People's Services,Foster Parents Support,A44110,0
London Borough of Sutton,01/02/2024,50458855,"4,162.86",Connect Fostering Services Ltd,CHILDREN'S SERVICES - FOSTERING & ADOPTION SERVICES,People's Services,Foster Parents Support,A44110,0
London Borough of Sutton,01/02/2024,50458938,"4,162.86",Connect Fostering Services Ltd,CHILDREN'S SERVICES - FOSTERING & ADOPTION SERVICES,People's Services,Foster Parents Support,A44110,0
London Borough of Sutton,06/02/2024,50456675,874.36,Co-operative Childcare,GRANTS & EX GRATIA PAYMENTS,People's Services,Payment - school supplementary grant,A51062,0
London Borough of Sutton,06/02/2024,50456766,"1,841.40",Co-operative Childcare,GRANTS & EX GRATIA PAYMENTS,People's Services,Payment - Nursery Funding,A51056,0
London Borough of Sutton,06/02/2024,50456854,"10,663.49",Co-operative Childcare,GRANTS & EX GRATIA PAYMENTS,People's Services,Payment - Nursery Funding,A51056,0
London Borough of Sutton,06/02/2024,50456945,"4,015.44",Co-operative Childcare,GRANTS & EX GRATIA PAYMENTS,People's Services,Payment - Nursery Funding,A51056,0
London Borough of Sutton,01/02/2024,50465323,"2,400.00",Co-operative Childcare,GRANTS & EX GRATIA PAYMENTS,People's Services,SEND Inclusion funding,A60038,0
London Borough of Sutton,01/02/2024,50465324,"1,500.00",Co-operative Childcare,GRANTS & EX GRATIA PAYMENTS,People's Services,SEND Inclusion funding,A60038,0
London Borough of Sutton,31/01/2024,20068437,"1,058.33",Copthorne Hotel (Slough) LTD,SUNDRY SUPPLIER - FINANCE,Resources,Conference Expenses,A43075,0
London Borough of Sutton,12/01/2024,20068552,"2,156.54",Corona Energy,CONSULTING ARCHITECTS ENGINEER,Resources,Gas,A21003,0
London Borough of Sutton,06/02/2024,50456817,"3,502.23",Cosy Cottage Daycare Ltd,GRANTS & EX GRATIA PAYMENTS,People's Services,Payment - Nursery Funding,A51056,0
London Borough of Sutton,06/02/2024,50456925,803.09,Cosy Cottage Daycare Ltd,GRANTS & EX GRATIA PAYMENTS,People's Services,Payment - Nursery Funding,A51056,0
London Borough of Sutton,16/02/2024,50461399,"4,400.00",Country Court Care Homes 2 Ltd,SOCIAL SERVICES RESIDENTIAL,People's Services,Nursing Care - Ext Provider,A56025,0
London Borough of Sutton,16/02/2024,50461399,"-1,226.92",Country Court Care Homes 2 Ltd,SOCIAL SERVICES RESIDENTIAL,People's Services,Nursing Care - 3rd party top up payment,A56023,0
London Borough of Sutton,16/02/2024,50461441,"4,560.00",Country Court Care Homes 2 Ltd,SOCIAL SERVICES RESIDENTIAL,People's Services,Nursing Care - Ext Provider,A56025,0
London Borough of Sutton,16/02/2024,50461441,-878.84,Country Court Care Homes 2 Ltd,SOCIAL SERVICES RESIDENTIAL,People's Services,Nursing Care - 3rd party top up payment,A56023,0
London Borough of Sutton,31/01/2024,20068443,"7,426.56",CPC Project Services LLP,LEGAL & PROFESSIONAL SERVICES,HRA,External Fees and Consultants,C20000,0
London Borough of Sutton,16/02/2024,50461402,"7,584.16",Cream 1 Ltd,SOCIAL SERVICES RESIDENTIAL,People's Services,Residential Care - Ext Provider,A56114,0
London Borough of Sutton,16/02/2024,50461402,"5,560.52",Cream 1 Ltd,SOCIAL SERVICES RESIDENTIAL,People's Services,One to One Care,A56108,0
London Borough of Sutton,05/01/2024,50458929,"6,957.29",Credo Care Limited,CHILDREN'S SERVICE - OTHER,People's Services,Foster Parents Support,A44110,0
London Borough of Sutton,16/02/2024,50461475,"5,400.00",CRNH Ltd,SOCIAL SERVICES RESIDENTIAL,People's Services,Nursing Care - Ext Provider,A56025,0
London Borough of Sutton,16/02/2024,50461475,-836.76,CRNH Ltd,SOCIAL SERVICES RESIDENTIAL,People's Services,Nursing Care - 3rd party top up payment,A56023,0
London Borough of Sutton,16/02/2024,50461503,"9,831.43",CRNH Ltd,SOCIAL SERVICES RESIDENTIAL,People's Services,Nursing Care - Ext Provider,A56025,0
London Borough of Sutton,16/02/2024,50461503,-878.84,CRNH Ltd,SOCIAL SERVICES RESIDENTIAL,People's Services,Nursing Care - 3rd party top up payment,A56023,0
London Borough of Sutton,16/02/2024,50461506,"4,096.12",CRNH Ltd,SOCIAL SERVICES RESIDENTIAL,People's Services,Nursing Care - Ext Provider,A56025,0
London Borough of Sutton,16/02/2024,50461506,-878.84,CRNH Ltd,SOCIAL SERVICES RESIDENTIAL,People's Services,Nursing Care - 3rd party top up payment,A56023,0
London Borough of Sutton,16/02/2024,50461513,-836.76,CRNH Ltd,SOCIAL SERVICES RESIDENTIAL,People's Services,Nursing Care - 3rd party top up payment,A56023,0
London Borough of Sutton,16/02/2024,50461513,"6,400.00",CRNH Ltd,SOCIAL SERVICES RESIDENTIAL,People's Services,Nursing Care Short Term,A56026,0
London Borough of Sutton,16/02/2024,50461647,-836.76,CRNH Ltd,SOCIAL SERVICES RESIDENTIAL,People's Services,Nursing Care - 3rd party top up payment,A56023,0
London Borough of Sutton,16/02/2024,50461647,"5,400.00",CRNH Ltd,SOCIAL SERVICES RESIDENTIAL,People's Services,Nursing Care Short Term,A56026,0
London Borough of Sutton,16/02/2024,50461648,-878.84,CRNH Ltd,SOCIAL SERVICES RESIDENTIAL,People's Services,Nursing Care - 3rd party top up payment,A56023,0
London Borough of Sutton,16/02/2024,50461648,"4,560.00",CRNH Ltd,SOCIAL SERVICES RESIDENTIAL,People's Services,Nursing Care Short Term,A56026,0
London Borough of Sutton,16/02/2024,50461665,"4,096.12",CRNH Ltd,SOCIAL SERVICES RESIDENTIAL,People's Services,Nursing Care - Ext Provider,A56025,0
London Borough of Sutton,16/02/2024,50461665,-878.84,CRNH Ltd,SOCIAL SERVICES RESIDENTIAL,People's Services,Nursing Care - 3rd party top up payment,A56023,0
London Borough of Sutton,16/02/2024,50461765,"4,096.12",CRNH Ltd,SOCIAL SERVICES RESIDENTIAL,People's Services,Nursing Care - Ext Provider,A56025,0
London Borough of Sutton,16/02/2024,50461765,-878.84,CRNH Ltd,SOCIAL SERVICES RESIDENTIAL,People's Services,Nursing Care - 3rd party top up payment,A56023,0
London Borough of Sutton,16/02/2024,50461765,-239.88,CRNH Ltd,SOCIAL SERVICES RESIDENTIAL,People's Services,Nursing Care - 3rd party top up payment,A56023,0
London Borough of Sutton,16/02/2024,50461769,"4,096.12",CRNH Ltd,SOCIAL SERVICES RESIDENTIAL,People's Services,Nursing Care - Ext Provider,A56025,0
London Borough of Sutton,16/02/2024,50461769,-878.84,CRNH Ltd,SOCIAL SERVICES RESIDENTIAL,People's Services,Nursing Care - 3rd party top up payment,A56023,0
London Borough of Sutton,23/02/2023,20070460,"2,315.38",Cromwells Estate Agent,SUNDRY SUPPLIER - HOUSING,Environment Housing and Neighbourhoods,Rent Deposit Scheme,B32179,0
London Borough of Sutton,31/01/2024,20069881,"18,178.00",Cromwood Limited,ACCOMMODATION BED & BREAKFAST,Environment Housing and Neighbourhoods,Bed & Breakfast,A56000,0
London Borough of Sutton,16/02/2024,50461563,"-14,509.08",Cross Care Services Ltd,SOCIAL SERVICES RESIDENTIAL,People's Services,Nursing Care - Ext Provider,A56025,0
London Borough of Sutton,16/02/2024,50461607,-878.84,Cross Care Services Ltd,SOCIAL SERVICES RESIDENTIAL,People's Services,Nursing Care - 3rd party top up payment,A56023,0
London Borough of Sutton,16/02/2024,50461607,"4,096.12",Cross Care Services Ltd,SOCIAL SERVICES RESIDENTIAL,People's Services,Nursing Care - Ext Provider,A56025,0
London Borough of Sutton,16/02/2024,50461614,-878.84,Cross Care Services Ltd,SOCIAL SERVICES RESIDENTIAL,People's Services,Nursing Care - 3rd party top up payment,A56023,0
London Borough of Sutton,16/02/2024,50461614,"4,096.12",Cross Care Services Ltd,SOCIAL SERVICES RESIDENTIAL,People's Services,Nursing Care Short Term,A56026,0
London Borough of Sutton,16/02/2024,50461619,"4,096.12",Cross Care Services Ltd,SOCIAL SERVICES RESIDENTIAL,People's Services,Nursing Care - Ext Provider,A56025,0
London Borough of Sutton,16/02/2024,50461619,-878.84,Cross Care Services Ltd,SOCIAL SERVICES RESIDENTIAL,People's Services,Nursing Care - 3rd party top up payment,A56023,0
London Borough of Sutton,16/02/2024,50461655,"4,096.12",Cross Care Services Ltd,SOCIAL SERVICES RESIDENTIAL,People's Services,Nursing Care - Ext Provider,A56025,0
London Borough of Sutton,16/02/2024,50461655,-878.84,Cross Care Services Ltd,SOCIAL SERVICES RESIDENTIAL,People's Services,Nursing Care - 3rd party top up payment,A56023,0
London Borough of Sutton,16/02/2024,50461742,"4,096.12",Cross Care Services Ltd,SOCIAL SERVICES RESIDENTIAL,People's Services,Nursing Care - Ext Provider,A56025,0
London Borough of Sutton,16/02/2024,50461742,-878.84,Cross Care Services Ltd,SOCIAL SERVICES RESIDENTIAL,People's Services,Nursing Care - 3rd party top up payment,A56023,0
London Borough of Sutton,16/02/2024,50461825,"6,800.00",Cross Care Services Ltd,SOCIAL SERVICES RESIDENTIAL,People's Services,Nursing Care Short Term,A56026,0
London Borough of Sutton,16/02/2024,50461825,"-5,241.65",Cross Care Services Ltd,SOCIAL SERVICES RESIDENTIAL,People's Services,Nursing Care - 3rd party top up payment,A56023,0
London Borough of Sutton,16/02/2024,50461827,"4,096.12",Cross Care Services Ltd,SOCIAL SERVICES RESIDENTIAL,People's Services,Nursing Care - Ext Provider,A56025,0
London Borough of Sutton,16/02/2024,50461827,-878.84,Cross Care Services Ltd,SOCIAL SERVICES RESIDENTIAL,People's Services,Nursing Care - 3rd party top up payment,A56023,0
London Borough of Sutton,20/10/2023,50460446,"4,844.17",Croydon Council,CENTRAL & LOCAL GOVERNMENT,People's Services,Childrens Social Care Transport,A32009,0
London Borough of Sutton,31/01/2024,20068244,"3,465.00",Croydon Court Ltd,ACCOMMODATION BED & BREAKFAST,Environment Housing and Neighbourhoods,Bed & Breakfast,A56000,0
London Borough of Sutton,31/01/2024,20068250,"1,312.85",Croydon Court Ltd,ACCOMMODATION BED & BREAKFAST,People's Services,Temporary Residential Accommodation,A44140,0
London Borough of Sutton,12/02/2024,20069253,"1,500.00",Croydon Pirates Baseball Club,SUNDRY SUPPLIER - ENV SERVICES,Environment Housing and Neighbourhoods,CIL Holding Account,B50225,0
London Borough of Sutton,12/02/2024,20069253,"1,500.00",Croydon Pirates Baseball Club,SUNDRY SUPPLIER - ENV SERVICES,Environment Housing and Neighbourhoods,S106/CIL receipts,B50225,0
London Borough of Sutton,16/02/2024,50461445,"8,118.44",CSS Ltd,SOCIAL SERVICES RESIDENTIAL,People's Services,Residential Care - Ext Provider,A56114,0
London Borough of Sutton,15/02/2024,20069865,595.00,CULLENS CLEARANCES LTD,PREMISES - REMOVALS,Environment Housing and Neighbourhoods,Miscellaneous Expenses,A49000,0
London Borough of Sutton,06/02/2024,50455720,"179,114.27",Culvers House Primary School,SCHOOL FUNDS,People's Services,Payments to Schools,A51013,0
London Borough of Sutton,06/02/2024,50455777,"9,363.82",Culvers House Primary School,SCHOOL FUNDS,People's Services,Payment - Nursery Funding,A51056,0
London Borough of Sutton,06/02/2024,50455825,765.07,Culvers House Primary School,SCHOOL FUNDS,People's Services,Payment - school supplementary grant,A51062,0
London Borough of Sutton,06/02/2024,50455848,"-19,116.00",Culvers House Primary School,SCHOOL FUNDS,People's Services,Payment - school led tutoring grant,A51060,0
London Borough of Sutton,16/02/2024,50462030,"22,837.00",Culvers House Primary School,SCHOOL FUNDS,People's Services,FSM Supplementary,A60036,0
London Borough of Sutton,21/02/2024,50462421,"-22,837.00",Culvers House Primary School,SCHOOL FUNDS,People's Services,FSM Supplementary,A60036,0
London Borough of Sutton,21/02/2024,50462459,"22,837.00",Culvers House Primary School,SCHOOL FUNDS,People's Services,FSM Supplementary,A60036,0
London Borough of Sutton,16/02/2024,50461340,"7,884.00",Cygnet Learning Disabilities Midlands Ltd,SOCIAL SERVICES RESIDENTIAL,People's Services,Residential Care - Ext Provider,A56114,0
London Borough of Sutton,16/02/2024,50461340,-846.40,Cygnet Learning Disabilities Midlands Ltd,SOCIAL SERVICES RESIDENTIAL,People's Services,Residential Care - Client Cont ( Net Paymt ),A56113,0
London Borough of Sutton,11/02/2024,20068287,805.00,REDACTED - PERSONAL DATA,GRANTS & EX GRATIA PAYMENTS,Environment Housing and Neighbourhoods,Temporary Protection - Homeless Persons,A62028,0
London Borough of Sutton,31/01/2024,50458434,"1,575.00",REDACTED - PERSONAL DATA,NOT IN USE WAS CLLRS,People's Services,Special Educational Needs,A51015,0
London Borough of Sutton,12/01/2024,20069263,850.00,Daras Cleaning Services LTD,SUNDRY SUPPLIER - EDUCATION,People's Services,Client Care/Assistance,A61011,0
London Borough of Sutton,19/02/2024,50462338,"2,475.36",Daret Healthcare UK Limited,SOCIAL SERVICES RESIDENTIAL,People's Services,Supported Living,A56088,0
London Borough of Sutton,05/02/2024,20068582,"6,252.24",Darwin Group Ltd,CONSTRUCTION INDUSTRY,People's Services,Payments to Contractors,C14000,0
London Borough of Sutton,01/02/2024,20069482,785.73,Angel Lettings,ACCOMMODATION BED & BREAKFAST,Environment Housing and Neighbourhoods,Temporary Protection - Homeless Persons,A62028,0
London Borough of Sutton,19/02/2024,50462508,"2,924.10",REDACTED - PERSONAL DATA,CHILDREN'S SERVICES - SEN SERVICES,People's Services,Miscellaneous Expenses,A49000,0
London Borough of Sutton,31/01/2024,20068269,"1,860.00",Dellhome Limited,ACCOMMODATION BED & BREAKFAST,Environment Housing and Neighbourhoods,Bed & Breakfast,A56000,0
London Borough of Sutton,31/01/2024,20068271,"2,015.00",Dellhome Limited,ACCOMMODATION BED & BREAKFAST,Environment Housing and Neighbourhoods,Bed & Breakfast,A56000,0
London Borough of Sutton,31/01/2024,20068272,"2,170.00",Dellhome Limited,ACCOMMODATION BED & BREAKFAST,Environment Housing and Neighbourhoods,Bed & Breakfast,A56000,0
London Borough of Sutton,31/01/2024,20068273,"2,480.00",Dellhome Limited,ACCOMMODATION BED & BREAKFAST,Environment Housing and Neighbourhoods,Bed & Breakfast,A56000,0
London Borough of Sutton,31/01/2024,20068274,"1,395.00",Dellhome Limited,ACCOMMODATION BED & BREAKFAST,Environment Housing and Neighbourhoods,Bed & Breakfast,A56000,0
London Borough of Sutton,01/02/2024,20068497,"31,625.00",Delta Wise Limited,ACCOMMODATION BED & BREAKFAST,Environment Housing and Neighbourhoods,Bed & Breakfast,A56000,0
London Borough of Sutton,08/02/2024,20068828,-533.67,Delta Wise Limited,ACCOMMODATION BED & BREAKFAST,Resources,Fees And Charges (VATable),A92310,0
London Borough of Sutton,16/02/2024,50461416,"3,505.00",Denville Hall 2012,SOCIAL SERVICES RESIDENTIAL,People's Services,Residential Care - Ext Provider,A56114,0
London Borough of Sutton,30/01/2024,20068078,"8,579.64",DEPAULUK,CHILDREN'S SERVICE - OTHER,People's Services,Housing and Support - Generic Services,A62013,0
London Borough of Sutton,18/12/2023,20069931,"8,579.64",DEPAULUK,CHILDREN'S SERVICE - OTHER,People's Services,Housing and Support - Generic Services,A62013,0
London Borough of Sutton,28/01/2024,20067938,"6,295.00",Devonshire Primary School,SCHOOL FUNDS,People's Services,Payments to Contractors,C14000,0
London Borough of Sutton,06/02/2024,50455713,"262,600.44",Devonshire Primary School,SCHOOL FUNDS,People's Services,Payments to Schools,A51013,0
London Borough of Sutton,06/02/2024,50455778,"9,081.07",Devonshire Primary School,SCHOOL FUNDS,People's Services,Payment - Nursery Funding,A51056,0
London Borough of Sutton,06/02/2024,50455812,"2,408.28",Devonshire Primary School,SCHOOL FUNDS,People's Services,Pupil Growth,A51014,0
London Borough of Sutton,06/02/2024,50455826,710.42,Devonshire Primary School,SCHOOL FUNDS,People's Services,Payment - school supplementary grant,A51062,0
London Borough of Sutton,06/02/2024,50455849,"-11,102.40",Devonshire Primary School,SCHOOL FUNDS,People's Services,Payment - school led tutoring grant,A51060,0
London Borough of Sutton,16/02/2024,50462025,"34,351.50",Devonshire Primary School,SCHOOL FUNDS,People's Services,FSM Supplementary,A60036,0
London Borough of Sutton,06/11/2023,50457544,968.11,Direct Care And Support Services,ACCOMMODATION - OTHER,People's Services,Supported Living,A56088,0
London Borough of Sutton,30/08/2023,50457545,857.98,Direct Care And Support Services,ACCOMMODATION - OTHER,People's Services,Supported Living,A56088,0
London Borough of Sutton,30/08/2023,50457545,110.13,Direct Care And Support Services,ACCOMMODATION - OTHER,People's Services,Supported Living,A56088,0
London Borough of Sutton,17/12/2023,50457547,"5,317.97",Direct Care And Support Services,ACCOMMODATION - OTHER,People's Services,Supported Living,A56088,0
London Borough of Sutton,17/12/2023,50457547,171.32,Direct Care And Support Services,ACCOMMODATION - OTHER,People's Services,Supported Living,A56088,0
London Borough of Sutton,17/12/2023,50457547,"1,307.32",Direct Care And Support Services,ACCOMMODATION - OTHER,People's Services,Supported Living,A56088,0
London Borough of Sutton,17/12/2023,50457548,"5,317.97",Direct Care And Support Services,ACCOMMODATION - OTHER,People's Services,Supported Living,A56088,0
London Borough of Sutton,17/12/2023,50457548,171.32,Direct Care And Support Services,ACCOMMODATION - OTHER,People's Services,Supported Living,A56088,0
London Borough of Sutton,17/12/2023,50457548,"1,307.32",Direct Care And Support Services,ACCOMMODATION - OTHER,People's Services,Supported Living,A56088,0
London Borough of Sutton,15/01/2024,50461880,996.00,Direct Care And Support Services,ACCOMMODATION - OTHER,People's Services,One to One Care,A56108,0
London Borough of Sutton,15/01/2024,50461880,"1,500.64",Direct Care And Support Services,ACCOMMODATION - OTHER,People's Services,Supported Living,A56088,0
London Borough of Sutton,15/01/2024,50461880,"1,307.32",Direct Care And Support Services,ACCOMMODATION - OTHER,People's Services,Supported Living,A56088,0
London Borough of Sutton,19/12/2023,50461882,996.00,Direct Care And Support Services,ACCOMMODATION - OTHER,People's Services,One to One Care,A56108,0
London Borough of Sutton,19/12/2023,50461882,"1,500.64",Direct Care And Support Services,ACCOMMODATION - OTHER,People's Services,Supported Living,A56088,0
London Borough of Sutton,19/12/2023,50461882,"1,307.32",Direct Care And Support Services,ACCOMMODATION - OTHER,People's Services,Supported Living,A56088,0
London Borough of Sutton,25/09/2023,50461883,996.00,Direct Care And Support Services,ACCOMMODATION - OTHER,People's Services,One to One Care,A56108,0
London Borough of Sutton,25/09/2023,50461883,"1,500.64",Direct Care And Support Services,ACCOMMODATION - OTHER,People's Services,Supported Living,A56088,0
London Borough of Sutton,25/09/2023,50461883,"1,307.32",Direct Care And Support Services,ACCOMMODATION - OTHER,People's Services,Supported Living,A56088,0
London Borough of Sutton,23/10/2023,50461884,996.00,Direct Care And Support Services,ACCOMMODATION - OTHER,People's Services,One to One Care,A56108,0
London Borough of Sutton,23/10/2023,50461884,"1,500.64",Direct Care And Support Services,ACCOMMODATION - OTHER,People's Services,Supported Living,A56088,0
London Borough of Sutton,23/10/2023,50461884,"1,307.32",Direct Care And Support Services,ACCOMMODATION - OTHER,People's Services,Supported Living,A56088,0
London Borough of Sutton,20/11/2023,50461885,996.00,Direct Care And Support Services,ACCOMMODATION - OTHER,People's Services,One to One Care,A56108,0
London Borough of Sutton,20/11/2023,50461885,"1,500.64",Direct Care And Support Services,ACCOMMODATION - OTHER,People's Services,Supported Living,A56088,0
London Borough of Sutton,20/11/2023,50461885,"1,307.32",Direct Care And Support Services,ACCOMMODATION - OTHER,People's Services,Supported Living,A56088,0
London Borough of Sutton,19/12/2023,50461887,996.00,Direct Care And Support Services,ACCOMMODATION - OTHER,People's Services,One to One Care,A56108,0
London Borough of Sutton,19/12/2023,50461887,756.63,Direct Care And Support Services,ACCOMMODATION - OTHER,People's Services,Supported Living,A56088,0
London Borough of Sutton,19/12/2023,50461887,653.66,Direct Care And Support Services,ACCOMMODATION - OTHER,People's Services,Supported Living,A56088,0
London Borough of Sutton,18/12/2023,50461888,996.00,Direct Care And Support Services,ACCOMMODATION - OTHER,People's Services,One to One Care,A56108,0
London Borough of Sutton,18/12/2023,50461888,"1,500.64",Direct Care And Support Services,ACCOMMODATION - OTHER,People's Services,Supported Living,A56088,0
London Borough of Sutton,18/12/2023,50461888,"1,307.32",Direct Care And Support Services,ACCOMMODATION - OTHER,People's Services,Supported Living,A56088,0
London Borough of Sutton,28/02/2023,50462212,"3,137.40",Direct Care And Support Services,ACCOMMODATION - OTHER,People's Services,Supported Living,A56088,0
London Borough of Sutton,28/02/2023,50462212,774.89,Direct Care And Support Services,ACCOMMODATION - OTHER,People's Services,Supported Living,A56088,0
London Borough of Sutton,28/02/2023,50462212,"1,307.32",Direct Care And Support Services,ACCOMMODATION - OTHER,People's Services,Supported Living,A56088,0
London Borough of Sutton,04/10/2022,50462213,"3,137.40",Direct Care And Support Services,ACCOMMODATION - OTHER,People's Services,Supported Living,A56088,0
London Borough of Sutton,04/10/2022,50462213,774.89,Direct Care And Support Services,ACCOMMODATION - OTHER,People's Services,Supported Living,A56088,0
London Borough of Sutton,04/10/2022,50462213,"1,307.32",Direct Care And Support Services,ACCOMMODATION - OTHER,People's Services,Supported Living,A56088,0
London Borough of Sutton,10/11/2023,50462214,"2,925.58",Direct Care And Support Services,ACCOMMODATION - OTHER,People's Services,Supported Living,A56088,0
London Borough of Sutton,10/11/2023,50462214,986.71,Direct Care And Support Services,ACCOMMODATION - OTHER,People's Services,Supported Living,A56088,0
London Borough of Sutton,10/11/2023,50462214,"1,307.32",Direct Care And Support Services,ACCOMMODATION - OTHER,People's Services,Supported Living,A56088,0
London Borough of Sutton,10/11/2023,50462215,"3,137.40",Direct Care And Support Services,ACCOMMODATION - OTHER,People's Services,Supported Living,A56088,0
London Borough of Sutton,10/11/2023,50462215,774.89,Direct Care And Support Services,ACCOMMODATION - OTHER,People's Services,Supported Living,A56088,0
London Borough of Sutton,10/11/2023,50462215,"1,307.32",Direct Care And Support Services,ACCOMMODATION - OTHER,People's Services,Supported Living,A56088,0
London Borough of Sutton,10/11/2023,50462216,"3,137.40",Direct Care And Support Services,ACCOMMODATION - OTHER,People's Services,Supported Living,A56088,0
London Borough of Sutton,10/11/2023,50462216,774.89,Direct Care And Support Services,ACCOMMODATION - OTHER,People's Services,Supported Living,A56088,0
London Borough of Sutton,10/11/2023,50462216,"1,307.32",Direct Care And Support Services,ACCOMMODATION - OTHER,People's Services,Supported Living,A56088,0
London Borough of Sutton,10/11/2023,50462217,"3,137.40",Direct Care And Support Services,ACCOMMODATION - OTHER,People's Services,Supported Living,A56088,0
London Borough of Sutton,10/11/2023,50462217,774.89,Direct Care And Support Services,ACCOMMODATION - OTHER,People's Services,Supported Living,A56088,0
London Borough of Sutton,10/11/2023,50462217,"1,307.32",Direct Care And Support Services,ACCOMMODATION - OTHER,People's Services,Supported Living,A56088,0
London Borough of Sutton,10/11/2023,50462218,"3,137.40",Direct Care And Support Services,ACCOMMODATION - OTHER,People's Services,Supported Living,A56088,0
London Borough of Sutton,10/11/2023,50462218,774.89,Direct Care And Support Services,ACCOMMODATION - OTHER,People's Services,Supported Living,A56088,0
London Borough of Sutton,10/11/2023,50462218,"1,307.32",Direct Care And Support Services,ACCOMMODATION - OTHER,People's Services,Supported Living,A56088,0
London Borough of Sutton,10/11/2023,50462219,"3,137.40",Direct Care And Support Services,ACCOMMODATION - OTHER,People's Services,Supported Living,A56088,0
London Borough of Sutton,10/11/2023,50462219,774.89,Direct Care And Support Services,ACCOMMODATION - OTHER,People's Services,Supported Living,A56088,0
London Borough of Sutton,10/11/2023,50462219,"1,307.32",Direct Care And Support Services,ACCOMMODATION - OTHER,People's Services,Supported Living,A56088,0
London Borough of Sutton,10/11/2023,50462220,"3,137.40",Direct Care And Support Services,ACCOMMODATION - OTHER,People's Services,Supported Living,A56088,0
London Borough of Sutton,10/11/2023,50462220,774.89,Direct Care And Support Services,ACCOMMODATION - OTHER,People's Services,Supported Living,A56088,0
London Borough of Sutton,10/11/2023,50462220,"1,307.32",Direct Care And Support Services,ACCOMMODATION - OTHER,People's Services,Supported Living,A56088,0
London Borough of Sutton,10/11/2023,50462221,"3,137.40",Direct Care And Support Services,ACCOMMODATION - OTHER,People's Services,Supported Living,A56088,0
London Borough of Sutton,10/11/2023,50462221,774.89,Direct Care And Support Services,ACCOMMODATION - OTHER,People's Services,Supported Living,A56088,0
London Borough of Sutton,10/11/2023,50462221,"1,307.32",Direct Care And Support Services,ACCOMMODATION - OTHER,People's Services,Supported Living,A56088,0
London Borough of Sutton,10/11/2023,50462222,"3,137.40",Direct Care And Support Services,ACCOMMODATION - OTHER,People's Services,Supported Living,A56088,0
London Borough of Sutton,10/11/2023,50462222,774.89,Direct Care And Support Services,ACCOMMODATION - OTHER,People's Services,Supported Living,A56088,0
London Borough of Sutton,10/11/2023,50462222,"1,307.32",Direct Care And Support Services,ACCOMMODATION - OTHER,People's Services,Supported Living,A56088,0
London Borough of Sutton,03/01/2023,50462223,"3,137.40",Direct Care And Support Services,ACCOMMODATION - OTHER,People's Services,Supported Living,A56088,0
London Borough of Sutton,03/01/2023,50462223,774.89,Direct Care And Support Services,ACCOMMODATION - OTHER,People's Services,Supported Living,A56088,0
London Borough of Sutton,03/01/2023,50462223,"1,307.32",Direct Care And Support Services,ACCOMMODATION - OTHER,People's Services,Supported Living,A56088,0
London Borough of Sutton,04/10/2022,50462224,"5,219.61",Direct Care And Support Services,ACCOMMODATION - OTHER,People's Services,Supported Living,A56088,0
London Borough of Sutton,17/12/2023,50462226,"7,092.85",Direct Care And Support Services,ACCOMMODATION - OTHER,People's Services,Supported Living,A56088,0
London Borough of Sutton,17/12/2023,50462226,"1,307.32",Direct Care And Support Services,ACCOMMODATION - OTHER,People's Services,Supported Living,A56088,0
London Borough of Sutton,19/01/2023,50462227,"3,137.40",Direct Care And Support Services,ACCOMMODATION - OTHER,People's Services,Supported Living,A56088,0
London Borough of Sutton,19/01/2023,50462227,774.89,Direct Care And Support Services,ACCOMMODATION - OTHER,People's Services,Supported Living,A56088,0
London Borough of Sutton,19/01/2023,50462227,"1,307.32",Direct Care And Support Services,ACCOMMODATION - OTHER,People's Services,Supported Living,A56088,0
London Borough of Sutton,04/10/2022,50462228,"3,137.40",Direct Care And Support Services,ACCOMMODATION - OTHER,People's Services,Supported Living,A56088,0
London Borough of Sutton,04/10/2022,50462228,774.89,Direct Care And Support Services,ACCOMMODATION - OTHER,People's Services,Supported Living,A56088,0
London Borough of Sutton,04/10/2022,50462228,"1,307.32",Direct Care And Support Services,ACCOMMODATION - OTHER,People's Services,Supported Living,A56088,0
London Borough of Sutton,04/10/2022,50462229,"2,788.81",Direct Care And Support Services,ACCOMMODATION - OTHER,People's Services,Supported Living,A56088,0
London Borough of Sutton,04/10/2022,50462229,"1,123.48",Direct Care And Support Services,ACCOMMODATION - OTHER,People's Services,Supported Living,A56088,0
London Borough of Sutton,04/10/2022,50462229,"1,307.32",Direct Care And Support Services,ACCOMMODATION - OTHER,People's Services,Supported Living,A56088,0
London Borough of Sutton,07/11/2022,50462230,"3,137.40",Direct Care And Support Services,ACCOMMODATION - OTHER,People's Services,Supported Living,A56088,0
London Borough of Sutton,07/11/2022,50462230,774.89,Direct Care And Support Services,ACCOMMODATION - OTHER,People's Services,Supported Living,A56088,0
London Borough of Sutton,07/11/2022,50462230,"1,307.32",Direct Care And Support Services,ACCOMMODATION - OTHER,People's Services,Supported Living,A56088,0
London Borough of Sutton,06/12/2022,50462231,"3,249.45",Direct Care And Support Services,ACCOMMODATION - OTHER,People's Services,Supported Living,A56088,0
London Borough of Sutton,06/12/2022,50462231,942.98,Direct Care And Support Services,ACCOMMODATION - OTHER,People's Services,Supported Living,A56088,0
London Borough of Sutton,06/12/2022,50462231,"1,027.18",Direct Care And Support Services,ACCOMMODATION - OTHER,People's Services,Supported Living,A56088,0
London Borough of Sutton,29/01/2024,50462233,"2,324.00",Direct Care And Support Services,ACCOMMODATION - OTHER,People's Services,One to One Care,A56108,0
London Borough of Sutton,29/01/2024,50462233,"1,680.00",Direct Care And Support Services,ACCOMMODATION - OTHER,People's Services,Supported Living,A56088,0
London Borough of Sutton,29/01/2024,50462233,697.20,Direct Care And Support Services,ACCOMMODATION - OTHER,People's Services,Supported Living,A56088,0
London Borough of Sutton,23/12/2023,50462234,"2,324.00",Direct Care And Support Services,ACCOMMODATION - OTHER,People's Services,One to One Care,A56108,0
London Borough of Sutton,23/12/2023,50462234,"1,680.00",Direct Care And Support Services,ACCOMMODATION - OTHER,People's Services,Supported Living,A56088,0
London Borough of Sutton,23/12/2023,50462234,697.20,Direct Care And Support Services,ACCOMMODATION - OTHER,People's Services,Supported Living,A56088,0
London Borough of Sutton,15/09/2023,50462235,"5,670.28",Direct Care And Support Services,ACCOMMODATION - OTHER,People's Services,Supported Living,A56088,0
London Borough of Sutton,15/09/2023,50462235,"1,307.32",Direct Care And Support Services,ACCOMMODATION - OTHER,People's Services,Supported Living,A56088,0
London Borough of Sutton,19/12/2023,50462236,"1,992.00",Direct Care And Support Services,ACCOMMODATION - OTHER,People's Services,One to One Care,A56108,0
London Borough of Sutton,19/12/2023,50462236,"1,513.26",Direct Care And Support Services,ACCOMMODATION - OTHER,People's Services,Supported Living,A56088,0
London Borough of Sutton,19/12/2023,50462236,"1,307.32",Direct Care And Support Services,ACCOMMODATION - OTHER,People's Services,Supported Living,A56088,0
London Borough of Sutton,19/07/2023,50462252,"2,075.00",Direct Care And Support Services,ACCOMMODATION - OTHER,People's Services,Supported Living,A56088,0
London Borough of Sutton,19/07/2023,50462252,"1,309.31",Direct Care And Support Services,ACCOMMODATION - OTHER,People's Services,Supported Living,A56088,0
London Borough of Sutton,19/07/2023,50462252,"1,082.32",Direct Care And Support Services,ACCOMMODATION - OTHER,People's Services,Supported Living,A56088,0
London Borough of Sutton,19/07/2023,50462253,"1,858.47",Direct Care And Support Services,ACCOMMODATION - OTHER,People's Services,Supported Living,A56088,0
London Borough of Sutton,19/07/2023,50462253,"1,525.84",Direct Care And Support Services,ACCOMMODATION - OTHER,People's Services,Supported Living,A56088,0
London Borough of Sutton,19/07/2023,50462253,"1,082.32",Direct Care And Support Services,ACCOMMODATION - OTHER,People's Services,Supported Living,A56088,0
London Borough of Sutton,19/07/2023,50462254,"1,858.47",Direct Care And Support Services,ACCOMMODATION - OTHER,People's Services,Supported Living,A56088,0
London Borough of Sutton,19/07/2023,50462254,"1,525.84",Direct Care And Support Services,ACCOMMODATION - OTHER,People's Services,Supported Living,A56088,0
London Borough of Sutton,19/07/2023,50462254,"1,082.32",Direct Care And Support Services,ACCOMMODATION - OTHER,People's Services,Supported Living,A56088,0
London Borough of Sutton,19/07/2023,50462255,"1,858.47",Direct Care And Support Services,ACCOMMODATION - OTHER,People's Services,Supported Living,A56088,0
London Borough of Sutton,19/07/2023,50462255,"1,525.84",Direct Care And Support Services,ACCOMMODATION - OTHER,People's Services,Supported Living,A56088,0
London Borough of Sutton,19/07/2023,50462255,"1,082.32",Direct Care And Support Services,ACCOMMODATION - OTHER,People's Services,Supported Living,A56088,0
London Borough of Sutton,17/12/2023,50462256,"2,075.00",Direct Care And Support Services,ACCOMMODATION - OTHER,People's Services,Supported Living,A56088,0
London Borough of Sutton,17/12/2023,50462256,"1,309.31",Direct Care And Support Services,ACCOMMODATION - OTHER,People's Services,Supported Living,A56088,0
London Borough of Sutton,17/12/2023,50462256,"1,082.32",Direct Care And Support Services,ACCOMMODATION - OTHER,People's Services,Supported Living,A56088,0
London Borough of Sutton,17/12/2023,50462257,"2,075.00",Direct Care And Support Services,ACCOMMODATION - OTHER,People's Services,Supported Living,A56088,0
London Borough of Sutton,17/12/2023,50462257,"1,309.31",Direct Care And Support Services,ACCOMMODATION - OTHER,People's Services,Supported Living,A56088,0
London Borough of Sutton,17/12/2023,50462257,"1,082.32",Direct Care And Support Services,ACCOMMODATION - OTHER,People's Services,Supported Living,A56088,0
London Borough of Sutton,17/12/2023,50462258,"2,076.99",Direct Care And Support Services,ACCOMMODATION - OTHER,People's Services,Supported Living,A56088,0
London Borough of Sutton,17/12/2023,50462258,"1,307.32",Direct Care And Support Services,ACCOMMODATION - OTHER,People's Services,Supported Living,A56088,0
London Borough of Sutton,17/12/2023,50462258,"1,082.32",Direct Care And Support Services,ACCOMMODATION - OTHER,People's Services,Supported Living,A56088,0
London Borough of Sutton,17/12/2023,50462259,"2,076.99",Direct Care And Support Services,ACCOMMODATION - OTHER,People's Services,Supported Living,A56088,0
London Borough of Sutton,17/12/2023,50462259,"1,307.32",Direct Care And Support Services,ACCOMMODATION - OTHER,People's Services,Supported Living,A56088,0
London Borough of Sutton,17/12/2023,50462259,"1,082.32",Direct Care And Support Services,ACCOMMODATION - OTHER,People's Services,Supported Living,A56088,0
London Borough of Sutton,17/12/2023,50462260,"2,076.99",Direct Care And Support Services,ACCOMMODATION - OTHER,People's Services,Supported Living,A56088,0
London Borough of Sutton,17/12/2023,50462260,"1,307.32",Direct Care And Support Services,ACCOMMODATION - OTHER,People's Services,Supported Living,A56088,0
London Borough of Sutton,17/12/2023,50462260,"1,082.32",Direct Care And Support Services,ACCOMMODATION - OTHER,People's Services,Supported Living,A56088,0
London Borough of Sutton,17/12/2023,50464016,"3,199.71",Direct Care And Support Services,ACCOMMODATION - OTHER,People's Services,Supported Living,A56088,0
London Borough of Sutton,17/12/2023,50464016,"1,084.32",Direct Care And Support Services,ACCOMMODATION - OTHER,People's Services,Supported Living,A56088,0
London Borough of Sutton,17/12/2023,50464017,"1,892.40",Direct Care And Support Services,ACCOMMODATION - OTHER,People's Services,Supported Living,A56088,0
London Borough of Sutton,17/12/2023,50464017,"2,391.63",Direct Care And Support Services,ACCOMMODATION - OTHER,People's Services,Supported Living,A56088,0
London Borough of Sutton,17/12/2023,50464018,"1,892.40",Direct Care And Support Services,ACCOMMODATION - OTHER,People's Services,Supported Living,A56088,0
London Borough of Sutton,17/12/2023,50464018,"2,391.63",Direct Care And Support Services,ACCOMMODATION - OTHER,People's Services,Supported Living,A56088,0
London Borough of Sutton,15/02/2024,50464645,"5,317.97",Direct Care And Support Services,ACCOMMODATION - OTHER,People's Services,Supported Living,A56088,0
London Borough of Sutton,15/02/2024,50464645,171.32,Direct Care And Support Services,ACCOMMODATION - OTHER,People's Services,Supported Living,A56088,0
London Borough of Sutton,15/02/2024,50464645,"1,307.32",Direct Care And Support Services,ACCOMMODATION - OTHER,People's Services,Supported Living,A56088,0
London Borough of Sutton,15/02/2024,50464646,"4,480.09",Direct Care And Support Services,ACCOMMODATION - OTHER,People's Services,Supported Living,A56088,0
London Borough of Sutton,15/02/2024,50465355,"2,357.20",Direct Care And Support Services,ACCOMMODATION - OTHER,People's Services,Supported Living,A56088,0
London Borough of Sutton,15/02/2024,50465355,"3,204.60",Direct Care And Support Services,ACCOMMODATION - OTHER,People's Services,Supported Living,A56088,0
London Borough of Sutton,15/02/2024,50465356,"4,667.96",Direct Care And Support Services,ACCOMMODATION - OTHER,People's Services,Supported Living,A56088,0
London Borough of Sutton,15/02/2024,50465357,"4,667.96",Direct Care And Support Services,ACCOMMODATION - OTHER,People's Services,Supported Living,A56088,0
London Borough of Sutton,15/02/2024,50465358,"2,357.20",Direct Care And Support Services,ACCOMMODATION - OTHER,People's Services,Supported Living,A56088,0
London Borough of Sutton,15/02/2024,50465358,"3,204.60",Direct Care And Support Services,ACCOMMODATION - OTHER,People's Services,Supported Living,A56088,0
London Borough of Sutton,15/02/2024,50465361,"2,768.12",Direct Care And Support Services,ACCOMMODATION - OTHER,People's Services,Supported Living,A56088,0
London Borough of Sutton,15/02/2024,50465361,"1,626.80",Direct Care And Support Services,ACCOMMODATION - OTHER,People's Services,Supported Living,A56088,0
London Borough of Sutton,15/02/2024,50465362,"2,768.12",Direct Care And Support Services,ACCOMMODATION - OTHER,People's Services,Supported Living,A56088,0
London Borough of Sutton,15/02/2024,50465362,"1,626.80",Direct Care And Support Services,ACCOMMODATION - OTHER,People's Services,Supported Living,A56088,0
London Borough of Sutton,15/02/2024,50465363,"3,187.09",Direct Care And Support Services,ACCOMMODATION - OTHER,People's Services,Supported Living,A56088,0
London Borough of Sutton,15/02/2024,50465363,"2,168.64",Direct Care And Support Services,ACCOMMODATION - OTHER,People's Services,Supported Living,A56088,0
London Borough of Sutton,15/02/2024,50465364,"3,187.09",Direct Care And Support Services,ACCOMMODATION - OTHER,People's Services,Supported Living,A56088,0
London Borough of Sutton,15/02/2024,50465364,"2,168.64",Direct Care And Support Services,ACCOMMODATION - OTHER,People's Services,Supported Living,A56088,0
London Borough of Sutton,15/02/2024,50465372,"5,670.28",Direct Care And Support Services,ACCOMMODATION - OTHER,People's Services,Supported Living,A56088,0
London Borough of Sutton,15/02/2024,50465372,"1,307.32",Direct Care And Support Services,ACCOMMODATION - OTHER,People's Services,Supported Living,A56088,0
London Borough of Sutton,15/02/2024,50465986,"3,175.92",Direct Care And Support Services,ACCOMMODATION - OTHER,People's Services,Supported Living,A56088,0
London Borough of Sutton,15/02/2024,50465986,"1,307.32",Direct Care And Support Services,ACCOMMODATION - OTHER,People's Services,Supported Living,A56088,0
London Borough of Sutton,15/02/2024,50465986,"1,082.32",Direct Care And Support Services,ACCOMMODATION - OTHER,People's Services,Supported Living,A56088,0
London Borough of Sutton,27/01/2024,20068485,938.34,REDACTED - PERSONAL DATA,PLS LANDLORDS,Environment Housing and Neighbourhoods,Temporary Protection - Homeless Persons,A62028,0
London Borough of Sutton,06/02/2024,50456822,999.70,REDACTED - PERSONAL DATA,GRANTS & EX GRATIA PAYMENTS,People's Services,Payment - Nursery Funding,A51056,0
London Borough of Sutton,06/02/2024,50456926,803.09,REDACTED - PERSONAL DATA,GRANTS & EX GRATIA PAYMENTS,People's Services,Payment - Nursery Funding,A51056,0
London Borough of Sutton,06/02/2024,50455715,"203,667.51",Dorchester Primary School,SCHOOL FUNDS,People's Services,Payments to Schools,A51013,0
London Borough of Sutton,06/02/2024,50455779,"28,640.31",Dorchester Primary School,SCHOOL FUNDS,People's Services,Payment - Nursery Funding,A51056,0
London Borough of Sutton,06/02/2024,50455827,"2,240.57",Dorchester Primary School,SCHOOL FUNDS,People's Services,Payment - school supplementary grant,A51062,0
London Borough of Sutton,14/02/2024,50460472,"9,614.85",Dorchester Primary School,SCHOOL FUNDS,People's Services,Top-up Funding,A51016,0
London Borough of Sutton,16/02/2024,50462026,"33,008.50",Dorchester Primary School,SCHOOL FUNDS,People's Services,FSM Supplementary,A60036,0
London Borough of Sutton,28/10/2023,20068193,"2,536.24",REDACTED - PERSONAL DATA,TCES RETAILERS (PHARMACYS),People's Services,Client Related Assessments,A56017,0
London Borough of Sutton,20/02/2024,50460946,"3,919.20",Dramabuds,ENTERTAINMENTS INDUSTRY,Resources,Other Supplies & Services,A44291,0
London Borough of Sutton,05/01/2024,50458888,80.36,Dreamfo Housing Ltd,CHILDREN'S SERVICE - OTHER,People's Services,Approved Lodgings,A61000,0
London Borough of Sutton,05/01/2024,50458888,"1,099.62",Dreamfo Housing Ltd,CHILDREN'S SERVICE - OTHER,People's Services,Approved Lodgings,A61000,0
London Borough of Sutton,05/02/2024,50458891,107.14,Dreamfo Housing Ltd,CHILDREN'S SERVICE - OTHER,People's Services,Approved Lodgings,A61000,0
London Borough of Sutton,05/02/2024,50458891,"1,680.02",Dreamfo Housing Ltd,CHILDREN'S SERVICE - OTHER,People's Services,Approved Lodgings,A61000,0
London Borough of Sutton,05/01/2024,50458958,"4,340.04",Dreamfo Housing Ltd,CHILDREN'S SERVICE - OTHER,People's Services,Accommodation - Supported Living,A62001,0
London Borough of Sutton,05/01/2024,50458958,276.79,Dreamfo Housing Ltd,CHILDREN'S SERVICE - OTHER,People's Services,Accommodation - Supported Living,A62001,0
London Borough of Sutton,05/02/2024,50458970,151.79,Dreamfo Housing Ltd,CHILDREN'S SERVICE - OTHER,People's Services,Approved Lodgings,A61000,0
London Borough of Sutton,05/02/2024,50458970,"1,942.95",Dreamfo Housing Ltd,CHILDREN'S SERVICE - OTHER,People's Services,Approved Lodgings,A61000,0
London Borough of Sutton,29/01/2024,20068011,342.44,DSI Billing Services Ltd,OFFICE SERVICES,Resources,Postage & Couriers,A45015,0
London Borough of Sutton,29/01/2024,20068011,342.44,DSI Billing Services Ltd,OFFICE SERVICES,Resources,Postage & Couriers,A45015,0
London Borough of Sutton,01/01/2024,50458860,276.79,Dunfield & Mead Ltd,CHILDREN'S SERVICES - RESIDENTIAL,People's Services,Accommodation - Supported Living,A62001,0
London Borough of Sutton,01/01/2024,50458860,"3,653.56",Dunfield & Mead Ltd,CHILDREN'S SERVICES - RESIDENTIAL,People's Services,Accommodation - Supported Living,A62001,0
London Borough of Sutton,01/01/2024,50458864,125.00,Dunfield & Mead Ltd,CHILDREN'S SERVICES - RESIDENTIAL,People's Services,Accommodation - Supported Living,A62001,0
London Borough of Sutton,01/01/2024,50458864,"2,100.00",Dunfield & Mead Ltd,CHILDREN'S SERVICES - RESIDENTIAL,People's Services,Accommodation - Supported Living,A62001,0
London Borough of Sutton,01/01/2024,50458983,276.79,Dunfield & Mead Ltd,CHILDREN'S SERVICES - RESIDENTIAL,People's Services,Approved Lodgings,A61000,0
London Borough of Sutton,01/01/2024,50458983,"3,653.56",Dunfield & Mead Ltd,CHILDREN'S SERVICES - RESIDENTIAL,People's Services,Approved Lodgings,A61000,0
London Borough of Sutton,31/01/2024,20068254,"1,312.85",Dunheved Hotel Ltd,ACCOMMODATION BED & BREAKFAST,Environment Housing and Neighbourhoods,Bed & Breakfast,A56000,0
London Borough of Sutton,16/02/2024,50461270,"3,016.00",Dunheved Lodge,SOCIAL SERVICES RESIDENTIAL,People's Services,One to One Care,A56108,0
London Borough of Sutton,16/02/2024,50461270,"3,187.44",Dunheved Lodge,SOCIAL SERVICES RESIDENTIAL,People's Services,Residential Care - Ext Provider,A56114,0
London Borough of Sutton,24/01/2024,50457743,"1,050.00",DWT Windows & Doors,CONSTRUCTION INDUSTRY,HRA,Payments to Contractors,C14000,0
London Borough of Sutton,24/01/2024,50457744,"1,050.00",DWT Windows & Doors,CONSTRUCTION INDUSTRY,HRA,Payments to Contractors,C14000,0
London Borough of Sutton,24/01/2024,50457745,"1,050.00",DWT Windows & Doors,CONSTRUCTION INDUSTRY,HRA,Payments to Contractors,C14000,0
London Borough of Sutton,24/01/2024,50457746,"2,660.00",DWT Windows & Doors,CONSTRUCTION INDUSTRY,HRA,Payments to Contractors,C14000,0
London Borough of Sutton,24/01/2024,50457747,"1,050.00",DWT Windows & Doors,CONSTRUCTION INDUSTRY,HRA,Payments to Contractors,C14000,0
London Borough of Sutton,24/01/2024,50457748,"1,050.00",DWT Windows & Doors,CONSTRUCTION INDUSTRY,HRA,Payments to Contractors,C14000,0
London Borough of Sutton,24/01/2024,50457749,"1,050.00",DWT Windows & Doors,CONSTRUCTION INDUSTRY,HRA,Payments to Contractors,C14000,0
London Borough of Sutton,24/01/2024,50457750,"1,050.00",DWT Windows & Doors,CONSTRUCTION INDUSTRY,HRA,Payments to Contractors,C14000,0
London Borough of Sutton,29/01/2024,50459651,"1,050.00",DWT Windows & Doors,CONSTRUCTION INDUSTRY,HRA,Payments to Contractors,C14000,0
London Borough of Sutton,30/01/2024,50459652,"1,860.00",DWT Windows & Doors,CONSTRUCTION INDUSTRY,HRA,Payments to Contractors,C14000,0
London Borough of Sutton,30/01/2024,50459653,"1,860.00",DWT Windows & Doors,CONSTRUCTION INDUSTRY,HRA,Payments to Contractors,C14000,0
London Borough of Sutton,31/01/2024,50459654,840.00,DWT Windows & Doors,CONSTRUCTION INDUSTRY,HRA,Payments to Contractors,C14000,0
London Borough of Sutton,02/02/2024,50459655,"1,230.00",DWT Windows & Doors,CONSTRUCTION INDUSTRY,HRA,Payments to Contractors,C14000,0
London Borough of Sutton,05/02/2024,50459656,"1,050.00",DWT Windows & Doors,CONSTRUCTION INDUSTRY,HRA,Payments to Contractors,C14000,0
London Borough of Sutton,07/02/2024,50462064,"1,050.00",DWT Windows & Doors,CONSTRUCTION INDUSTRY,HRA,Payments to Contractors,C14000,0
London Borough of Sutton,07/02/2024,50462065,"1,050.00",DWT Windows & Doors,CONSTRUCTION INDUSTRY,HRA,Payments to Contractors,C14000,0
London Borough of Sutton,09/02/2024,50462066,"1,050.00",DWT Windows & Doors,CONSTRUCTION INDUSTRY,HRA,Payments to Contractors,C14000,0
London Borough of Sutton,09/02/2024,50462067,"1,050.00",DWT Windows & Doors,CONSTRUCTION INDUSTRY,HRA,Payments to Contractors,C14000,0
London Borough of Sutton,14/02/2024,50462068,"1,050.00",DWT Windows & Doors,CONSTRUCTION INDUSTRY,HRA,Payments to Contractors,C14000,0
London Borough of Sutton,14/02/2024,50462069,"1,050.00",DWT Windows & Doors,CONSTRUCTION INDUSTRY,HRA,Payments to Contractors,C14000,0
London Borough of Sutton,14/02/2024,50462070,"1,360.00",DWT Windows & Doors,CONSTRUCTION INDUSTRY,HRA,Payments to Contractors,C14000,0
London Borough of Sutton,05/02/2024,50462077,"1,050.00",DWT Windows & Doors,CONSTRUCTION INDUSTRY,HRA,Payments to Contractors,C14000,0
London Borough of Sutton,07/02/2024,50462078,"1,050.00",DWT Windows & Doors,CONSTRUCTION INDUSTRY,HRA,Payments to Contractors,C14000,0
London Borough of Sutton,19/02/2024,50462082,840.00,DWT Windows & Doors,CONSTRUCTION INDUSTRY,HRA,Payments to Contractors,C14000,0
London Borough of Sutton,19/02/2024,50462083,"1,050.00",DWT Windows & Doors,CONSTRUCTION INDUSTRY,HRA,Payments to Contractors,C14000,0
London Borough of Sutton,31/01/2024,50458875,276.79,Dynamic Care Ltd,SOCIAL SERVICES RESIDENTIAL,People's Services,Approved Lodgings,A61000,0
London Borough of Sutton,31/01/2024,50458875,"4,871.41",Dynamic Care Ltd,SOCIAL SERVICES RESIDENTIAL,People's Services,Approved Lodgings,A61000,0
London Borough of Sutton,31/01/2024,50458892,178.58,Dynamic Care Ltd,SOCIAL SERVICES RESIDENTIAL,People's Services,Approved Lodgings,A61000,0
